{"text_format":"1","workbook":"xlsx","n_sheets":8,"sheets":["노임DB","개인DATA","근로계약서","출력현황표","일용노무비명세서(김반장)","일용노무비지급명세서(마이스터)","출역일보(00)","출역일보(01)"],"not_rendered":{"charts":0,"images":1,"macros":1,"external_links":0,"defined_names":29,"comments":3,"pivot_tables":0},"unopened":[],"bounds":{"document_bytes":16777216,"sheet_cells":100000,"rows_first":2000,"rows_last":500,"rows_between":2000,"halvings":0,"cell_chars":16384,"cell_head_chars":4096},"cells_cut":0,"cells_raw":0,"read":"whole","date_system":"1900"}

{"sheet":"노임DB","index":0,"n_rows":877,"n_cols":57,"rows_kept":877,"cut":false,"hidden":false,"merged":[[16,46,17,47],[14,46,15,47],[6,46,7,47],[16,44,17,45],[12,44,13,45],[8,44,9,45],[14,44,15,45],[10,46,11,47],[8,46,9,47],[12,46,13,47],[10,44,11,45],[14,54,15,55],[10,52,11,53],[14,52,15,53],[6,44,7,45],[14,48,15,49],[10,48,11,49],[8,48,9,49],[12,48,13,49],[0,20,1,23],[0,24,1,35],[2,36,5,36],[2,35,5,35],[10,54,11,55],[2,0,5,0],[2,1,5,1],[0,2,1,2],[0,16,1,19],[0,0,1,1],[0,4,1,7],[0,8,1,11],[0,12,1,15],[16,48,17,49],[6,56,7,57],[8,50,9,51],[8,52,9,53],[8,54,9,55],[8,56,9,57],[10,56,11,57],[12,56,13,57],[14,56,15,57],[6,54,7,55],[6,48,7,49],[6,50,7,51],[6,52,7,53],[14,50,15,51],[12,52,13,53],[12,54,13,55],[3,61,3,64],[0,61,0,64],[1,61,1,64],[2,61,2,64],[12,50,13,51],[10,50,11,51]]}
[2023,null,1,"일정","입력일자",null,null,null,{"$f":"TODAY()-8","v":"2023-01-09"},null,null,null,"출역인원합계",null,null,null,{"$f":"SUMPRODUCT((출역현황2>0)*($E$5:$AI$5=$I$1))","v":0},null,null,null," 현장명"]
[null,null,null,"공수"]
["직종","직종코드",null,"요일",{"$f":"E5","v":44927},{"$f":"F5","v":44928},44929,44930,44931,44932,44933,44934,44935,44936,44937,44938,{"$f":"Q5","v":44939},44940,44941,44942,44943,44944,44945,44946,44947,44948,44949,44950,44951,44952,44953,44954,44955,44956,44957,"합계",null,1]
[null,null,"시작일자","월",{"$f":"E5","v":"2023-01-01"},{"$f":"F5","v":"2023-01-02"},"2023-01-03","2023-01-04","2023-01-05","2023-01-06","2023-01-07","2023-01-08","2023-01-09","2023-01-10","2023-01-11","2023-01-12","2023-01-13","2023-01-14","2023-01-15","2023-01-16","2023-01-17","2023-01-18","2023-01-19","2023-01-20","2023-01-21","2023-01-22","2023-01-23","2023-01-24","2023-01-25","2023-01-26","2023-01-27","2023-01-28","2023-01-29","2023-01-30","2023-01-31"]
[null,null,1,"일",{"$f":"DATE($A$1,$C$1,C5)","v":"2023-01-01"},{"$f":"E5+1","v":"2023-01-02"},{"$f":"F5+1","v":"2023-01-03"},"2023-01-04",{"$f":"H5+1","v":"2023-01-05"},"2023-01-06","2023-01-07","2023-01-08","2023-01-09","2023-01-10","2023-01-11","2023-01-12","2023-01-13","2023-01-14","2023-01-15","2023-01-16","2023-01-17","2023-01-18","2023-01-19","2023-01-20","2023-01-21","2023-01-22","2023-01-23","2023-01-24","2023-01-25","2023-01-26","2023-01-27","2023-01-28","2023-01-29","2023-01-30","2023-01-31"]
[null,null,"성   명","일당",{"$f":"DAY(E5)","v":1},2,3,4,5,6,7,8,9,10,11,12,13,14,15,16,17,18,19,20,21,22,23,24,25,26,27,28,29,30,31]
[{"$f":"IFERROR(VLOOKUP(C7,노무자료,6,0),\"\")","v":"현장소장"},{"$f":"IFERROR(VLOOKUP(C7,노무자료,4,0),\"\")","v":1000},"홍길동",{"$f":"IF(C7=\"\",\"\",IF(ISERROR(VLOOKUP(C7,노무자료,2,0)),\"노무DATA없음\",VLOOKUP(C7,노무자료,2,0)))","v":"000101-1000000"},1,null,null,null,null,null,null,null,null,null,null,null,null,null,null,null,null,null,null,null,null,null,null,null,null,null,null,null,null,null,null,{"$f":"SUM(E7:AI7)","v":1},null,null,null,null,null,null,null,null,{"$f":"AS9","v":44927},null,{"$f":"AU9","v":44928},null,{"$f":"AW9","v":44929},null,{"$f":"AY9","v":44930},null,{"$f":"BA9","v":44931},null,{"$f":"BC9","v":44932},null,{"$f":"BE9","v":44933}]
["",{"$f":"IFERROR(VLOOKUP(C8,노무자료,4,0),\"\")","v":""},null,"",null,null,null,null,null,null,null,null,null,null,null,null,null,null,null,null,null,null,null,null,null,null,null,null,null,null,null,null,null,null,null,0]
["",{"$f":"IFERROR(VLOOKUP(C9,노무자료,4,0),\"\")","v":""},null,"",null,null,null,null,null,null,null,null,null,null,null,null,null,null,null,null,null,null,null,null,null,null,null,null,null,null,null,null,null,null,null,{"$f":"SUM(E9:AI9)","v":0},null,null,null,null,null,null,null,null,{"$f":"E5","v":"2023-01-01"},null,{"$f":"F5","v":"2023-01-02"},null,{"$f":"G5","v":"2023-01-03"},null,{"$f":"H5","v":"2023-01-04"},null,{"$f":"I5","v":"2023-01-05"},null,{"$f":"J5","v":"2023-01-06"},null,{"$f":"K5","v":"2023-01-07"}]
["",{"$f":"IFERROR(VLOOKUP(C10,노무자료,4,0),\"\")","v":""},null,"",null,null,null,null,null,null,null,null,null,null,null,null,null,null,null,null,null,null,null,null,null,null,null,null,null,null,null,null,null,null,null,0]
["",{"$f":"IFERROR(VLOOKUP(C11,노무자료,4,0),\"\")","v":""},null,"",null,null,null,null,null,null,null,null,null,null,null,null,null,null,null,null,null,null,null,null,null,null,null,null,null,null,null,null,null,null,null,0,null,null,null,null,null,null,null,null,{"$f":"L5","v":"2023-01-08"},null,{"$f":"M5","v":"2023-01-09"},null,{"$f":"N5","v":"2023-01-10"},null,{"$f":"O5","v":"2023-01-11"},null,{"$f":"P5","v":"2023-01-12"},null,{"$f":"Q5","v":"2023-01-13"},null,{"$f":"R5","v":"2023-01-14"}]
["",{"$f":"IFERROR(VLOOKUP(C12,노무자료,4,0),\"\")","v":""},null,"",null,null,null,null,null,null,null,null,null,null,null,null,null,null,null,null,null,null,null,null,null,null,null,null,null,null,null,null,null,null,null,0]
["",{"$f":"IFERROR(VLOOKUP(C13,노무자료,4,0),\"\")","v":""},null,"",null,null,null,null,null,null,null,null,null,null,null,null,null,null,null,null,null,null,null,null,null,null,null,null,null,null,null,null,null,null,null,0,null,null,null,null,null,null,null,null,{"$f":"S5","v":"2023-01-15"},null,{"$f":"T5","v":"2023-01-16"},null,{"$f":"U5","v":"2023-01-17"},null,{"$f":"V5","v":"2023-01-18"},null,{"$f":"W5","v":"2023-01-19"},null,{"$f":"X5","v":"2023-01-20"},null,{"$f":"Y5","v":"2023-01-21"}]
[{"$f":"IFERROR(VLOOKUP(C14,노무자료,6,0),\"\")","v":""},{"$f":"IFERROR(VLOOKUP(C14,노무자료,4,0),\"\")","v":""},null,{"$f":"IF(C14=\"\",\"\",IF(ISERROR(VLOOKUP(C14,노무자료,2,0)),\"노무DATA없음\",VLOOKUP(C14,노무자료,2,0)))","v":""},null,null,null,null,null,null,null,null,null,null,null,null,null,null,null,null,null,null,null,null,null,null,null,null,null,null,null,null,null,null,null,{"$f":"SUM(E14:AI14)","v":0}]
[{"$f":"IFERROR(VLOOKUP(C15,노무자료,6,0),\"\")","v":""},"",null,{"$f":"IF(C15=\"\",\"\",IF(ISERROR(VLOOKUP(C15,노무자료,2,0)),\"노무DATA없음\",VLOOKUP(C15,노무자료,2,0)))","v":""},null,null,null,null,null,null,null,null,null,null,null,null,null,null,null,null,null,null,null,null,null,null,null,null,null,null,null,null,null,null,null,{"$f":"SUM(E15:AI15)","v":0},null,null,null,null,null,null,null,null,{"$f":"Z5","v":"2023-01-22"},null,{"$f":"AA5","v":"2023-01-23"},null,{"$f":"AB5","v":"2023-01-24"},null,{"$f":"AC5","v":"2023-01-25"},null,{"$f":"AD5","v":"2023-01-26"},null,{"$f":"AE5","v":"2023-01-27"},null,{"$f":"AF5","v":"2023-01-28"}]
[{"$f":"IFERROR(VLOOKUP(C16,노무자료,6,0),\"\")","v":""},null,null,{"$f":"IF(C16=\"\",\"\",IF(ISERROR(VLOOKUP(C16,노무자료,2,0)),\"노무DATA없음\",VLOOKUP(C16,노무자료,2,0)))","v":""},null,null,null,null,null,null,null,null,null,null,null,null,null,null,null,null,null,null,null,null,null,null,null,null,null,null,null,null,null,null,null,{"$f":"SUM(E16:AI16)","v":0}]
["","",null,"",null,null,null,null,null,null,null,null,null,null,null,null,null,null,null,null,null,null,null,null,null,null,null,null,null,null,null,null,null,null,null,0,null,null,null,null,null,null,null,null,{"$f":"AG5","v":"2023-01-29"},null,{"$f":"AH5","v":"2023-01-30"},null,{"$f":"AI5","v":"2023-01-31"}]
[{"$f":"IFERROR(VLOOKUP(C18,노무자료,6,0),\"\")","v":""},{"$f":"IFERROR(VLOOKUP(C18,노무자료,4,0),\"\")","v":""},null,{"$f":"IF(C18=\"\",\"\",IF(ISERROR(VLOOKUP(C18,노무자료,2,0)),\"노무DATA없음\",VLOOKUP(C18,노무자료,2,0)))","v":""},null,null,null,null,null,null,null,null,null,null,null,null,null,null,null,null,null,null,null,null,null,null,null,null,null,null,null,null,null,null,null,{"$f":"SUM(E18:AI18)","v":0}]
[{"$f":"IFERROR(VLOOKUP(C19,노무자료,6,0),\"\")","v":""},{"$f":"IFERROR(VLOOKUP(C19,노무자료,4,0),\"\")","v":""},null,{"$f":"IF(C19=\"\",\"\",IF(ISERROR(VLOOKUP(C19,노무자료,2,0)),\"노무DATA없음\",VLOOKUP(C19,노무자료,2,0)))","v":""},null,null,null,null,null,null,null,null,null,null,null,null,null,null,null,null,null,null,null,null,null,null,null,null,null,null,null,null,null,null,null,{"$f":"SUM(E19:AI19)","v":0}]
["","",null,"",null,null,null,null,null,null,null,null,null,null,null,null,null,null,null,null,null,null,null,null,null,null,null,null,null,null,null,null,null,null,null,0]
[{"$f":"IFERROR(VLOOKUP(C21,노무자료,6,0),\"\")","v":""},{"$f":"IFERROR(VLOOKUP(C21,노무자료,4,0),\"\")","v":""},null,{"$f":"IF(C21=\"\",\"\",IF(ISERROR(VLOOKUP(C21,노무자료,2,0)),\"노무DATA없음\",VLOOKUP(C21,노무자료,2,0)))","v":""},null,null,null,null,null,null,null,null,null,null,null,null,null,null,null,null,null,null,null,null,null,null,null,null,null,null,null,null,null,null,null,{"$f":"SUM(E21:AI21)","v":0}]
["","",null,"",null,null,null,null,null,null,null,null,null,null,null,null,null,null,null,null,null,null,null,null,null,null,null,null,null,null,null,null,null,null,null,0]
["","",null,"",null,null,null,null,null,null,null,null,null,null,null,null,null,null,null,null,null,null,null,null,null,null,null,null,null,null,null,null,null,null,null,0]
["","",null,"",null,null,null,null,null,null,null,null,null,null,null,null,null,null,null,null,null,null,null,null,null,null,null,null,null,null,null,null,null,null,null,0]
["","",null,"",null,null,null,null,null,null,null,null,null,null,null,null,null,null,null,null,null,null,null,null,null,null,null,null,null,null,null,null,null,null,null,0]
["","",null,"",null,null,null,null,null,null,null,null,null,null,null,null,null,null,null,null,null,null,null,null,null,null,null,null,null,null,null,null,null,null,null,0]
["","",null,"",null,null,null,null,null,null,null,null,null,null,null,null,null,null,null,null,null,null,null,null,null,null,null,null,null,null,null,null,null,null,null,0]
["","",null,"",null,null,null,null,null,null,null,null,null,null,null,null,null,null,null,null,null,null,null,null,null,null,null,null,null,null,null,null,null,null,null,0]
["","",null,"",null,null,null,null,null,null,null,null,null,null,null,null,null,null,null,null,null,null,null,null,null,null,null,null,null,null,null,null,null,null,null,0]
["","",null,"",null,null,null,null,null,null,null,null,null,null,null,null,null,null,null,null,null,null,null,null,null,null,null,null,null,null,null,null,null,null,null,0]
["","",null,"",null,null,null,null,null,null,null,null,null,null,null,null,null,null,null,null,null,null,null,null,null,null,null,null,null,null,null,null,null,null,null,0]
["","",null,"",null,null,null,null,null,null,null,null,null,null,null,null,null,null,null,null,null,null,null,null,null,null,null,null,null,null,null,null,null,null,null,0]
["","",null,"",null,null,null,null,null,null,null,null,null,null,null,null,null,null,null,null,null,null,null,null,null,null,null,null,null,null,null,null,null,null,null,0]
["","",null,"",null,null,null,null,null,null,null,null,null,null,null,null,null,null,null,null,null,null,null,null,null,null,null,null,null,null,null,null,null,null,null,0]
["","",null,"",null,null,null,null,null,null,null,null,null,null,null,null,null,null,null,null,null,null,null,null,null,null,null,null,null,null,null,null,null,null,null,0]
["","",null,"",null,null,null,null,null,null,null,null,null,null,null,null,null,null,null,null,null,null,null,null,null,null,null,null,null,null,null,null,null,null,null,0]
["","",null,"",null,null,null,null,null,null,null,null,null,null,null,null,null,null,null,null,null,null,null,null,null,null,null,null,null,null,null,null,null,null,null,0]
["","",null,"",null,null,null,null,null,null,null,null,null,null,null,null,null,null,null,null,null,null,null,null,null,null,null,null,null,null,null,null,null,null,null,0]
["","",null,"",null,null,null,null,null,null,null,null,null,null,null,null,null,null,null,null,null,null,null,null,null,null,null,null,null,null,null,null,null,null,null,0]
["","",null,"",null,null,null,null,null,null,null,null,null,null,null,null,null,null,null,null,null,null,null,null,null,null,null,null,null,null,null,null,null,null,null,0]
["","",null,"",null,null,null,null,null,null,null,null,null,null,null,null,null,null,null,null,null,null,null,null,null,null,null,null,null,null,null,null,null,null,null,0]
["","",null,"",null,null,null,null,null,null,null,null,null,null,null,null,null,null,null,null,null,null,null,null,null,null,null,null,null,null,null,null,null,null,null,0]
["","",null,"",null,null,null,null,null,null,null,null,null,null,null,null,null,null,null,null,null,null,null,null,null,null,null,null,null,null,null,null,null,null,null,0]
["","",null,"",null,null,null,null,null,null,null,null,null,null,null,null,null,null,null,null,null,null,null,null,null,null,null,null,null,null,null,null,null,null,null,0]
["","",null,"",null,null,null,null,null,null,null,null,null,null,null,null,null,null,null,null,null,null,null,null,null,null,null,null,null,null,null,null,null,null,null,0]
["","",null,"",null,null,null,null,null,null,null,null,null,null,null,null,null,null,null,null,null,null,null,null,null,null,null,null,null,null,null,null,null,null,null,0]
["","",null,"",null,null,null,null,null,null,null,null,null,null,null,null,null,null,null,null,null,null,null,null,null,null,null,null,null,null,null,null,null,null,null,0]
["","",null,"",null,null,null,null,null,null,null,null,null,null,null,null,null,null,null,null,null,null,null,null,null,null,null,null,null,null,null,null,null,null,null,0]
["","",null,"",null,null,null,null,null,null,null,null,null,null,null,null,null,null,null,null,null,null,null,null,null,null,null,null,null,null,null,null,null,null,null,0]
["","",null,"",null,null,null,null,null,null,null,null,null,null,null,null,null,null,null,null,null,null,null,null,null,null,null,null,null,null,null,null,null,null,null,0]
["","",null,"",null,null,null,null,null,null,null,null,null,null,null,null,null,null,null,null,null,null,null,null,null,null,null,null,null,null,null,null,null,null,null,0]
["","",null,"",null,null,null,null,null,null,null,null,null,null,null,null,null,null,null,null,null,null,null,null,null,null,null,null,null,null,null,null,null,null,null,0]
["","",null,"",null,null,null,null,null,null,null,null,null,null,null,null,null,null,null,null,null,null,null,null,null,null,null,null,null,null,null,null,null,null,null,0]
["","",null,"",null,null,null,null,null,null,null,null,null,null,null,null,null,null,null,null,null,null,null,null,null,null,null,null,null,null,null,null,null,null,null,0]
["","",null,"",null,null,null,null,null,null,null,null,null,null,null,null,null,null,null,null,null,null,null,null,null,null,null,null,null,null,null,null,null,null,null,0]
["","",null,"",null,null,null,null,null,null,null,null,null,null,null,null,null,null,null,null,null,null,null,null,null,null,null,null,null,null,null,null,null,null,null,0]
["","",null,"",null,null,null,null,null,null,null,null,null,null,null,null,null,null,null,null,null,null,null,null,null,null,null,null,null,null,null,null,null,null,null,0]
["","",null,"",null,null,null,null,null,null,null,null,null,null,null,null,null,null,null,null,null,null,null,null,null,null,null,null,null,null,null,null,null,null,null,0]
["","",null,"",null,null,null,null,null,null,null,null,null,null,null,null,null,null,null,null,null,null,null,null,null,null,null,null,null,null,null,null,null,null,null,0]
["","",null,"",null,null,null,null,null,null,null,null,null,null,null,null,null,null,null,null,null,null,null,null,null,null,null,null,null,null,null,null,null,null,null,0]
["","",null,"",null,null,null,null,null,null,null,null,null,null,null,null,null,null,null,null,null,null,null,null,null,null,null,null,null,null,null,null,null,null,null,0]
["","",null,"",null,null,null,null,null,null,null,null,null,null,null,null,null,null,null,null,null,null,null,null,null,null,null,null,null,null,null,null,null,null,null,0]
["","",null,"",null,null,null,null,null,null,null,null,null,null,null,null,null,null,null,null,null,null,null,null,null,null,null,null,null,null,null,null,null,null,null,0]
["","",null,"",null,null,null,null,null,null,null,null,null,null,null,null,null,null,null,null,null,null,null,null,null,null,null,null,null,null,null,null,null,null,null,0]
["","",null,"",null,null,null,null,null,null,null,null,null,null,null,null,null,null,null,null,null,null,null,null,null,null,null,null,null,null,null,null,null,null,null,0]
["","",null,"",null,null,null,null,null,null,null,null,null,null,null,null,null,null,null,null,null,null,null,null,null,null,null,null,null,null,null,null,null,null,null,0]
["","",null,"",null,null,null,null,null,null,null,null,null,null,null,null,null,null,null,null,null,null,null,null,null,null,null,null,null,null,null,null,null,null,null,0]
["","",null,"",null,null,null,null,null,null,null,null,null,null,null,null,null,null,null,null,null,null,null,null,null,null,null,null,null,null,null,null,null,null,null,0]
["","",null,"",null,null,null,null,null,null,null,null,null,null,null,null,null,null,null,null,null,null,null,null,null,null,null,null,null,null,null,null,null,null,null,0]
["","",null,"",null,null,null,null,null,null,null,null,null,null,null,null,null,null,null,null,null,null,null,null,null,null,null,null,null,null,null,null,null,null,null,0]
["","",null,"",null,null,null,null,null,null,null,null,null,null,null,null,null,null,null,null,null,null,null,null,null,null,null,null,null,null,null,null,null,null,null,0]
["","",null,"",null,null,null,null,null,null,null,null,null,null,null,null,null,null,null,null,null,null,null,null,null,null,null,null,null,null,null,null,null,null,null,0]
["","",null,"",null,null,null,null,null,null,null,null,null,null,null,null,null,null,null,null,null,null,null,null,null,null,null,null,null,null,null,null,null,null,null,0]
["","",null,"",null,null,null,null,null,null,null,null,null,null,null,null,null,null,null,null,null,null,null,null,null,null,null,null,null,null,null,null,null,null,null,0]
["","",null,"",null,null,null,null,null,null,null,null,null,null,null,null,null,null,null,null,null,null,null,null,null,null,null,null,null,null,null,null,null,null,null,0]
["","",null,"",null,null,null,null,null,null,null,null,null,null,null,null,null,null,null,null,null,null,null,null,null,null,null,null,null,null,null,null,null,null,null,0]
["","",null,"",null,null,null,null,null,null,null,null,null,null,null,null,null,null,null,null,null,null,null,null,null,null,null,null,null,null,null,null,null,null,null,0]
["","",null,"",null,null,null,null,null,null,null,null,null,null,null,null,null,null,null,null,null,null,null,null,null,null,null,null,null,null,null,null,null,null,null,0]
["","",null,"",null,null,null,null,null,null,null,null,null,null,null,null,null,null,null,null,null,null,null,null,null,null,null,null,null,null,null,null,null,null,null,0]
["","",null,"",null,null,null,null,null,null,null,null,null,null,null,null,null,null,null,null,null,null,null,null,null,null,null,null,null,null,null,null,null,null,null,0]
["","",null,"",null,null,null,null,null,null,null,null,null,null,null,null,null,null,null,null,null,null,null,null,null,null,null,null,null,null,null,null,null,null,null,0]
["","",null,"",null,null,null,null,null,null,null,null,null,null,null,null,null,null,null,null,null,null,null,null,null,null,null,null,null,null,null,null,null,null,null,0]
["","",null,"",null,null,null,null,null,null,null,null,null,null,null,null,null,null,null,null,null,null,null,null,null,null,null,null,null,null,null,null,null,null,null,0]
["","",null,"",null,null,null,null,null,null,null,null,null,null,null,null,null,null,null,null,null,null,null,null,null,null,null,null,null,null,null,null,null,null,null,0]
[{"$f":"IFERROR(VLOOKUP(C85,노무자료,6,0),\"\")","v":""},{"$f":"IFERROR(VLOOKUP(C85,노무자료,4,0),\"\")","v":""},null,{"$f":"IF(C85=\"\",\"\",IF(ISERROR(VLOOKUP(C85,노무자료,2,0)),\"노무DATA없음\",VLOOKUP(C85,노무자료,2,0)))","v":""},null,null,null,null,null,null,null,null,null,null,null,null,null,null,null,null,null,null,null,null,null,null,null,null,null,null,null,null,null,null,null,{"$f":"SUM(E85:AI85)","v":0}]
["","",null,"",null,null,null,null,null,null,null,null,null,null,null,null,null,null,null,null,null,null,null,null,null,null,null,null,null,null,null,null,null,null,null,0]
["","",null,"",null,null,null,null,null,null,null,null,null,null,null,null,null,null,null,null,null,null,null,null,null,null,null,null,null,null,null,null,null,null,null,0]
["","",null,"",null,null,null,null,null,null,null,null,null,null,null,null,null,null,null,null,null,null,null,null,null,null,null,null,null,null,null,null,null,null,null,0]
["","",null,"",null,null,null,null,null,null,null,null,null,null,null,null,null,null,null,null,null,null,null,null,null,null,null,null,null,null,null,null,null,null,null,0]
["","",null,"",null,null,null,null,null,null,null,null,null,null,null,null,null,null,null,null,null,null,null,null,null,null,null,null,null,null,null,null,null,null,null,0]
["","",null,"",null,null,null,null,null,null,null,null,null,null,null,null,null,null,null,null,null,null,null,null,null,null,null,null,null,null,null,null,null,null,null,0]
["","",null,"",null,null,null,null,null,null,null,null,null,null,null,null,null,null,null,null,null,null,null,null,null,null,null,null,null,null,null,null,null,null,null,0]
["","",null,"",null,null,null,null,null,null,null,null,null,null,null,null,null,null,null,null,null,null,null,null,null,null,null,null,null,null,null,null,null,null,null,0]
["","",null,"",null,null,null,null,null,null,null,null,null,null,null,null,null,null,null,null,null,null,null,null,null,null,null,null,null,null,null,null,null,null,null,0]
["","",null,"",null,null,null,null,null,null,null,null,null,null,null,null,null,null,null,null,null,null,null,null,null,null,null,null,null,null,null,null,null,null,null,0]
["","",null,"",null,null,null,null,null,null,null,null,null,null,null,null,null,null,null,null,null,null,null,null,null,null,null,null,null,null,null,null,null,null,null,0]
["","",null,"",null,null,null,null,null,null,null,null,null,null,null,null,null,null,null,null,null,null,null,null,null,null,null,null,null,null,null,null,null,null,null,0]
["","",null,"",null,null,null,null,null,null,null,null,null,null,null,null,null,null,null,null,null,null,null,null,null,null,null,null,null,null,null,null,null,null,null,0]
["","",null,"",null,null,null,null,null,null,null,null,null,null,null,null,null,null,null,null,null,null,null,null,null,null,null,null,null,null,null,null,null,null,null,0]
["","",null,"",null,null,null,null,null,null,null,null,null,null,null,null,null,null,null,null,null,null,null,null,null,null,null,null,null,null,null,null,null,null,null,0]
["","",null,"",null,null,null,null,null,null,null,null,null,null,null,null,null,null,null,null,null,null,null,null,null,null,null,null,null,null,null,null,null,null,null,0]
["","",null,"",null,null,null,null,null,null,null,null,null,null,null,null,null,null,null,null,null,null,null,null,null,null,null,null,null,null,null,null,null,null,null,0]
["","",null,"",null,null,null,null,null,null,null,null,null,null,null,null,null,null,null,null,null,null,null,null,null,null,null,null,null,null,null,null,null,null,null,0]
["","",null,"",null,null,null,null,null,null,null,null,null,null,null,null,null,null,null,null,null,null,null,null,null,null,null,null,null,null,null,null,null,null,null,0]
["","",null,"",null,null,null,null,null,null,null,null,null,null,null,null,null,null,null,null,null,null,null,null,null,null,null,null,null,null,null,null,null,null,null,0]
["","",null,"",null,null,null,null,null,null,null,null,null,null,null,null,null,null,null,null,null,null,null,null,null,null,null,null,null,null,null,null,null,null,null,0]
["","",null,"",null,null,null,null,null,null,null,null,null,null,null,null,null,null,null,null,null,null,null,null,null,null,null,null,null,null,null,null,null,null,null,0]
["","",null,"",null,null,null,null,null,null,null,null,null,null,null,null,null,null,null,null,null,null,null,null,null,null,null,null,null,null,null,null,null,null,null,0]
["","",null,"",null,null,null,null,null,null,null,null,null,null,null,null,null,null,null,null,null,null,null,null,null,null,null,null,null,null,null,null,null,null,null,0]
["","",null,"",null,null,null,null,null,null,null,null,null,null,null,null,null,null,null,null,null,null,null,null,null,null,null,null,null,null,null,null,null,null,null,0]
["","",null,"",null,null,null,null,null,null,null,null,null,null,null,null,null,null,null,null,null,null,null,null,null,null,null,null,null,null,null,null,null,null,null,0]
["","",null,"",null,null,null,null,null,null,null,null,null,null,null,null,null,null,null,null,null,null,null,null,null,null,null,null,null,null,null,null,null,null,null,0]
["","",null,"",null,null,null,null,null,null,null,null,null,null,null,null,null,null,null,null,null,null,null,null,null,null,null,null,null,null,null,null,null,null,null,0]
["","",null,"",null,null,null,null,null,null,null,null,null,null,null,null,null,null,null,null,null,null,null,null,null,null,null,null,null,null,null,null,null,null,null,0]
["","",null,"",null,null,null,null,null,null,null,null,null,null,null,null,null,null,null,null,null,null,null,null,null,null,null,null,null,null,null,null,null,null,null,0]
["","",null,"",null,null,null,null,null,null,null,null,null,null,null,null,null,null,null,null,null,null,null,null,null,null,null,null,null,null,null,null,null,null,null,0]
["","",null,"",null,null,null,null,null,null,null,null,null,null,null,null,null,null,null,null,null,null,null,null,null,null,null,null,null,null,null,null,null,null,null,0]
["","",null,"",null,null,null,null,null,null,null,null,null,null,null,null,null,null,null,null,null,null,null,null,null,null,null,null,null,null,null,null,null,null,null,0]
["","",null,"",null,null,null,null,null,null,null,null,null,null,null,null,null,null,null,null,null,null,null,null,null,null,null,null,null,null,null,null,null,null,null,0]
["","",null,"",null,null,null,null,null,null,null,null,null,null,null,null,null,null,null,null,null,null,null,null,null,null,null,null,null,null,null,null,null,null,null,0]
["","",null,"",null,null,null,null,null,null,null,null,null,null,null,null,null,null,null,null,null,null,null,null,null,null,null,null,null,null,null,null,null,null,null,0]
["","",null,"",null,null,null,null,null,null,null,null,null,null,null,null,null,null,null,null,null,null,null,null,null,null,null,null,null,null,null,null,null,null,null,0]
["","",null,"",null,null,null,null,null,null,null,null,null,null,null,null,null,null,null,null,null,null,null,null,null,null,null,null,null,null,null,null,null,null,null,0]
["","",null,"",null,null,null,null,null,null,null,null,null,null,null,null,null,null,null,null,null,null,null,null,null,null,null,null,null,null,null,null,null,null,null,0]
["","",null,"",null,null,null,null,null,null,null,null,null,null,null,null,null,null,null,null,null,null,null,null,null,null,null,null,null,null,null,null,null,null,null,0]
["","",null,"",null,null,null,null,null,null,null,null,null,null,null,null,null,null,null,null,null,null,null,null,null,null,null,null,null,null,null,null,null,null,null,0]
["","",null,"",null,null,null,null,null,null,null,null,null,null,null,null,null,null,null,null,null,null,null,null,null,null,null,null,null,null,null,null,null,null,null,0]
["","",null,"",null,null,null,null,null,null,null,null,null,null,null,null,null,null,null,null,null,null,null,null,null,null,null,null,null,null,null,null,null,null,null,0]
["","",null,"",null,null,null,null,null,null,null,null,null,null,null,null,null,null,null,null,null,null,null,null,null,null,null,null,null,null,null,null,null,null,null,0]
["","",null,"",null,null,null,null,null,null,null,null,null,null,null,null,null,null,null,null,null,null,null,null,null,null,null,null,null,null,null,null,null,null,null,0]
["","",null,"",null,null,null,null,null,null,null,null,null,null,null,null,null,null,null,null,null,null,null,null,null,null,null,null,null,null,null,null,null,null,null,0]
["","",null,"",null,null,null,null,null,null,null,null,null,null,null,null,null,null,null,null,null,null,null,null,null,null,null,null,null,null,null,null,null,null,null,0]
["","",null,"",null,null,null,null,null,null,null,null,null,null,null,null,null,null,null,null,null,null,null,null,null,null,null,null,null,null,null,null,null,null,null,0]
["","",null,"",null,null,null,null,null,null,null,null,null,null,null,null,null,null,null,null,null,null,null,null,null,null,null,null,null,null,null,null,null,null,null,0]
["","",null,"",null,null,null,null,null,null,null,null,null,null,null,null,null,null,null,null,null,null,null,null,null,null,null,null,null,null,null,null,null,null,null,0]
["","",null,"",null,null,null,null,null,null,null,null,null,null,null,null,null,null,null,null,null,null,null,null,null,null,null,null,null,null,null,null,null,null,null,0]
["","",null,"",null,null,null,null,null,null,null,null,null,null,null,null,null,null,null,null,null,null,null,null,null,null,null,null,null,null,null,null,null,null,null,0]
["","",null,"",null,null,null,null,null,null,null,null,null,null,null,null,null,null,null,null,null,null,null,null,null,null,null,null,null,null,null,null,null,null,null,0]
["","",null,"",null,null,null,null,null,null,null,null,null,null,null,null,null,null,null,null,null,null,null,null,null,null,null,null,null,null,null,null,null,null,null,0]
["","",null,"",null,null,null,null,null,null,null,null,null,null,null,null,null,null,null,null,null,null,null,null,null,null,null,null,null,null,null,null,null,null,null,0]
["","",null,"",null,null,null,null,null,null,null,null,null,null,null,null,null,null,null,null,null,null,null,null,null,null,null,null,null,null,null,null,null,null,null,0]
["","",null,"",null,null,null,null,null,null,null,null,null,null,null,null,null,null,null,null,null,null,null,null,null,null,null,null,null,null,null,null,null,null,null,0]
["","",null,"",null,null,null,null,null,null,null,null,null,null,null,null,null,null,null,null,null,null,null,null,null,null,null,null,null,null,null,null,null,null,null,0]
["","",null,"",null,null,null,null,null,null,null,null,null,null,null,null,null,null,null,null,null,null,null,null,null,null,null,null,null,null,null,null,null,null,null,0]
["","",null,"",null,null,null,null,null,null,null,null,null,null,null,null,null,null,null,null,null,null,null,null,null,null,null,null,null,null,null,null,null,null,null,0]
["","",null,"",null,null,null,null,null,null,null,null,null,null,null,null,null,null,null,null,null,null,null,null,null,null,null,null,null,null,null,null,null,null,null,0]
["","",null,"",null,null,null,null,null,null,null,null,null,null,null,null,null,null,null,null,null,null,null,null,null,null,null,null,null,null,null,null,null,null,null,0]
["","",null,"",null,null,null,null,null,null,null,null,null,null,null,null,null,null,null,null,null,null,null,null,null,null,null,null,null,null,null,null,null,null,null,0]
[{"$f":"IFERROR(VLOOKUP(C149,노무자료,6,0),\"\")","v":""},{"$f":"IFERROR(VLOOKUP(C149,노무자료,4,0),\"\")","v":""},null,{"$f":"IF(C149=\"\",\"\",IF(ISERROR(VLOOKUP(C149,노무자료,2,0)),\"노무DATA없음\",VLOOKUP(C149,노무자료,2,0)))","v":""},null,null,null,null,null,null,null,null,null,null,null,null,null,null,null,null,null,null,null,null,null,null,null,null,null,null,null,null,null,null,null,{"$f":"SUM(E149:AI149)","v":0}]
["","",null,"",null,null,null,null,null,null,null,null,null,null,null,null,null,null,null,null,null,null,null,null,null,null,null,null,null,null,null,null,null,null,null,0]
["","",null,"",null,null,null,null,null,null,null,null,null,null,null,null,null,null,null,null,null,null,null,null,null,null,null,null,null,null,null,null,null,null,null,0]
["","",null,"",null,null,null,null,null,null,null,null,null,null,null,null,null,null,null,null,null,null,null,null,null,null,null,null,null,null,null,null,null,null,null,0]
["","",null,"",null,null,null,null,null,null,null,null,null,null,null,null,null,null,null,null,null,null,null,null,null,null,null,null,null,null,null,null,null,null,null,0]
["","",null,"",null,null,null,null,null,null,null,null,null,null,null,null,null,null,null,null,null,null,null,null,null,null,null,null,null,null,null,null,null,null,null,0]
["","",null,"",null,null,null,null,null,null,null,null,null,null,null,null,null,null,null,null,null,null,null,null,null,null,null,null,null,null,null,null,null,null,null,0]
["","",null,"",null,null,null,null,null,null,null,null,null,null,null,null,null,null,null,null,null,null,null,null,null,null,null,null,null,null,null,null,null,null,null,0]
["","",null,"",null,null,null,null,null,null,null,null,null,null,null,null,null,null,null,null,null,null,null,null,null,null,null,null,null,null,null,null,null,null,null,0]
["","",null,"",null,null,null,null,null,null,null,null,null,null,null,null,null,null,null,null,null,null,null,null,null,null,null,null,null,null,null,null,null,null,null,0]
["","",null,"",null,null,null,null,null,null,null,null,null,null,null,null,null,null,null,null,null,null,null,null,null,null,null,null,null,null,null,null,null,null,null,0]
["","",null,"",null,null,null,null,null,null,null,null,null,null,null,null,null,null,null,null,null,null,null,null,null,null,null,null,null,null,null,null,null,null,null,0]
["","",null,"",null,null,null,null,null,null,null,null,null,null,null,null,null,null,null,null,null,null,null,null,null,null,null,null,null,null,null,null,null,null,null,0]
["","",null,"",null,null,null,null,null,null,null,null,null,null,null,null,null,null,null,null,null,null,null,null,null,null,null,null,null,null,null,null,null,null,null,0]
["","",null,"",null,null,null,null,null,null,null,null,null,null,null,null,null,null,null,null,null,null,null,null,null,null,null,null,null,null,null,null,null,null,null,0]
["","",null,"",null,null,null,null,null,null,null,null,null,null,null,null,null,null,null,null,null,null,null,null,null,null,null,null,null,null,null,null,null,null,null,0]
["","",null,"",null,null,null,null,null,null,null,null,null,null,null,null,null,null,null,null,null,null,null,null,null,null,null,null,null,null,null,null,null,null,null,0]
["","",null,"",null,null,null,null,null,null,null,null,null,null,null,null,null,null,null,null,null,null,null,null,null,null,null,null,null,null,null,null,null,null,null,0]
["","",null,"",null,null,null,null,null,null,null,null,null,null,null,null,null,null,null,null,null,null,null,null,null,null,null,null,null,null,null,null,null,null,null,0]
["","",null,"",null,null,null,null,null,null,null,null,null,null,null,null,null,null,null,null,null,null,null,null,null,null,null,null,null,null,null,null,null,null,null,0]
["","",null,"",null,null,null,null,null,null,null,null,null,null,null,null,null,null,null,null,null,null,null,null,null,null,null,null,null,null,null,null,null,null,null,0]
["","",null,"",null,null,null,null,null,null,null,null,null,null,null,null,null,null,null,null,null,null,null,null,null,null,null,null,null,null,null,null,null,null,null,0]
["","",null,"",null,null,null,null,null,null,null,null,null,null,null,null,null,null,null,null,null,null,null,null,null,null,null,null,null,null,null,null,null,null,null,0]
["","",null,"",null,null,null,null,null,null,null,null,null,null,null,null,null,null,null,null,null,null,null,null,null,null,null,null,null,null,null,null,null,null,null,0]
["","",null,"",null,null,null,null,null,null,null,null,null,null,null,null,null,null,null,null,null,null,null,null,null,null,null,null,null,null,null,null,null,null,null,0]
["","",null,"",null,null,null,null,null,null,null,null,null,null,null,null,null,null,null,null,null,null,null,null,null,null,null,null,null,null,null,null,null,null,null,0]
["","",null,"",null,null,null,null,null,null,null,null,null,null,null,null,null,null,null,null,null,null,null,null,null,null,null,null,null,null,null,null,null,null,null,0]
["","",null,"",null,null,null,null,null,null,null,null,null,null,null,null,null,null,null,null,null,null,null,null,null,null,null,null,null,null,null,null,null,null,null,0]
["","",null,"",null,null,null,null,null,null,null,null,null,null,null,null,null,null,null,null,null,null,null,null,null,null,null,null,null,null,null,null,null,null,null,0]
["","",null,"",null,null,null,null,null,null,null,null,null,null,null,null,null,null,null,null,null,null,null,null,null,null,null,null,null,null,null,null,null,null,null,0]
["","",null,"",null,null,null,null,null,null,null,null,null,null,null,null,null,null,null,null,null,null,null,null,null,null,null,null,null,null,null,null,null,null,null,0]
["","",null,"",null,null,null,null,null,null,null,null,null,null,null,null,null,null,null,null,null,null,null,null,null,null,null,null,null,null,null,null,null,null,null,0]
["","",null,"",null,null,null,null,null,null,null,null,null,null,null,null,null,null,null,null,null,null,null,null,null,null,null,null,null,null,null,null,null,null,null,0]
["","",null,"",null,null,null,null,null,null,null,null,null,null,null,null,null,null,null,null,null,null,null,null,null,null,null,null,null,null,null,null,null,null,null,0]
["","",null,"",null,null,null,null,null,null,null,null,null,null,null,null,null,null,null,null,null,null,null,null,null,null,null,null,null,null,null,null,null,null,null,0]
["","",null,"",null,null,null,null,null,null,null,null,null,null,null,null,null,null,null,null,null,null,null,null,null,null,null,null,null,null,null,null,null,null,null,0]
["","",null,"",null,null,null,null,null,null,null,null,null,null,null,null,null,null,null,null,null,null,null,null,null,null,null,null,null,null,null,null,null,null,null,0]
["","",null,"",null,null,null,null,null,null,null,null,null,null,null,null,null,null,null,null,null,null,null,null,null,null,null,null,null,null,null,null,null,null,null,0]
["","",null,"",null,null,null,null,null,null,null,null,null,null,null,null,null,null,null,null,null,null,null,null,null,null,null,null,null,null,null,null,null,null,null,0]
["","",null,"",null,null,null,null,null,null,null,null,null,null,null,null,null,null,null,null,null,null,null,null,null,null,null,null,null,null,null,null,null,null,null,0]
["","",null,"",null,null,null,null,null,null,null,null,null,null,null,null,null,null,null,null,null,null,null,null,null,null,null,null,null,null,null,null,null,null,null,0]
["","",null,"",null,null,null,null,null,null,null,null,null,null,null,null,null,null,null,null,null,null,null,null,null,null,null,null,null,null,null,null,null,null,null,0]
["","",null,"",null,null,null,null,null,null,null,null,null,null,null,null,null,null,null,null,null,null,null,null,null,null,null,null,null,null,null,null,null,null,null,0]
["","",null,"",null,null,null,null,null,null,null,null,null,null,null,null,null,null,null,null,null,null,null,null,null,null,null,null,null,null,null,null,null,null,null,0]
["","",null,"",null,null,null,null,null,null,null,null,null,null,null,null,null,null,null,null,null,null,null,null,null,null,null,null,null,null,null,null,null,null,null,0]
["","",null,"",null,null,null,null,null,null,null,null,null,null,null,null,null,null,null,null,null,null,null,null,null,null,null,null,null,null,null,null,null,null,null,0]
["","",null,"",null,null,null,null,null,null,null,null,null,null,null,null,null,null,null,null,null,null,null,null,null,null,null,null,null,null,null,null,null,null,null,0]
["","",null,"",null,null,null,null,null,null,null,null,null,null,null,null,null,null,null,null,null,null,null,null,null,null,null,null,null,null,null,null,null,null,null,0]
["","",null,"",null,null,null,null,null,null,null,null,null,null,null,null,null,null,null,null,null,null,null,null,null,null,null,null,null,null,null,null,null,null,null,0]
["","",null,"",null,null,null,null,null,null,null,null,null,null,null,null,null,null,null,null,null,null,null,null,null,null,null,null,null,null,null,null,null,null,null,0]
["","",null,"",null,null,null,null,null,null,null,null,null,null,null,null,null,null,null,null,null,null,null,null,null,null,null,null,null,null,null,null,null,null,null,0]
["","",null,"",null,null,null,null,null,null,null,null,null,null,null,null,null,null,null,null,null,null,null,null,null,null,null,null,null,null,null,null,null,null,null,0]
["","",null,"",null,null,null,null,null,null,null,null,null,null,null,null,null,null,null,null,null,null,null,null,null,null,null,null,null,null,null,null,null,null,null,0]
["","",null,"",null,null,null,null,null,null,null,null,null,null,null,null,null,null,null,null,null,null,null,null,null,null,null,null,null,null,null,null,null,null,null,0]
["","",null,"",null,null,null,null,null,null,null,null,null,null,null,null,null,null,null,null,null,null,null,null,null,null,null,null,null,null,null,null,null,null,null,0]
["","",null,"",null,null,null,null,null,null,null,null,null,null,null,null,null,null,null,null,null,null,null,null,null,null,null,null,null,null,null,null,null,null,null,0]
["","",null,"",null,null,null,null,null,null,null,null,null,null,null,null,null,null,null,null,null,null,null,null,null,null,null,null,null,null,null,null,null,null,null,0]
["","",null,"",null,null,null,null,null,null,null,null,null,null,null,null,null,null,null,null,null,null,null,null,null,null,null,null,null,null,null,null,null,null,null,0]
["","",null,"",null,null,null,null,null,null,null,null,null,null,null,null,null,null,null,null,null,null,null,null,null,null,null,null,null,null,null,null,null,null,null,0]
["","",null,"",null,null,null,null,null,null,null,null,null,null,null,null,null,null,null,null,null,null,null,null,null,null,null,null,null,null,null,null,null,null,null,0]
["","",null,"",null,null,null,null,null,null,null,null,null,null,null,null,null,null,null,null,null,null,null,null,null,null,null,null,null,null,null,null,null,null,null,0]
["","",null,"",null,null,null,null,null,null,null,null,null,null,null,null,null,null,null,null,null,null,null,null,null,null,null,null,null,null,null,null,null,null,null,0]
["","",null,"",null,null,null,null,null,null,null,null,null,null,null,null,null,null,null,null,null,null,null,null,null,null,null,null,null,null,null,null,null,null,null,0]
["","",null,"",null,null,null,null,null,null,null,null,null,null,null,null,null,null,null,null,null,null,null,null,null,null,null,null,null,null,null,null,null,null,null,0]
[{"$f":"IFERROR(VLOOKUP(C213,노무자료,6,0),\"\")","v":""},{"$f":"IFERROR(VLOOKUP(C213,노무자료,4,0),\"\")","v":""},null,{"$f":"IF(C213=\"\",\"\",IF(ISERROR(VLOOKUP(C213,노무자료,2,0)),\"노무DATA없음\",VLOOKUP(C213,노무자료,2,0)))","v":""},null,null,null,null,null,null,null,null,null,null,null,null,null,null,null,null,null,null,null,null,null,null,null,null,null,null,null,null,null,null,null,{"$f":"SUM(E213:AI213)","v":0}]
["","",null,"",null,null,null,null,null,null,null,null,null,null,null,null,null,null,null,null,null,null,null,null,null,null,null,null,null,null,null,null,null,null,null,0]
["","",null,"",null,null,null,null,null,null,null,null,null,null,null,null,null,null,null,null,null,null,null,null,null,null,null,null,null,null,null,null,null,null,null,0]
["","",null,"",null,null,null,null,null,null,null,null,null,null,null,null,null,null,null,null,null,null,null,null,null,null,null,null,null,null,null,null,null,null,null,0]
["","",null,"",null,null,null,null,null,null,null,null,null,null,null,null,null,null,null,null,null,null,null,null,null,null,null,null,null,null,null,null,null,null,null,0]
["","",null,"",null,null,null,null,null,null,null,null,null,null,null,null,null,null,null,null,null,null,null,null,null,null,null,null,null,null,null,null,null,null,null,0]
["","",null,"",null,null,null,null,null,null,null,null,null,null,null,null,null,null,null,null,null,null,null,null,null,null,null,null,null,null,null,null,null,null,null,0]
["","",null,"",null,null,null,null,null,null,null,null,null,null,null,null,null,null,null,null,null,null,null,null,null,null,null,null,null,null,null,null,null,null,null,0]
["","",null,"",null,null,null,null,null,null,null,null,null,null,null,null,null,null,null,null,null,null,null,null,null,null,null,null,null,null,null,null,null,null,null,0]
["","",null,"",null,null,null,null,null,null,null,null,null,null,null,null,null,null,null,null,null,null,null,null,null,null,null,null,null,null,null,null,null,null,null,0]
["","",null,"",null,null,null,null,null,null,null,null,null,null,null,null,null,null,null,null,null,null,null,null,null,null,null,null,null,null,null,null,null,null,null,0]
["","",null,"",null,null,null,null,null,null,null,null,null,null,null,null,null,null,null,null,null,null,null,null,null,null,null,null,null,null,null,null,null,null,null,0]
["","",null,"",null,null,null,null,null,null,null,null,null,null,null,null,null,null,null,null,null,null,null,null,null,null,null,null,null,null,null,null,null,null,null,0]
["","",null,"",null,null,null,null,null,null,null,null,null,null,null,null,null,null,null,null,null,null,null,null,null,null,null,null,null,null,null,null,null,null,null,0]
["","",null,"",null,null,null,null,null,null,null,null,null,null,null,null,null,null,null,null,null,null,null,null,null,null,null,null,null,null,null,null,null,null,null,0]
["","",null,"",null,null,null,null,null,null,null,null,null,null,null,null,null,null,null,null,null,null,null,null,null,null,null,null,null,null,null,null,null,null,null,0]
["","",null,"",null,null,null,null,null,null,null,null,null,null,null,null,null,null,null,null,null,null,null,null,null,null,null,null,null,null,null,null,null,null,null,0]
["","",null,"",null,null,null,null,null,null,null,null,null,null,null,null,null,null,null,null,null,null,null,null,null,null,null,null,null,null,null,null,null,null,null,0]
["","",null,"",null,null,null,null,null,null,null,null,null,null,null,null,null,null,null,null,null,null,null,null,null,null,null,null,null,null,null,null,null,null,null,0]
["","",null,"",null,null,null,null,null,null,null,null,null,null,null,null,null,null,null,null,null,null,null,null,null,null,null,null,null,null,null,null,null,null,null,0]
["","",null,"",null,null,null,null,null,null,null,null,null,null,null,null,null,null,null,null,null,null,null,null,null,null,null,null,null,null,null,null,null,null,null,0]
["","",null,"",null,null,null,null,null,null,null,null,null,null,null,null,null,null,null,null,null,null,null,null,null,null,null,null,null,null,null,null,null,null,null,0]
["","",null,"",null,null,null,null,null,null,null,null,null,null,null,null,null,null,null,null,null,null,null,null,null,null,null,null,null,null,null,null,null,null,null,0]
["","",null,"",null,null,null,null,null,null,null,null,null,null,null,null,null,null,null,null,null,null,null,null,null,null,null,null,null,null,null,null,null,null,null,0]
["","",null,"",null,null,null,null,null,null,null,null,null,null,null,null,null,null,null,null,null,null,null,null,null,null,null,null,null,null,null,null,null,null,null,0]
["","",null,"",null,null,null,null,null,null,null,null,null,null,null,null,null,null,null,null,null,null,null,null,null,null,null,null,null,null,null,null,null,null,null,0]
["","",null,"",null,null,null,null,null,null,null,null,null,null,null,null,null,null,null,null,null,null,null,null,null,null,null,null,null,null,null,null,null,null,null,0]
["","",null,"",null,null,null,null,null,null,null,null,null,null,null,null,null,null,null,null,null,null,null,null,null,null,null,null,null,null,null,null,null,null,null,0]
["","",null,"",null,null,null,null,null,null,null,null,null,null,null,null,null,null,null,null,null,null,null,null,null,null,null,null,null,null,null,null,null,null,null,0]
["","",null,"",null,null,null,null,null,null,null,null,null,null,null,null,null,null,null,null,null,null,null,null,null,null,null,null,null,null,null,null,null,null,null,0]
["","",null,"",null,null,null,null,null,null,null,null,null,null,null,null,null,null,null,null,null,null,null,null,null,null,null,null,null,null,null,null,null,null,null,0]
["","",null,"",null,null,null,null,null,null,null,null,null,null,null,null,null,null,null,null,null,null,null,null,null,null,null,null,null,null,null,null,null,null,null,0]
["","",null,"",null,null,null,null,null,null,null,null,null,null,null,null,null,null,null,null,null,null,null,null,null,null,null,null,null,null,null,null,null,null,null,0]
["","",null,"",null,null,null,null,null,null,null,null,null,null,null,null,null,null,null,null,null,null,null,null,null,null,null,null,null,null,null,null,null,null,null,0]
["","",null,"",null,null,null,null,null,null,null,null,null,null,null,null,null,null,null,null,null,null,null,null,null,null,null,null,null,null,null,null,null,null,null,0]
["","",null,"",null,null,null,null,null,null,null,null,null,null,null,null,null,null,null,null,null,null,null,null,null,null,null,null,null,null,null,null,null,null,null,0]
["","",null,"",null,null,null,null,null,null,null,null,null,null,null,null,null,null,null,null,null,null,null,null,null,null,null,null,null,null,null,null,null,null,null,0]
["","",null,"",null,null,null,null,null,null,null,null,null,null,null,null,null,null,null,null,null,null,null,null,null,null,null,null,null,null,null,null,null,null,null,0]
["","",null,"",null,null,null,null,null,null,null,null,null,null,null,null,null,null,null,null,null,null,null,null,null,null,null,null,null,null,null,null,null,null,null,0]
["","",null,"",null,null,null,null,null,null,null,null,null,null,null,null,null,null,null,null,null,null,null,null,null,null,null,null,null,null,null,null,null,null,null,0]
["","",null,"",null,null,null,null,null,null,null,null,null,null,null,null,null,null,null,null,null,null,null,null,null,null,null,null,null,null,null,null,null,null,null,0]
["","",null,"",null,null,null,null,null,null,null,null,null,null,null,null,null,null,null,null,null,null,null,null,null,null,null,null,null,null,null,null,null,null,null,0]
["","",null,"",null,null,null,null,null,null,null,null,null,null,null,null,null,null,null,null,null,null,null,null,null,null,null,null,null,null,null,null,null,null,null,0]
["","",null,"",null,null,null,null,null,null,null,null,null,null,null,null,null,null,null,null,null,null,null,null,null,null,null,null,null,null,null,null,null,null,null,0]
["","",null,"",null,null,null,null,null,null,null,null,null,null,null,null,null,null,null,null,null,null,null,null,null,null,null,null,null,null,null,null,null,null,null,0]
["","",null,"",null,null,null,null,null,null,null,null,null,null,null,null,null,null,null,null,null,null,null,null,null,null,null,null,null,null,null,null,null,null,null,0]
["","",null,"",null,null,null,null,null,null,null,null,null,null,null,null,null,null,null,null,null,null,null,null,null,null,null,null,null,null,null,null,null,null,null,0]
["","",null,"",null,null,null,null,null,null,null,null,null,null,null,null,null,null,null,null,null,null,null,null,null,null,null,null,null,null,null,null,null,null,null,0]
["","",null,"",null,null,null,null,null,null,null,null,null,null,null,null,null,null,null,null,null,null,null,null,null,null,null,null,null,null,null,null,null,null,null,0]
["","",null,"",null,null,null,null,null,null,null,null,null,null,null,null,null,null,null,null,null,null,null,null,null,null,null,null,null,null,null,null,null,null,null,0]
["","",null,"",null,null,null,null,null,null,null,null,null,null,null,null,null,null,null,null,null,null,null,null,null,null,null,null,null,null,null,null,null,null,null,0]
["","",null,"",null,null,null,null,null,null,null,null,null,null,null,null,null,null,null,null,null,null,null,null,null,null,null,null,null,null,null,null,null,null,null,0]
["","",null,"",null,null,null,null,null,null,null,null,null,null,null,null,null,null,null,null,null,null,null,null,null,null,null,null,null,null,null,null,null,null,null,0]
["","",null,"",null,null,null,null,null,null,null,null,null,null,null,null,null,null,null,null,null,null,null,null,null,null,null,null,null,null,null,null,null,null,null,0]
["","",null,"",null,null,null,null,null,null,null,null,null,null,null,null,null,null,null,null,null,null,null,null,null,null,null,null,null,null,null,null,null,null,null,0]
["","",null,"",null,null,null,null,null,null,null,null,null,null,null,null,null,null,null,null,null,null,null,null,null,null,null,null,null,null,null,null,null,null,null,0]
["","",null,"",null,null,null,null,null,null,null,null,null,null,null,null,null,null,null,null,null,null,null,null,null,null,null,null,null,null,null,null,null,null,null,0]
["","",null,"",null,null,null,null,null,null,null,null,null,null,null,null,null,null,null,null,null,null,null,null,null,null,null,null,null,null,null,null,null,null,null,0]
["","",null,"",null,null,null,null,null,null,null,null,null,null,null,null,null,null,null,null,null,null,null,null,null,null,null,null,null,null,null,null,null,null,null,0]
["","",null,"",null,null,null,null,null,null,null,null,null,null,null,null,null,null,null,null,null,null,null,null,null,null,null,null,null,null,null,null,null,null,null,0]
["","",null,"",null,null,null,null,null,null,null,null,null,null,null,null,null,null,null,null,null,null,null,null,null,null,null,null,null,null,null,null,null,null,null,0]
["","",null,"",null,null,null,null,null,null,null,null,null,null,null,null,null,null,null,null,null,null,null,null,null,null,null,null,null,null,null,null,null,null,null,0]
["","",null,"",null,null,null,null,null,null,null,null,null,null,null,null,null,null,null,null,null,null,null,null,null,null,null,null,null,null,null,null,null,null,null,0]
["","",null,"",null,null,null,null,null,null,null,null,null,null,null,null,null,null,null,null,null,null,null,null,null,null,null,null,null,null,null,null,null,null,null,0]
[{"$f":"IFERROR(VLOOKUP(C277,노무자료,6,0),\"\")","v":""},{"$f":"IFERROR(VLOOKUP(C277,노무자료,4,0),\"\")","v":""},null,{"$f":"IF(C277=\"\",\"\",IF(ISERROR(VLOOKUP(C277,노무자료,2,0)),\"노무DATA없음\",VLOOKUP(C277,노무자료,2,0)))","v":""},null,null,null,null,null,null,null,null,null,null,null,null,null,null,null,null,null,null,null,null,null,null,null,null,null,null,null,null,null,null,null,{"$f":"SUM(E277:AI277)","v":0}]
["","",null,"",null,null,null,null,null,null,null,null,null,null,null,null,null,null,null,null,null,null,null,null,null,null,null,null,null,null,null,null,null,null,null,0]
["","",null,"",null,null,null,null,null,null,null,null,null,null,null,null,null,null,null,null,null,null,null,null,null,null,null,null,null,null,null,null,null,null,null,0]
["","",null,"",null,null,null,null,null,null,null,null,null,null,null,null,null,null,null,null,null,null,null,null,null,null,null,null,null,null,null,null,null,null,null,0]
["","",null,"",null,null,null,null,null,null,null,null,null,null,null,null,null,null,null,null,null,null,null,null,null,null,null,null,null,null,null,null,null,null,null,0]
["","",null,"",null,null,null,null,null,null,null,null,null,null,null,null,null,null,null,null,null,null,null,null,null,null,null,null,null,null,null,null,null,null,null,0]
["","",null,"",null,null,null,null,null,null,null,null,null,null,null,null,null,null,null,null,null,null,null,null,null,null,null,null,null,null,null,null,null,null,null,0]
["","",null,"",null,null,null,null,null,null,null,null,null,null,null,null,null,null,null,null,null,null,null,null,null,null,null,null,null,null,null,null,null,null,null,0]
["","",null,"",null,null,null,null,null,null,null,null,null,null,null,null,null,null,null,null,null,null,null,null,null,null,null,null,null,null,null,null,null,null,null,0]
["","",null,"",null,null,null,null,null,null,null,null,null,null,null,null,null,null,null,null,null,null,null,null,null,null,null,null,null,null,null,null,null,null,null,0]
["","",null,"",null,null,null,null,null,null,null,null,null,null,null,null,null,null,null,null,null,null,null,null,null,null,null,null,null,null,null,null,null,null,null,0]
["","",null,"",null,null,null,null,null,null,null,null,null,null,null,null,null,null,null,null,null,null,null,null,null,null,null,null,null,null,null,null,null,null,null,0]
["","",null,"",null,null,null,null,null,null,null,null,null,null,null,null,null,null,null,null,null,null,null,null,null,null,null,null,null,null,null,null,null,null,null,0]
["","",null,"",null,null,null,null,null,null,null,null,null,null,null,null,null,null,null,null,null,null,null,null,null,null,null,null,null,null,null,null,null,null,null,0]
["","",null,"",null,null,null,null,null,null,null,null,null,null,null,null,null,null,null,null,null,null,null,null,null,null,null,null,null,null,null,null,null,null,null,0]
["","",null,"",null,null,null,null,null,null,null,null,null,null,null,null,null,null,null,null,null,null,null,null,null,null,null,null,null,null,null,null,null,null,null,0]
["","",null,"",null,null,null,null,null,null,null,null,null,null,null,null,null,null,null,null,null,null,null,null,null,null,null,null,null,null,null,null,null,null,null,0]
["","",null,"",null,null,null,null,null,null,null,null,null,null,null,null,null,null,null,null,null,null,null,null,null,null,null,null,null,null,null,null,null,null,null,0]
["","",null,"",null,null,null,null,null,null,null,null,null,null,null,null,null,null,null,null,null,null,null,null,null,null,null,null,null,null,null,null,null,null,null,0]
["","",null,"",null,null,null,null,null,null,null,null,null,null,null,null,null,null,null,null,null,null,null,null,null,null,null,null,null,null,null,null,null,null,null,0]
["","",null,"",null,null,null,null,null,null,null,null,null,null,null,null,null,null,null,null,null,null,null,null,null,null,null,null,null,null,null,null,null,null,null,0]
["","",null,"",null,null,null,null,null,null,null,null,null,null,null,null,null,null,null,null,null,null,null,null,null,null,null,null,null,null,null,null,null,null,null,0]
["","",null,"",null,null,null,null,null,null,null,null,null,null,null,null,null,null,null,null,null,null,null,null,null,null,null,null,null,null,null,null,null,null,null,0]
["","",null,"",null,null,null,null,null,null,null,null,null,null,null,null,null,null,null,null,null,null,null,null,null,null,null,null,null,null,null,null,null,null,null,0]
["","",null,"",null,null,null,null,null,null,null,null,null,null,null,null,null,null,null,null,null,null,null,null,null,null,null,null,null,null,null,null,null,null,null,0]
["","",null,"",null,null,null,null,null,null,null,null,null,null,null,null,null,null,null,null,null,null,null,null,null,null,null,null,null,null,null,null,null,null,null,0]
["","",null,"",null,null,null,null,null,null,null,null,null,null,null,null,null,null,null,null,null,null,null,null,null,null,null,null,null,null,null,null,null,null,null,0]
["","",null,"",null,null,null,null,null,null,null,null,null,null,null,null,null,null,null,null,null,null,null,null,null,null,null,null,null,null,null,null,null,null,null,0]
["","",null,"",null,null,null,null,null,null,null,null,null,null,null,null,null,null,null,null,null,null,null,null,null,null,null,null,null,null,null,null,null,null,null,0]
["","",null,"",null,null,null,null,null,null,null,null,null,null,null,null,null,null,null,null,null,null,null,null,null,null,null,null,null,null,null,null,null,null,null,0]
["","",null,"",null,null,null,null,null,null,null,null,null,null,null,null,null,null,null,null,null,null,null,null,null,null,null,null,null,null,null,null,null,null,null,0]
["","",null,"",null,null,null,null,null,null,null,null,null,null,null,null,null,null,null,null,null,null,null,null,null,null,null,null,null,null,null,null,null,null,null,0]
["","",null,"",null,null,null,null,null,null,null,null,null,null,null,null,null,null,null,null,null,null,null,null,null,null,null,null,null,null,null,null,null,null,null,0]
["","",null,"",null,null,null,null,null,null,null,null,null,null,null,null,null,null,null,null,null,null,null,null,null,null,null,null,null,null,null,null,null,null,null,0]
["","",null,"",null,null,null,null,null,null,null,null,null,null,null,null,null,null,null,null,null,null,null,null,null,null,null,null,null,null,null,null,null,null,null,0]
["","",null,"",null,null,null,null,null,null,null,null,null,null,null,null,null,null,null,null,null,null,null,null,null,null,null,null,null,null,null,null,null,null,null,0]
["","",null,"",null,null,null,null,null,null,null,null,null,null,null,null,null,null,null,null,null,null,null,null,null,null,null,null,null,null,null,null,null,null,null,0]
["","",null,"",null,null,null,null,null,null,null,null,null,null,null,null,null,null,null,null,null,null,null,null,null,null,null,null,null,null,null,null,null,null,null,0]
["","",null,"",null,null,null,null,null,null,null,null,null,null,null,null,null,null,null,null,null,null,null,null,null,null,null,null,null,null,null,null,null,null,null,0]
["","",null,"",null,null,null,null,null,null,null,null,null,null,null,null,null,null,null,null,null,null,null,null,null,null,null,null,null,null,null,null,null,null,null,0]
["","",null,"",null,null,null,null,null,null,null,null,null,null,null,null,null,null,null,null,null,null,null,null,null,null,null,null,null,null,null,null,null,null,null,0]
["","",null,"",null,null,null,null,null,null,null,null,null,null,null,null,null,null,null,null,null,null,null,null,null,null,null,null,null,null,null,null,null,null,null,0]
["","",null,"",null,null,null,null,null,null,null,null,null,null,null,null,null,null,null,null,null,null,null,null,null,null,null,null,null,null,null,null,null,null,null,0]
["","",null,"",null,null,null,null,null,null,null,null,null,null,null,null,null,null,null,null,null,null,null,null,null,null,null,null,null,null,null,null,null,null,null,0]
["","",null,"",null,null,null,null,null,null,null,null,null,null,null,null,null,null,null,null,null,null,null,null,null,null,null,null,null,null,null,null,null,null,null,0]
["","",null,"",null,null,null,null,null,null,null,null,null,null,null,null,null,null,null,null,null,null,null,null,null,null,null,null,null,null,null,null,null,null,null,0]
["","",null,"",null,null,null,null,null,null,null,null,null,null,null,null,null,null,null,null,null,null,null,null,null,null,null,null,null,null,null,null,null,null,null,0]
["","",null,"",null,null,null,null,null,null,null,null,null,null,null,null,null,null,null,null,null,null,null,null,null,null,null,null,null,null,null,null,null,null,null,0]
["","",null,"",null,null,null,null,null,null,null,null,null,null,null,null,null,null,null,null,null,null,null,null,null,null,null,null,null,null,null,null,null,null,null,0]
["","",null,"",null,null,null,null,null,null,null,null,null,null,null,null,null,null,null,null,null,null,null,null,null,null,null,null,null,null,null,null,null,null,null,0]
["","",null,"",null,null,null,null,null,null,null,null,null,null,null,null,null,null,null,null,null,null,null,null,null,null,null,null,null,null,null,null,null,null,null,0]
["","",null,"",null,null,null,null,null,null,null,null,null,null,null,null,null,null,null,null,null,null,null,null,null,null,null,null,null,null,null,null,null,null,null,0]
["","",null,"",null,null,null,null,null,null,null,null,null,null,null,null,null,null,null,null,null,null,null,null,null,null,null,null,null,null,null,null,null,null,null,0]
["","",null,"",null,null,null,null,null,null,null,null,null,null,null,null,null,null,null,null,null,null,null,null,null,null,null,null,null,null,null,null,null,null,null,0]
["","",null,"",null,null,null,null,null,null,null,null,null,null,null,null,null,null,null,null,null,null,null,null,null,null,null,null,null,null,null,null,null,null,null,0]
["","",null,"",null,null,null,null,null,null,null,null,null,null,null,null,null,null,null,null,null,null,null,null,null,null,null,null,null,null,null,null,null,null,null,0]
["","",null,"",null,null,null,null,null,null,null,null,null,null,null,null,null,null,null,null,null,null,null,null,null,null,null,null,null,null,null,null,null,null,null,0]
["","",null,"",null,null,null,null,null,null,null,null,null,null,null,null,null,null,null,null,null,null,null,null,null,null,null,null,null,null,null,null,null,null,null,0]
["","",null,"",null,null,null,null,null,null,null,null,null,null,null,null,null,null,null,null,null,null,null,null,null,null,null,null,null,null,null,null,null,null,null,0]
["","",null,"",null,null,null,null,null,null,null,null,null,null,null,null,null,null,null,null,null,null,null,null,null,null,null,null,null,null,null,null,null,null,null,0]
["","",null,"",null,null,null,null,null,null,null,null,null,null,null,null,null,null,null,null,null,null,null,null,null,null,null,null,null,null,null,null,null,null,null,0]
["","",null,"",null,null,null,null,null,null,null,null,null,null,null,null,null,null,null,null,null,null,null,null,null,null,null,null,null,null,null,null,null,null,null,0]
["","",null,"",null,null,null,null,null,null,null,null,null,null,null,null,null,null,null,null,null,null,null,null,null,null,null,null,null,null,null,null,null,null,null,0]
["","",null,"",null,null,null,null,null,null,null,null,null,null,null,null,null,null,null,null,null,null,null,null,null,null,null,null,null,null,null,null,null,null,null,0]
[{"$f":"IFERROR(VLOOKUP(C341,노무자료,6,0),\"\")","v":""},{"$f":"IFERROR(VLOOKUP(C341,노무자료,4,0),\"\")","v":""},null,{"$f":"IF(C341=\"\",\"\",IF(ISERROR(VLOOKUP(C341,노무자료,2,0)),\"노무DATA없음\",VLOOKUP(C341,노무자료,2,0)))","v":""},null,null,null,null,null,null,null,null,null,null,null,null,null,null,null,null,null,null,null,null,null,null,null,null,null,null,null,null,null,null,null,{"$f":"SUM(E341:AI341)","v":0}]
["","",null,"",null,null,null,null,null,null,null,null,null,null,null,null,null,null,null,null,null,null,null,null,null,null,null,null,null,null,null,null,null,null,null,0]
["","",null,"",null,null,null,null,null,null,null,null,null,null,null,null,null,null,null,null,null,null,null,null,null,null,null,null,null,null,null,null,null,null,null,0]
["","",null,"",null,null,null,null,null,null,null,null,null,null,null,null,null,null,null,null,null,null,null,null,null,null,null,null,null,null,null,null,null,null,null,0]
["","",null,"",null,null,null,null,null,null,null,null,null,null,null,null,null,null,null,null,null,null,null,null,null,null,null,null,null,null,null,null,null,null,null,0]
["","",null,"",null,null,null,null,null,null,null,null,null,null,null,null,null,null,null,null,null,null,null,null,null,null,null,null,null,null,null,null,null,null,null,0]
["","",null,"",null,null,null,null,null,null,null,null,null,null,null,null,null,null,null,null,null,null,null,null,null,null,null,null,null,null,null,null,null,null,null,0]
["","",null,"",null,null,null,null,null,null,null,null,null,null,null,null,null,null,null,null,null,null,null,null,null,null,null,null,null,null,null,null,null,null,null,0]
["","",null,"",null,null,null,null,null,null,null,null,null,null,null,null,null,null,null,null,null,null,null,null,null,null,null,null,null,null,null,null,null,null,null,0]
["","",null,"",null,null,null,null,null,null,null,null,null,null,null,null,null,null,null,null,null,null,null,null,null,null,null,null,null,null,null,null,null,null,null,0]
["","",null,"",null,null,null,null,null,null,null,null,null,null,null,null,null,null,null,null,null,null,null,null,null,null,null,null,null,null,null,null,null,null,null,0]
["","",null,"",null,null,null,null,null,null,null,null,null,null,null,null,null,null,null,null,null,null,null,null,null,null,null,null,null,null,null,null,null,null,null,0]
["","",null,"",null,null,null,null,null,null,null,null,null,null,null,null,null,null,null,null,null,null,null,null,null,null,null,null,null,null,null,null,null,null,null,0]
["","",null,"",null,null,null,null,null,null,null,null,null,null,null,null,null,null,null,null,null,null,null,null,null,null,null,null,null,null,null,null,null,null,null,0]
["","",null,"",null,null,null,null,null,null,null,null,null,null,null,null,null,null,null,null,null,null,null,null,null,null,null,null,null,null,null,null,null,null,null,0]
["","",null,"",null,null,null,null,null,null,null,null,null,null,null,null,null,null,null,null,null,null,null,null,null,null,null,null,null,null,null,null,null,null,null,0]
["","",null,"",null,null,null,null,null,null,null,null,null,null,null,null,null,null,null,null,null,null,null,null,null,null,null,null,null,null,null,null,null,null,null,0]
["","",null,"",null,null,null,null,null,null,null,null,null,null,null,null,null,null,null,null,null,null,null,null,null,null,null,null,null,null,null,null,null,null,null,0]
["","",null,"",null,null,null,null,null,null,null,null,null,null,null,null,null,null,null,null,null,null,null,null,null,null,null,null,null,null,null,null,null,null,null,0]
["","",null,"",null,null,null,null,null,null,null,null,null,null,null,null,null,null,null,null,null,null,null,null,null,null,null,null,null,null,null,null,null,null,null,0]
["","",null,"",null,null,null,null,null,null,null,null,null,null,null,null,null,null,null,null,null,null,null,null,null,null,null,null,null,null,null,null,null,null,null,0]
["","",null,"",null,null,null,null,null,null,null,null,null,null,null,null,null,null,null,null,null,null,null,null,null,null,null,null,null,null,null,null,null,null,null,0]
["","",null,"",null,null,null,null,null,null,null,null,null,null,null,null,null,null,null,null,null,null,null,null,null,null,null,null,null,null,null,null,null,null,null,0]
["","",null,"",null,null,null,null,null,null,null,null,null,null,null,null,null,null,null,null,null,null,null,null,null,null,null,null,null,null,null,null,null,null,null,0]
["","",null,"",null,null,null,null,null,null,null,null,null,null,null,null,null,null,null,null,null,null,null,null,null,null,null,null,null,null,null,null,null,null,null,0]
["","",null,"",null,null,null,null,null,null,null,null,null,null,null,null,null,null,null,null,null,null,null,null,null,null,null,null,null,null,null,null,null,null,null,0]
["","",null,"",null,null,null,null,null,null,null,null,null,null,null,null,null,null,null,null,null,null,null,null,null,null,null,null,null,null,null,null,null,null,null,0]
["","",null,"",null,null,null,null,null,null,null,null,null,null,null,null,null,null,null,null,null,null,null,null,null,null,null,null,null,null,null,null,null,null,null,0]
["","",null,"",null,null,null,null,null,null,null,null,null,null,null,null,null,null,null,null,null,null,null,null,null,null,null,null,null,null,null,null,null,null,null,0]
["","",null,"",null,null,null,null,null,null,null,null,null,null,null,null,null,null,null,null,null,null,null,null,null,null,null,null,null,null,null,null,null,null,null,0]
["","",null,"",null,null,null,null,null,null,null,null,null,null,null,null,null,null,null,null,null,null,null,null,null,null,null,null,null,null,null,null,null,null,null,0]
["","",null,"",null,null,null,null,null,null,null,null,null,null,null,null,null,null,null,null,null,null,null,null,null,null,null,null,null,null,null,null,null,null,null,0]
["","",null,"",null,null,null,null,null,null,null,null,null,null,null,null,null,null,null,null,null,null,null,null,null,null,null,null,null,null,null,null,null,null,null,0]
["","",null,"",null,null,null,null,null,null,null,null,null,null,null,null,null,null,null,null,null,null,null,null,null,null,null,null,null,null,null,null,null,null,null,0]
["","",null,"",null,null,null,null,null,null,null,null,null,null,null,null,null,null,null,null,null,null,null,null,null,null,null,null,null,null,null,null,null,null,null,0]
["","",null,"",null,null,null,null,null,null,null,null,null,null,null,null,null,null,null,null,null,null,null,null,null,null,null,null,null,null,null,null,null,null,null,0]
["","",null,"",null,null,null,null,null,null,null,null,null,null,null,null,null,null,null,null,null,null,null,null,null,null,null,null,null,null,null,null,null,null,null,0]
["","",null,"",null,null,null,null,null,null,null,null,null,null,null,null,null,null,null,null,null,null,null,null,null,null,null,null,null,null,null,null,null,null,null,0]
["","",null,"",null,null,null,null,null,null,null,null,null,null,null,null,null,null,null,null,null,null,null,null,null,null,null,null,null,null,null,null,null,null,null,0]
["","",null,"",null,null,null,null,null,null,null,null,null,null,null,null,null,null,null,null,null,null,null,null,null,null,null,null,null,null,null,null,null,null,null,0]
["","",null,"",null,null,null,null,null,null,null,null,null,null,null,null,null,null,null,null,null,null,null,null,null,null,null,null,null,null,null,null,null,null,null,0]
["","",null,"",null,null,null,null,null,null,null,null,null,null,null,null,null,null,null,null,null,null,null,null,null,null,null,null,null,null,null,null,null,null,null,0]
["","",null,"",null,null,null,null,null,null,null,null,null,null,null,null,null,null,null,null,null,null,null,null,null,null,null,null,null,null,null,null,null,null,null,0]
["","",null,"",null,null,null,null,null,null,null,null,null,null,null,null,null,null,null,null,null,null,null,null,null,null,null,null,null,null,null,null,null,null,null,0]
["","",null,"",null,null,null,null,null,null,null,null,null,null,null,null,null,null,null,null,null,null,null,null,null,null,null,null,null,null,null,null,null,null,null,0]
["","",null,"",null,null,null,null,null,null,null,null,null,null,null,null,null,null,null,null,null,null,null,null,null,null,null,null,null,null,null,null,null,null,null,0]
["","",null,"",null,null,null,null,null,null,null,null,null,null,null,null,null,null,null,null,null,null,null,null,null,null,null,null,null,null,null,null,null,null,null,0]
["","",null,"",null,null,null,null,null,null,null,null,null,null,null,null,null,null,null,null,null,null,null,null,null,null,null,null,null,null,null,null,null,null,null,0]
["","",null,"",null,null,null,null,null,null,null,null,null,null,null,null,null,null,null,null,null,null,null,null,null,null,null,null,null,null,null,null,null,null,null,0]
["","",null,"",null,null,null,null,null,null,null,null,null,null,null,null,null,null,null,null,null,null,null,null,null,null,null,null,null,null,null,null,null,null,null,0]
["","",null,"",null,null,null,null,null,null,null,null,null,null,null,null,null,null,null,null,null,null,null,null,null,null,null,null,null,null,null,null,null,null,null,0]
["","",null,"",null,null,null,null,null,null,null,null,null,null,null,null,null,null,null,null,null,null,null,null,null,null,null,null,null,null,null,null,null,null,null,0]
["","",null,"",null,null,null,null,null,null,null,null,null,null,null,null,null,null,null,null,null,null,null,null,null,null,null,null,null,null,null,null,null,null,null,0]
["","",null,"",null,null,null,null,null,null,null,null,null,null,null,null,null,null,null,null,null,null,null,null,null,null,null,null,null,null,null,null,null,null,null,0]
["","",null,"",null,null,null,null,null,null,null,null,null,null,null,null,null,null,null,null,null,null,null,null,null,null,null,null,null,null,null,null,null,null,null,0]
["","",null,"",null,null,null,null,null,null,null,null,null,null,null,null,null,null,null,null,null,null,null,null,null,null,null,null,null,null,null,null,null,null,null,0]
["","",null,"",null,null,null,null,null,null,null,null,null,null,null,null,null,null,null,null,null,null,null,null,null,null,null,null,null,null,null,null,null,null,null,0]
["","",null,"",null,null,null,null,null,null,null,null,null,null,null,null,null,null,null,null,null,null,null,null,null,null,null,null,null,null,null,null,null,null,null,0]
["","",null,"",null,null,null,null,null,null,null,null,null,null,null,null,null,null,null,null,null,null,null,null,null,null,null,null,null,null,null,null,null,null,null,0]
["","",null,"",null,null,null,null,null,null,null,null,null,null,null,null,null,null,null,null,null,null,null,null,null,null,null,null,null,null,null,null,null,null,null,0]
["","",null,"",null,null,null,null,null,null,null,null,null,null,null,null,null,null,null,null,null,null,null,null,null,null,null,null,null,null,null,null,null,null,null,0]
["","",null,"",null,null,null,null,null,null,null,null,null,null,null,null,null,null,null,null,null,null,null,null,null,null,null,null,null,null,null,null,null,null,null,0]
["","",null,"",null,null,null,null,null,null,null,null,null,null,null,null,null,null,null,null,null,null,null,null,null,null,null,null,null,null,null,null,null,null,null,0]
["","",null,"",null,null,null,null,null,null,null,null,null,null,null,null,null,null,null,null,null,null,null,null,null,null,null,null,null,null,null,null,null,null,null,0]
[{"$f":"IFERROR(VLOOKUP(C405,노무자료,6,0),\"\")","v":""},{"$f":"IFERROR(VLOOKUP(C405,노무자료,4,0),\"\")","v":""},null,{"$f":"IF(C405=\"\",\"\",IF(ISERROR(VLOOKUP(C405,노무자료,2,0)),\"노무DATA없음\",VLOOKUP(C405,노무자료,2,0)))","v":""},null,null,null,null,null,null,null,null,null,null,null,null,null,null,null,null,null,null,null,null,null,null,null,null,null,null,null,null,null,null,null,{"$f":"SUM(E405:AI405)","v":0}]
["","",null,"",null,null,null,null,null,null,null,null,null,null,null,null,null,null,null,null,null,null,null,null,null,null,null,null,null,null,null,null,null,null,null,0]
["","",null,"",null,null,null,null,null,null,null,null,null,null,null,null,null,null,null,null,null,null,null,null,null,null,null,null,null,null,null,null,null,null,null,0]
["","",null,"",null,null,null,null,null,null,null,null,null,null,null,null,null,null,null,null,null,null,null,null,null,null,null,null,null,null,null,null,null,null,null,0]
["","",null,"",null,null,null,null,null,null,null,null,null,null,null,null,null,null,null,null,null,null,null,null,null,null,null,null,null,null,null,null,null,null,null,0]
["","",null,"",null,null,null,null,null,null,null,null,null,null,null,null,null,null,null,null,null,null,null,null,null,null,null,null,null,null,null,null,null,null,null,0]
["","",null,"",null,null,null,null,null,null,null,null,null,null,null,null,null,null,null,null,null,null,null,null,null,null,null,null,null,null,null,null,null,null,null,0]
["","",null,"",null,null,null,null,null,null,null,null,null,null,null,null,null,null,null,null,null,null,null,null,null,null,null,null,null,null,null,null,null,null,null,0]
["","",null,"",null,null,null,null,null,null,null,null,null,null,null,null,null,null,null,null,null,null,null,null,null,null,null,null,null,null,null,null,null,null,null,0]
["","",null,"",null,null,null,null,null,null,null,null,null,null,null,null,null,null,null,null,null,null,null,null,null,null,null,null,null,null,null,null,null,null,null,0]
["","",null,"",null,null,null,null,null,null,null,null,null,null,null,null,null,null,null,null,null,null,null,null,null,null,null,null,null,null,null,null,null,null,null,0]
["","",null,"",null,null,null,null,null,null,null,null,null,null,null,null,null,null,null,null,null,null,null,null,null,null,null,null,null,null,null,null,null,null,null,0]
["","",null,"",null,null,null,null,null,null,null,null,null,null,null,null,null,null,null,null,null,null,null,null,null,null,null,null,null,null,null,null,null,null,null,0]
["","",null,"",null,null,null,null,null,null,null,null,null,null,null,null,null,null,null,null,null,null,null,null,null,null,null,null,null,null,null,null,null,null,null,0]
["","",null,"",null,null,null,null,null,null,null,null,null,null,null,null,null,null,null,null,null,null,null,null,null,null,null,null,null,null,null,null,null,null,null,0]
["","",null,"",null,null,null,null,null,null,null,null,null,null,null,null,null,null,null,null,null,null,null,null,null,null,null,null,null,null,null,null,null,null,null,0]
["","",null,"",null,null,null,null,null,null,null,null,null,null,null,null,null,null,null,null,null,null,null,null,null,null,null,null,null,null,null,null,null,null,null,0]
["","",null,"",null,null,null,null,null,null,null,null,null,null,null,null,null,null,null,null,null,null,null,null,null,null,null,null,null,null,null,null,null,null,null,0]
["","",null,"",null,null,null,null,null,null,null,null,null,null,null,null,null,null,null,null,null,null,null,null,null,null,null,null,null,null,null,null,null,null,null,0]
["","",null,"",null,null,null,null,null,null,null,null,null,null,null,null,null,null,null,null,null,null,null,null,null,null,null,null,null,null,null,null,null,null,null,0]
["","",null,"",null,null,null,null,null,null,null,null,null,null,null,null,null,null,null,null,null,null,null,null,null,null,null,null,null,null,null,null,null,null,null,0]
["","",null,"",null,null,null,null,null,null,null,null,null,null,null,null,null,null,null,null,null,null,null,null,null,null,null,null,null,null,null,null,null,null,null,0]
["","",null,"",null,null,null,null,null,null,null,null,null,null,null,null,null,null,null,null,null,null,null,null,null,null,null,null,null,null,null,null,null,null,null,0]
["","",null,"",null,null,null,null,null,null,null,null,null,null,null,null,null,null,null,null,null,null,null,null,null,null,null,null,null,null,null,null,null,null,null,0]
["","",null,"",null,null,null,null,null,null,null,null,null,null,null,null,null,null,null,null,null,null,null,null,null,null,null,null,null,null,null,null,null,null,null,0]
["","",null,"",null,null,null,null,null,null,null,null,null,null,null,null,null,null,null,null,null,null,null,null,null,null,null,null,null,null,null,null,null,null,null,0]
["","",null,"",null,null,null,null,null,null,null,null,null,null,null,null,null,null,null,null,null,null,null,null,null,null,null,null,null,null,null,null,null,null,null,0]
["","",null,"",null,null,null,null,null,null,null,null,null,null,null,null,null,null,null,null,null,null,null,null,null,null,null,null,null,null,null,null,null,null,null,0]
["","",null,"",null,null,null,null,null,null,null,null,null,null,null,null,null,null,null,null,null,null,null,null,null,null,null,null,null,null,null,null,null,null,null,0]
["","",null,"",null,null,null,null,null,null,null,null,null,null,null,null,null,null,null,null,null,null,null,null,null,null,null,null,null,null,null,null,null,null,null,0]
["","",null,"",null,null,null,null,null,null,null,null,null,null,null,null,null,null,null,null,null,null,null,null,null,null,null,null,null,null,null,null,null,null,null,0]
["","",null,"",null,null,null,null,null,null,null,null,null,null,null,null,null,null,null,null,null,null,null,null,null,null,null,null,null,null,null,null,null,null,null,0]
["","",null,"",null,null,null,null,null,null,null,null,null,null,null,null,null,null,null,null,null,null,null,null,null,null,null,null,null,null,null,null,null,null,null,0]
["","",null,"",null,null,null,null,null,null,null,null,null,null,null,null,null,null,null,null,null,null,null,null,null,null,null,null,null,null,null,null,null,null,null,0]
["","",null,"",null,null,null,null,null,null,null,null,null,null,null,null,null,null,null,null,null,null,null,null,null,null,null,null,null,null,null,null,null,null,null,0]
["","",null,"",null,null,null,null,null,null,null,null,null,null,null,null,null,null,null,null,null,null,null,null,null,null,null,null,null,null,null,null,null,null,null,0]
["","",null,"",null,null,null,null,null,null,null,null,null,null,null,null,null,null,null,null,null,null,null,null,null,null,null,null,null,null,null,null,null,null,null,0]
["","",null,"",null,null,null,null,null,null,null,null,null,null,null,null,null,null,null,null,null,null,null,null,null,null,null,null,null,null,null,null,null,null,null,0]
["","",null,"",null,null,null,null,null,null,null,null,null,null,null,null,null,null,null,null,null,null,null,null,null,null,null,null,null,null,null,null,null,null,null,0]
["","",null,"",null,null,null,null,null,null,null,null,null,null,null,null,null,null,null,null,null,null,null,null,null,null,null,null,null,null,null,null,null,null,null,0]
["","",null,"",null,null,null,null,null,null,null,null,null,null,null,null,null,null,null,null,null,null,null,null,null,null,null,null,null,null,null,null,null,null,null,0]
["","",null,"",null,null,null,null,null,null,null,null,null,null,null,null,null,null,null,null,null,null,null,null,null,null,null,null,null,null,null,null,null,null,null,0]
["","",null,"",null,null,null,null,null,null,null,null,null,null,null,null,null,null,null,null,null,null,null,null,null,null,null,null,null,null,null,null,null,null,null,0]
["","",null,"",null,null,null,null,null,null,null,null,null,null,null,null,null,null,null,null,null,null,null,null,null,null,null,null,null,null,null,null,null,null,null,0]
["","",null,"",null,null,null,null,null,null,null,null,null,null,null,null,null,null,null,null,null,null,null,null,null,null,null,null,null,null,null,null,null,null,null,0]
["","",null,"",null,null,null,null,null,null,null,null,null,null,null,null,null,null,null,null,null,null,null,null,null,null,null,null,null,null,null,null,null,null,null,0]
["","",null,"",null,null,null,null,null,null,null,null,null,null,null,null,null,null,null,null,null,null,null,null,null,null,null,null,null,null,null,null,null,null,null,0]
["","",null,"",null,null,null,null,null,null,null,null,null,null,null,null,null,null,null,null,null,null,null,null,null,null,null,null,null,null,null,null,null,null,null,0]
["","",null,"",null,null,null,null,null,null,null,null,null,null,null,null,null,null,null,null,null,null,null,null,null,null,null,null,null,null,null,null,null,null,null,0]
["","",null,"",null,null,null,null,null,null,null,null,null,null,null,null,null,null,null,null,null,null,null,null,null,null,null,null,null,null,null,null,null,null,null,0]
["","",null,"",null,null,null,null,null,null,null,null,null,null,null,null,null,null,null,null,null,null,null,null,null,null,null,null,null,null,null,null,null,null,null,0]
["","",null,"",null,null,null,null,null,null,null,null,null,null,null,null,null,null,null,null,null,null,null,null,null,null,null,null,null,null,null,null,null,null,null,0]
["","",null,"",null,null,null,null,null,null,null,null,null,null,null,null,null,null,null,null,null,null,null,null,null,null,null,null,null,null,null,null,null,null,null,0]
["","",null,"",null,null,null,null,null,null,null,null,null,null,null,null,null,null,null,null,null,null,null,null,null,null,null,null,null,null,null,null,null,null,null,0]
["","",null,"",null,null,null,null,null,null,null,null,null,null,null,null,null,null,null,null,null,null,null,null,null,null,null,null,null,null,null,null,null,null,null,0]
["","",null,"",null,null,null,null,null,null,null,null,null,null,null,null,null,null,null,null,null,null,null,null,null,null,null,null,null,null,null,null,null,null,null,0]
["","",null,"",null,null,null,null,null,null,null,null,null,null,null,null,null,null,null,null,null,null,null,null,null,null,null,null,null,null,null,null,null,null,null,0]
["","",null,"",null,null,null,null,null,null,null,null,null,null,null,null,null,null,null,null,null,null,null,null,null,null,null,null,null,null,null,null,null,null,null,0]
["","",null,"",null,null,null,null,null,null,null,null,null,null,null,null,null,null,null,null,null,null,null,null,null,null,null,null,null,null,null,null,null,null,null,0]
["","",null,"",null,null,null,null,null,null,null,null,null,null,null,null,null,null,null,null,null,null,null,null,null,null,null,null,null,null,null,null,null,null,null,0]
["","",null,"",null,null,null,null,null,null,null,null,null,null,null,null,null,null,null,null,null,null,null,null,null,null,null,null,null,null,null,null,null,null,null,0]
["","",null,"",null,null,null,null,null,null,null,null,null,null,null,null,null,null,null,null,null,null,null,null,null,null,null,null,null,null,null,null,null,null,null,0]
["","",null,"",null,null,null,null,null,null,null,null,null,null,null,null,null,null,null,null,null,null,null,null,null,null,null,null,null,null,null,null,null,null,null,0]
["","",null,"",null,null,null,null,null,null,null,null,null,null,null,null,null,null,null,null,null,null,null,null,null,null,null,null,null,null,null,null,null,null,null,0]
[{"$f":"IFERROR(VLOOKUP(C469,노무자료,6,0),\"\")","v":""},{"$f":"IFERROR(VLOOKUP(C469,노무자료,4,0),\"\")","v":""},null,{"$f":"IF(C469=\"\",\"\",IF(ISERROR(VLOOKUP(C469,노무자료,2,0)),\"노무DATA없음\",VLOOKUP(C469,노무자료,2,0)))","v":""},null,null,null,null,null,null,null,null,null,null,null,null,null,null,null,null,null,null,null,null,null,null,null,null,null,null,null,null,null,null,null,{"$f":"SUM(E469:AI469)","v":0}]
["","",null,"",null,null,null,null,null,null,null,null,null,null,null,null,null,null,null,null,null,null,null,null,null,null,null,null,null,null,null,null,null,null,null,0]
["","",null,"",null,null,null,null,null,null,null,null,null,null,null,null,null,null,null,null,null,null,null,null,null,null,null,null,null,null,null,null,null,null,null,0]
["","",null,"",null,null,null,null,null,null,null,null,null,null,null,null,null,null,null,null,null,null,null,null,null,null,null,null,null,null,null,null,null,null,null,0]
["","",null,"",null,null,null,null,null,null,null,null,null,null,null,null,null,null,null,null,null,null,null,null,null,null,null,null,null,null,null,null,null,null,null,0]
["","",null,"",null,null,null,null,null,null,null,null,null,null,null,null,null,null,null,null,null,null,null,null,null,null,null,null,null,null,null,null,null,null,null,0]
["","",null,"",null,null,null,null,null,null,null,null,null,null,null,null,null,null,null,null,null,null,null,null,null,null,null,null,null,null,null,null,null,null,null,0]
["","",null,"",null,null,null,null,null,null,null,null,null,null,null,null,null,null,null,null,null,null,null,null,null,null,null,null,null,null,null,null,null,null,null,0]
["","",null,"",null,null,null,null,null,null,null,null,null,null,null,null,null,null,null,null,null,null,null,null,null,null,null,null,null,null,null,null,null,null,null,0]
["","",null,"",null,null,null,null,null,null,null,null,null,null,null,null,null,null,null,null,null,null,null,null,null,null,null,null,null,null,null,null,null,null,null,0]
["","",null,"",null,null,null,null,null,null,null,null,null,null,null,null,null,null,null,null,null,null,null,null,null,null,null,null,null,null,null,null,null,null,null,0]
["","",null,"",null,null,null,null,null,null,null,null,null,null,null,null,null,null,null,null,null,null,null,null,null,null,null,null,null,null,null,null,null,null,null,0]
["","",null,"",null,null,null,null,null,null,null,null,null,null,null,null,null,null,null,null,null,null,null,null,null,null,null,null,null,null,null,null,null,null,null,0]
["","",null,"",null,null,null,null,null,null,null,null,null,null,null,null,null,null,null,null,null,null,null,null,null,null,null,null,null,null,null,null,null,null,null,0]
["","",null,"",null,null,null,null,null,null,null,null,null,null,null,null,null,null,null,null,null,null,null,null,null,null,null,null,null,null,null,null,null,null,null,0]
["","",null,"",null,null,null,null,null,null,null,null,null,null,null,null,null,null,null,null,null,null,null,null,null,null,null,null,null,null,null,null,null,null,null,0]
["","",null,"",null,null,null,null,null,null,null,null,null,null,null,null,null,null,null,null,null,null,null,null,null,null,null,null,null,null,null,null,null,null,null,0]
["","",null,"",null,null,null,null,null,null,null,null,null,null,null,null,null,null,null,null,null,null,null,null,null,null,null,null,null,null,null,null,null,null,null,0]
["","",null,"",null,null,null,null,null,null,null,null,null,null,null,null,null,null,null,null,null,null,null,null,null,null,null,null,null,null,null,null,null,null,null,0]
["","",null,"",null,null,null,null,null,null,null,null,null,null,null,null,null,null,null,null,null,null,null,null,null,null,null,null,null,null,null,null,null,null,null,0]
["","",null,"",null,null,null,null,null,null,null,null,null,null,null,null,null,null,null,null,null,null,null,null,null,null,null,null,null,null,null,null,null,null,null,0]
["","",null,"",null,null,null,null,null,null,null,null,null,null,null,null,null,null,null,null,null,null,null,null,null,null,null,null,null,null,null,null,null,null,null,0]
["","",null,"",null,null,null,null,null,null,null,null,null,null,null,null,null,null,null,null,null,null,null,null,null,null,null,null,null,null,null,null,null,null,null,0]
["","",null,"",null,null,null,null,null,null,null,null,null,null,null,null,null,null,null,null,null,null,null,null,null,null,null,null,null,null,null,null,null,null,null,0]
["","",null,"",null,null,null,null,null,null,null,null,null,null,null,null,null,null,null,null,null,null,null,null,null,null,null,null,null,null,null,null,null,null,null,0]
["","",null,"",null,null,null,null,null,null,null,null,null,null,null,null,null,null,null,null,null,null,null,null,null,null,null,null,null,null,null,null,null,null,null,0]
["","",null,"",null,null,null,null,null,null,null,null,null,null,null,null,null,null,null,null,null,null,null,null,null,null,null,null,null,null,null,null,null,null,null,0]
["","",null,"",null,null,null,null,null,null,null,null,null,null,null,null,null,null,null,null,null,null,null,null,null,null,null,null,null,null,null,null,null,null,null,0]
["","",null,"",null,null,null,null,null,null,null,null,null,null,null,null,null,null,null,null,null,null,null,null,null,null,null,null,null,null,null,null,null,null,null,0]
["","",null,"",null,null,null,null,null,null,null,null,null,null,null,null,null,null,null,null,null,null,null,null,null,null,null,null,null,null,null,null,null,null,null,0]
["","",null,"",null,null,null,null,null,null,null,null,null,null,null,null,null,null,null,null,null,null,null,null,null,null,null,null,null,null,null,null,null,null,null,0]
["","",null,"",null,null,null,null,null,null,null,null,null,null,null,null,null,null,null,null,null,null,null,null,null,null,null,null,null,null,null,null,null,null,null,0]
["","",null,"",null,null,null,null,null,null,null,null,null,null,null,null,null,null,null,null,null,null,null,null,null,null,null,null,null,null,null,null,null,null,null,0]
["","",null,"",null,null,null,null,null,null,null,null,null,null,null,null,null,null,null,null,null,null,null,null,null,null,null,null,null,null,null,null,null,null,null,0]
["","",null,"",null,null,null,null,null,null,null,null,null,null,null,null,null,null,null,null,null,null,null,null,null,null,null,null,null,null,null,null,null,null,null,0]
["","",null,"",null,null,null,null,null,null,null,null,null,null,null,null,null,null,null,null,null,null,null,null,null,null,null,null,null,null,null,null,null,null,null,0]
["","",null,"",null,null,null,null,null,null,null,null,null,null,null,null,null,null,null,null,null,null,null,null,null,null,null,null,null,null,null,null,null,null,null,0]
["","",null,"",null,null,null,null,null,null,null,null,null,null,null,null,null,null,null,null,null,null,null,null,null,null,null,null,null,null,null,null,null,null,null,0]
["","",null,"",null,null,null,null,null,null,null,null,null,null,null,null,null,null,null,null,null,null,null,null,null,null,null,null,null,null,null,null,null,null,null,0]
["","",null,"",null,null,null,null,null,null,null,null,null,null,null,null,null,null,null,null,null,null,null,null,null,null,null,null,null,null,null,null,null,null,null,0]
["","",null,"",null,null,null,null,null,null,null,null,null,null,null,null,null,null,null,null,null,null,null,null,null,null,null,null,null,null,null,null,null,null,null,0]
["","",null,"",null,null,null,null,null,null,null,null,null,null,null,null,null,null,null,null,null,null,null,null,null,null,null,null,null,null,null,null,null,null,null,0]
["","",null,"",null,null,null,null,null,null,null,null,null,null,null,null,null,null,null,null,null,null,null,null,null,null,null,null,null,null,null,null,null,null,null,0]
["","",null,"",null,null,null,null,null,null,null,null,null,null,null,null,null,null,null,null,null,null,null,null,null,null,null,null,null,null,null,null,null,null,null,0]
["","",null,"",null,null,null,null,null,null,null,null,null,null,null,null,null,null,null,null,null,null,null,null,null,null,null,null,null,null,null,null,null,null,null,0]
["","",null,"",null,null,null,null,null,null,null,null,null,null,null,null,null,null,null,null,null,null,null,null,null,null,null,null,null,null,null,null,null,null,null,0]
["","",null,"",null,null,null,null,null,null,null,null,null,null,null,null,null,null,null,null,null,null,null,null,null,null,null,null,null,null,null,null,null,null,null,0]
["","",null,"",null,null,null,null,null,null,null,null,null,null,null,null,null,null,null,null,null,null,null,null,null,null,null,null,null,null,null,null,null,null,null,0]
["","",null,"",null,null,null,null,null,null,null,null,null,null,null,null,null,null,null,null,null,null,null,null,null,null,null,null,null,null,null,null,null,null,null,0]
["","",null,"",null,null,null,null,null,null,null,null,null,null,null,null,null,null,null,null,null,null,null,null,null,null,null,null,null,null,null,null,null,null,null,0]
["","",null,"",null,null,null,null,null,null,null,null,null,null,null,null,null,null,null,null,null,null,null,null,null,null,null,null,null,null,null,null,null,null,null,0]
["","",null,"",null,null,null,null,null,null,null,null,null,null,null,null,null,null,null,null,null,null,null,null,null,null,null,null,null,null,null,null,null,null,null,0]
["","",null,"",null,null,null,null,null,null,null,null,null,null,null,null,null,null,null,null,null,null,null,null,null,null,null,null,null,null,null,null,null,null,null,0]
["","",null,"",null,null,null,null,null,null,null,null,null,null,null,null,null,null,null,null,null,null,null,null,null,null,null,null,null,null,null,null,null,null,null,0]
["","",null,"",null,null,null,null,null,null,null,null,null,null,null,null,null,null,null,null,null,null,null,null,null,null,null,null,null,null,null,null,null,null,null,0]
["","",null,"",null,null,null,null,null,null,null,null,null,null,null,null,null,null,null,null,null,null,null,null,null,null,null,null,null,null,null,null,null,null,null,0]
["","",null,"",null,null,null,null,null,null,null,null,null,null,null,null,null,null,null,null,null,null,null,null,null,null,null,null,null,null,null,null,null,null,null,0]
["","",null,"",null,null,null,null,null,null,null,null,null,null,null,null,null,null,null,null,null,null,null,null,null,null,null,null,null,null,null,null,null,null,null,0]
["","",null,"",null,null,null,null,null,null,null,null,null,null,null,null,null,null,null,null,null,null,null,null,null,null,null,null,null,null,null,null,null,null,null,0]
["","",null,"",null,null,null,null,null,null,null,null,null,null,null,null,null,null,null,null,null,null,null,null,null,null,null,null,null,null,null,null,null,null,null,0]
["","",null,"",null,null,null,null,null,null,null,null,null,null,null,null,null,null,null,null,null,null,null,null,null,null,null,null,null,null,null,null,null,null,null,0]
["","",null,"",null,null,null,null,null,null,null,null,null,null,null,null,null,null,null,null,null,null,null,null,null,null,null,null,null,null,null,null,null,null,null,0]
["","",null,"",null,null,null,null,null,null,null,null,null,null,null,null,null,null,null,null,null,null,null,null,null,null,null,null,null,null,null,null,null,null,null,0]
["","",null,"",null,null,null,null,null,null,null,null,null,null,null,null,null,null,null,null,null,null,null,null,null,null,null,null,null,null,null,null,null,null,null,0]
[{"$f":"IFERROR(VLOOKUP(C533,노무자료,6,0),\"\")","v":""},{"$f":"IFERROR(VLOOKUP(C533,노무자료,4,0),\"\")","v":""},null,{"$f":"IF(C533=\"\",\"\",IF(ISERROR(VLOOKUP(C533,노무자료,2,0)),\"노무DATA없음\",VLOOKUP(C533,노무자료,2,0)))","v":""},null,null,null,null,null,null,null,null,null,null,null,null,null,null,null,null,null,null,null,null,null,null,null,null,null,null,null,null,null,null,null,{"$f":"SUM(E533:AI533)","v":0}]
["","",null,"",null,null,null,null,null,null,null,null,null,null,null,null,null,null,null,null,null,null,null,null,null,null,null,null,null,null,null,null,null,null,null,0]
["","",null,"",null,null,null,null,null,null,null,null,null,null,null,null,null,null,null,null,null,null,null,null,null,null,null,null,null,null,null,null,null,null,null,0]
["","",null,"",null,null,null,null,null,null,null,null,null,null,null,null,null,null,null,null,null,null,null,null,null,null,null,null,null,null,null,null,null,null,null,0]
["","",null,"",null,null,null,null,null,null,null,null,null,null,null,null,null,null,null,null,null,null,null,null,null,null,null,null,null,null,null,null,null,null,null,0]
["","",null,"",null,null,null,null,null,null,null,null,null,null,null,null,null,null,null,null,null,null,null,null,null,null,null,null,null,null,null,null,null,null,null,0]
["","",null,"",null,null,null,null,null,null,null,null,null,null,null,null,null,null,null,null,null,null,null,null,null,null,null,null,null,null,null,null,null,null,null,0]
["","",null,"",null,null,null,null,null,null,null,null,null,null,null,null,null,null,null,null,null,null,null,null,null,null,null,null,null,null,null,null,null,null,null,0]
["","",null,"",null,null,null,null,null,null,null,null,null,null,null,null,null,null,null,null,null,null,null,null,null,null,null,null,null,null,null,null,null,null,null,0]
["","",null,"",null,null,null,null,null,null,null,null,null,null,null,null,null,null,null,null,null,null,null,null,null,null,null,null,null,null,null,null,null,null,null,0]
["","",null,"",null,null,null,null,null,null,null,null,null,null,null,null,null,null,null,null,null,null,null,null,null,null,null,null,null,null,null,null,null,null,null,0]
["","",null,"",null,null,null,null,null,null,null,null,null,null,null,null,null,null,null,null,null,null,null,null,null,null,null,null,null,null,null,null,null,null,null,0]
["","",null,"",null,null,null,null,null,null,null,null,null,null,null,null,null,null,null,null,null,null,null,null,null,null,null,null,null,null,null,null,null,null,null,0]
["","",null,"",null,null,null,null,null,null,null,null,null,null,null,null,null,null,null,null,null,null,null,null,null,null,null,null,null,null,null,null,null,null,null,0]
["","",null,"",null,null,null,null,null,null,null,null,null,null,null,null,null,null,null,null,null,null,null,null,null,null,null,null,null,null,null,null,null,null,null,0]
["","",null,"",null,null,null,null,null,null,null,null,null,null,null,null,null,null,null,null,null,null,null,null,null,null,null,null,null,null,null,null,null,null,null,0]
["","",null,"",null,null,null,null,null,null,null,null,null,null,null,null,null,null,null,null,null,null,null,null,null,null,null,null,null,null,null,null,null,null,null,0]
["","",null,"",null,null,null,null,null,null,null,null,null,null,null,null,null,null,null,null,null,null,null,null,null,null,null,null,null,null,null,null,null,null,null,0]
["","",null,"",null,null,null,null,null,null,null,null,null,null,null,null,null,null,null,null,null,null,null,null,null,null,null,null,null,null,null,null,null,null,null,0]
["","",null,"",null,null,null,null,null,null,null,null,null,null,null,null,null,null,null,null,null,null,null,null,null,null,null,null,null,null,null,null,null,null,null,0]
["","",null,"",null,null,null,null,null,null,null,null,null,null,null,null,null,null,null,null,null,null,null,null,null,null,null,null,null,null,null,null,null,null,null,0]
["","",null,"",null,null,null,null,null,null,null,null,null,null,null,null,null,null,null,null,null,null,null,null,null,null,null,null,null,null,null,null,null,null,null,0]
["","",null,"",null,null,null,null,null,null,null,null,null,null,null,null,null,null,null,null,null,null,null,null,null,null,null,null,null,null,null,null,null,null,null,0]
["","",null,"",null,null,null,null,null,null,null,null,null,null,null,null,null,null,null,null,null,null,null,null,null,null,null,null,null,null,null,null,null,null,null,0]
["","",null,"",null,null,null,null,null,null,null,null,null,null,null,null,null,null,null,null,null,null,null,null,null,null,null,null,null,null,null,null,null,null,null,0]
["","",null,"",null,null,null,null,null,null,null,null,null,null,null,null,null,null,null,null,null,null,null,null,null,null,null,null,null,null,null,null,null,null,null,0]
["","",null,"",null,null,null,null,null,null,null,null,null,null,null,null,null,null,null,null,null,null,null,null,null,null,null,null,null,null,null,null,null,null,null,0]
["","",null,"",null,null,null,null,null,null,null,null,null,null,null,null,null,null,null,null,null,null,null,null,null,null,null,null,null,null,null,null,null,null,null,0]
["","",null,"",null,null,null,null,null,null,null,null,null,null,null,null,null,null,null,null,null,null,null,null,null,null,null,null,null,null,null,null,null,null,null,0]
["","",null,"",null,null,null,null,null,null,null,null,null,null,null,null,null,null,null,null,null,null,null,null,null,null,null,null,null,null,null,null,null,null,null,0]
["","",null,"",null,null,null,null,null,null,null,null,null,null,null,null,null,null,null,null,null,null,null,null,null,null,null,null,null,null,null,null,null,null,null,0]
["","",null,"",null,null,null,null,null,null,null,null,null,null,null,null,null,null,null,null,null,null,null,null,null,null,null,null,null,null,null,null,null,null,null,0]
["","",null,"",null,null,null,null,null,null,null,null,null,null,null,null,null,null,null,null,null,null,null,null,null,null,null,null,null,null,null,null,null,null,null,0]
["","",null,"",null,null,null,null,null,null,null,null,null,null,null,null,null,null,null,null,null,null,null,null,null,null,null,null,null,null,null,null,null,null,null,0]
["","",null,"",null,null,null,null,null,null,null,null,null,null,null,null,null,null,null,null,null,null,null,null,null,null,null,null,null,null,null,null,null,null,null,0]
["","",null,"",null,null,null,null,null,null,null,null,null,null,null,null,null,null,null,null,null,null,null,null,null,null,null,null,null,null,null,null,null,null,null,0]
["","",null,"",null,null,null,null,null,null,null,null,null,null,null,null,null,null,null,null,null,null,null,null,null,null,null,null,null,null,null,null,null,null,null,0]
["","",null,"",null,null,null,null,null,null,null,null,null,null,null,null,null,null,null,null,null,null,null,null,null,null,null,null,null,null,null,null,null,null,null,0]
["","",null,"",null,null,null,null,null,null,null,null,null,null,null,null,null,null,null,null,null,null,null,null,null,null,null,null,null,null,null,null,null,null,null,0]
["","",null,"",null,null,null,null,null,null,null,null,null,null,null,null,null,null,null,null,null,null,null,null,null,null,null,null,null,null,null,null,null,null,null,0]
["","",null,"",null,null,null,null,null,null,null,null,null,null,null,null,null,null,null,null,null,null,null,null,null,null,null,null,null,null,null,null,null,null,null,0]
["","",null,"",null,null,null,null,null,null,null,null,null,null,null,null,null,null,null,null,null,null,null,null,null,null,null,null,null,null,null,null,null,null,null,0]
["","",null,"",null,null,null,null,null,null,null,null,null,null,null,null,null,null,null,null,null,null,null,null,null,null,null,null,null,null,null,null,null,null,null,0]
["","",null,"",null,null,null,null,null,null,null,null,null,null,null,null,null,null,null,null,null,null,null,null,null,null,null,null,null,null,null,null,null,null,null,0]
["","",null,"",null,null,null,null,null,null,null,null,null,null,null,null,null,null,null,null,null,null,null,null,null,null,null,null,null,null,null,null,null,null,null,0]
["","",null,"",null,null,null,null,null,null,null,null,null,null,null,null,null,null,null,null,null,null,null,null,null,null,null,null,null,null,null,null,null,null,null,0]
["","",null,"",null,null,null,null,null,null,null,null,null,null,null,null,null,null,null,null,null,null,null,null,null,null,null,null,null,null,null,null,null,null,null,0]
["","",null,"",null,null,null,null,null,null,null,null,null,null,null,null,null,null,null,null,null,null,null,null,null,null,null,null,null,null,null,null,null,null,null,0]
["","",null,"",null,null,null,null,null,null,null,null,null,null,null,null,null,null,null,null,null,null,null,null,null,null,null,null,null,null,null,null,null,null,null,0]
["","",null,"",null,null,null,null,null,null,null,null,null,null,null,null,null,null,null,null,null,null,null,null,null,null,null,null,null,null,null,null,null,null,null,0]
["","",null,"",null,null,null,null,null,null,null,null,null,null,null,null,null,null,null,null,null,null,null,null,null,null,null,null,null,null,null,null,null,null,null,0]
["","",null,"",null,null,null,null,null,null,null,null,null,null,null,null,null,null,null,null,null,null,null,null,null,null,null,null,null,null,null,null,null,null,null,0]
["","",null,"",null,null,null,null,null,null,null,null,null,null,null,null,null,null,null,null,null,null,null,null,null,null,null,null,null,null,null,null,null,null,null,0]
["","",null,"",null,null,null,null,null,null,null,null,null,null,null,null,null,null,null,null,null,null,null,null,null,null,null,null,null,null,null,null,null,null,null,0]
["","",null,"",null,null,null,null,null,null,null,null,null,null,null,null,null,null,null,null,null,null,null,null,null,null,null,null,null,null,null,null,null,null,null,0]
["","",null,"",null,null,null,null,null,null,null,null,null,null,null,null,null,null,null,null,null,null,null,null,null,null,null,null,null,null,null,null,null,null,null,0]
["","",null,"",null,null,null,null,null,null,null,null,null,null,null,null,null,null,null,null,null,null,null,null,null,null,null,null,null,null,null,null,null,null,null,0]
["","",null,"",null,null,null,null,null,null,null,null,null,null,null,null,null,null,null,null,null,null,null,null,null,null,null,null,null,null,null,null,null,null,null,0]
["","",null,"",null,null,null,null,null,null,null,null,null,null,null,null,null,null,null,null,null,null,null,null,null,null,null,null,null,null,null,null,null,null,null,0]
["","",null,"",null,null,null,null,null,null,null,null,null,null,null,null,null,null,null,null,null,null,null,null,null,null,null,null,null,null,null,null,null,null,null,0]
["","",null,"",null,null,null,null,null,null,null,null,null,null,null,null,null,null,null,null,null,null,null,null,null,null,null,null,null,null,null,null,null,null,null,0]
["","",null,"",null,null,null,null,null,null,null,null,null,null,null,null,null,null,null,null,null,null,null,null,null,null,null,null,null,null,null,null,null,null,null,0]
["","",null,"",null,null,null,null,null,null,null,null,null,null,null,null,null,null,null,null,null,null,null,null,null,null,null,null,null,null,null,null,null,null,null,0]
["","",null,"",null,null,null,null,null,null,null,null,null,null,null,null,null,null,null,null,null,null,null,null,null,null,null,null,null,null,null,null,null,null,null,0]
[{"$f":"IFERROR(VLOOKUP(C597,노무자료,6,0),\"\")","v":""},{"$f":"IFERROR(VLOOKUP(C597,노무자료,4,0),\"\")","v":""},null,{"$f":"IF(C597=\"\",\"\",IF(ISERROR(VLOOKUP(C597,노무자료,2,0)),\"노무DATA없음\",VLOOKUP(C597,노무자료,2,0)))","v":""},null,null,null,null,null,null,null,null,null,null,null,null,null,null,null,null,null,null,null,null,null,null,null,null,null,null,null,null,null,null,null,{"$f":"SUM(E597:AI597)","v":0}]
["","",null,"",null,null,null,null,null,null,null,null,null,null,null,null,null,null,null,null,null,null,null,null,null,null,null,null,null,null,null,null,null,null,null,0]
["","",null,"",null,null,null,null,null,null,null,null,null,null,null,null,null,null,null,null,null,null,null,null,null,null,null,null,null,null,null,null,null,null,null,0]
["","",null,"",null,null,null,null,null,null,null,null,null,null,null,null,null,null,null,null,null,null,null,null,null,null,null,null,null,null,null,null,null,null,null,0]
["","",null,"",null,null,null,null,null,null,null,null,null,null,null,null,null,null,null,null,null,null,null,null,null,null,null,null,null,null,null,null,null,null,null,0]
["","",null,"",null,null,null,null,null,null,null,null,null,null,null,null,null,null,null,null,null,null,null,null,null,null,null,null,null,null,null,null,null,null,null,0]
["","",null,"",null,null,null,null,null,null,null,null,null,null,null,null,null,null,null,null,null,null,null,null,null,null,null,null,null,null,null,null,null,null,null,0]
["","",null,"",null,null,null,null,null,null,null,null,null,null,null,null,null,null,null,null,null,null,null,null,null,null,null,null,null,null,null,null,null,null,null,0]
["","",null,"",null,null,null,null,null,null,null,null,null,null,null,null,null,null,null,null,null,null,null,null,null,null,null,null,null,null,null,null,null,null,null,0]
["","",null,"",null,null,null,null,null,null,null,null,null,null,null,null,null,null,null,null,null,null,null,null,null,null,null,null,null,null,null,null,null,null,null,0]
["","",null,"",null,null,null,null,null,null,null,null,null,null,null,null,null,null,null,null,null,null,null,null,null,null,null,null,null,null,null,null,null,null,null,0]
["","",null,"",null,null,null,null,null,null,null,null,null,null,null,null,null,null,null,null,null,null,null,null,null,null,null,null,null,null,null,null,null,null,null,0]
["","",null,"",null,null,null,null,null,null,null,null,null,null,null,null,null,null,null,null,null,null,null,null,null,null,null,null,null,null,null,null,null,null,null,0]
["","",null,"",null,null,null,null,null,null,null,null,null,null,null,null,null,null,null,null,null,null,null,null,null,null,null,null,null,null,null,null,null,null,null,0]
["","",null,"",null,null,null,null,null,null,null,null,null,null,null,null,null,null,null,null,null,null,null,null,null,null,null,null,null,null,null,null,null,null,null,0]
["","",null,"",null,null,null,null,null,null,null,null,null,null,null,null,null,null,null,null,null,null,null,null,null,null,null,null,null,null,null,null,null,null,null,0]
["","",null,"",null,null,null,null,null,null,null,null,null,null,null,null,null,null,null,null,null,null,null,null,null,null,null,null,null,null,null,null,null,null,null,0]
["","",null,"",null,null,null,null,null,null,null,null,null,null,null,null,null,null,null,null,null,null,null,null,null,null,null,null,null,null,null,null,null,null,null,0]
["","",null,"",null,null,null,null,null,null,null,null,null,null,null,null,null,null,null,null,null,null,null,null,null,null,null,null,null,null,null,null,null,null,null,0]
["","",null,"",null,null,null,null,null,null,null,null,null,null,null,null,null,null,null,null,null,null,null,null,null,null,null,null,null,null,null,null,null,null,null,0]
["","",null,"",null,null,null,null,null,null,null,null,null,null,null,null,null,null,null,null,null,null,null,null,null,null,null,null,null,null,null,null,null,null,null,0]
["","",null,"",null,null,null,null,null,null,null,null,null,null,null,null,null,null,null,null,null,null,null,null,null,null,null,null,null,null,null,null,null,null,null,0]
["","",null,"",null,null,null,null,null,null,null,null,null,null,null,null,null,null,null,null,null,null,null,null,null,null,null,null,null,null,null,null,null,null,null,0]
["","",null,"",null,null,null,null,null,null,null,null,null,null,null,null,null,null,null,null,null,null,null,null,null,null,null,null,null,null,null,null,null,null,null,0]
["","",null,"",null,null,null,null,null,null,null,null,null,null,null,null,null,null,null,null,null,null,null,null,null,null,null,null,null,null,null,null,null,null,null,0]
["","",null,"",null,null,null,null,null,null,null,null,null,null,null,null,null,null,null,null,null,null,null,null,null,null,null,null,null,null,null,null,null,null,null,0]
["","",null,"",null,null,null,null,null,null,null,null,null,null,null,null,null,null,null,null,null,null,null,null,null,null,null,null,null,null,null,null,null,null,null,0]
["","",null,"",null,null,null,null,null,null,null,null,null,null,null,null,null,null,null,null,null,null,null,null,null,null,null,null,null,null,null,null,null,null,null,0]
["","",null,"",null,null,null,null,null,null,null,null,null,null,null,null,null,null,null,null,null,null,null,null,null,null,null,null,null,null,null,null,null,null,null,0]
["","",null,"",null,null,null,null,null,null,null,null,null,null,null,null,null,null,null,null,null,null,null,null,null,null,null,null,null,null,null,null,null,null,null,0]
["","",null,"",null,null,null,null,null,null,null,null,null,null,null,null,null,null,null,null,null,null,null,null,null,null,null,null,null,null,null,null,null,null,null,0]
["","",null,"",null,null,null,null,null,null,null,null,null,null,null,null,null,null,null,null,null,null,null,null,null,null,null,null,null,null,null,null,null,null,null,0]
["","",null,"",null,null,null,null,null,null,null,null,null,null,null,null,null,null,null,null,null,null,null,null,null,null,null,null,null,null,null,null,null,null,null,0]
["","",null,"",null,null,null,null,null,null,null,null,null,null,null,null,null,null,null,null,null,null,null,null,null,null,null,null,null,null,null,null,null,null,null,0]
["","",null,"",null,null,null,null,null,null,null,null,null,null,null,null,null,null,null,null,null,null,null,null,null,null,null,null,null,null,null,null,null,null,null,0]
["","",null,"",null,null,null,null,null,null,null,null,null,null,null,null,null,null,null,null,null,null,null,null,null,null,null,null,null,null,null,null,null,null,null,0]
["","",null,"",null,null,null,null,null,null,null,null,null,null,null,null,null,null,null,null,null,null,null,null,null,null,null,null,null,null,null,null,null,null,null,0]
["","",null,"",null,null,null,null,null,null,null,null,null,null,null,null,null,null,null,null,null,null,null,null,null,null,null,null,null,null,null,null,null,null,null,0]
["","",null,"",null,null,null,null,null,null,null,null,null,null,null,null,null,null,null,null,null,null,null,null,null,null,null,null,null,null,null,null,null,null,null,0]
["","",null,"",null,null,null,null,null,null,null,null,null,null,null,null,null,null,null,null,null,null,null,null,null,null,null,null,null,null,null,null,null,null,null,0]
["","",null,"",null,null,null,null,null,null,null,null,null,null,null,null,null,null,null,null,null,null,null,null,null,null,null,null,null,null,null,null,null,null,null,0]
["","",null,"",null,null,null,null,null,null,null,null,null,null,null,null,null,null,null,null,null,null,null,null,null,null,null,null,null,null,null,null,null,null,null,0]
["","",null,"",null,null,null,null,null,null,null,null,null,null,null,null,null,null,null,null,null,null,null,null,null,null,null,null,null,null,null,null,null,null,null,0]
["","",null,"",null,null,null,null,null,null,null,null,null,null,null,null,null,null,null,null,null,null,null,null,null,null,null,null,null,null,null,null,null,null,null,0]
["","",null,"",null,null,null,null,null,null,null,null,null,null,null,null,null,null,null,null,null,null,null,null,null,null,null,null,null,null,null,null,null,null,null,0]
["","",null,"",null,null,null,null,null,null,null,null,null,null,null,null,null,null,null,null,null,null,null,null,null,null,null,null,null,null,null,null,null,null,null,0]
["","",null,"",null,null,null,null,null,null,null,null,null,null,null,null,null,null,null,null,null,null,null,null,null,null,null,null,null,null,null,null,null,null,null,0]
["","",null,"",null,null,null,null,null,null,null,null,null,null,null,null,null,null,null,null,null,null,null,null,null,null,null,null,null,null,null,null,null,null,null,0]
["","",null,"",null,null,null,null,null,null,null,null,null,null,null,null,null,null,null,null,null,null,null,null,null,null,null,null,null,null,null,null,null,null,null,0]
["","",null,"",null,null,null,null,null,null,null,null,null,null,null,null,null,null,null,null,null,null,null,null,null,null,null,null,null,null,null,null,null,null,null,0]
["","",null,"",null,null,null,null,null,null,null,null,null,null,null,null,null,null,null,null,null,null,null,null,null,null,null,null,null,null,null,null,null,null,null,0]
["","",null,"",null,null,null,null,null,null,null,null,null,null,null,null,null,null,null,null,null,null,null,null,null,null,null,null,null,null,null,null,null,null,null,0]
["","",null,"",null,null,null,null,null,null,null,null,null,null,null,null,null,null,null,null,null,null,null,null,null,null,null,null,null,null,null,null,null,null,null,0]
["","",null,"",null,null,null,null,null,null,null,null,null,null,null,null,null,null,null,null,null,null,null,null,null,null,null,null,null,null,null,null,null,null,null,0]
["","",null,"",null,null,null,null,null,null,null,null,null,null,null,null,null,null,null,null,null,null,null,null,null,null,null,null,null,null,null,null,null,null,null,0]
["","",null,"",null,null,null,null,null,null,null,null,null,null,null,null,null,null,null,null,null,null,null,null,null,null,null,null,null,null,null,null,null,null,null,0]
["","",null,"",null,null,null,null,null,null,null,null,null,null,null,null,null,null,null,null,null,null,null,null,null,null,null,null,null,null,null,null,null,null,null,0]
["","",null,"",null,null,null,null,null,null,null,null,null,null,null,null,null,null,null,null,null,null,null,null,null,null,null,null,null,null,null,null,null,null,null,0]
["","",null,"",null,null,null,null,null,null,null,null,null,null,null,null,null,null,null,null,null,null,null,null,null,null,null,null,null,null,null,null,null,null,null,0]
["","",null,"",null,null,null,null,null,null,null,null,null,null,null,null,null,null,null,null,null,null,null,null,null,null,null,null,null,null,null,null,null,null,null,0]
["","",null,"",null,null,null,null,null,null,null,null,null,null,null,null,null,null,null,null,null,null,null,null,null,null,null,null,null,null,null,null,null,null,null,0]
["","",null,"",null,null,null,null,null,null,null,null,null,null,null,null,null,null,null,null,null,null,null,null,null,null,null,null,null,null,null,null,null,null,null,0]
["","",null,"",null,null,null,null,null,null,null,null,null,null,null,null,null,null,null,null,null,null,null,null,null,null,null,null,null,null,null,null,null,null,null,0]
["","",null,"",null,null,null,null,null,null,null,null,null,null,null,null,null,null,null,null,null,null,null,null,null,null,null,null,null,null,null,null,null,null,null,0]
[{"$f":"IFERROR(VLOOKUP(C661,노무자료,6,0),\"\")","v":""},{"$f":"IFERROR(VLOOKUP(C661,노무자료,4,0),\"\")","v":""},null,{"$f":"IF(C661=\"\",\"\",IF(ISERROR(VLOOKUP(C661,노무자료,2,0)),\"노무DATA없음\",VLOOKUP(C661,노무자료,2,0)))","v":""},null,null,null,null,null,null,null,null,null,null,null,null,null,null,null,null,null,null,null,null,null,null,null,null,null,null,null,null,null,null,null,{"$f":"SUM(E661:AI661)","v":0}]
["","",null,"",null,null,null,null,null,null,null,null,null,null,null,null,null,null,null,null,null,null,null,null,null,null,null,null,null,null,null,null,null,null,null,0]
["","",null,"",null,null,null,null,null,null,null,null,null,null,null,null,null,null,null,null,null,null,null,null,null,null,null,null,null,null,null,null,null,null,null,0]
["","",null,"",null,null,null,null,null,null,null,null,null,null,null,null,null,null,null,null,null,null,null,null,null,null,null,null,null,null,null,null,null,null,null,0]
["","",null,"",null,null,null,null,null,null,null,null,null,null,null,null,null,null,null,null,null,null,null,null,null,null,null,null,null,null,null,null,null,null,null,0]
["","",null,"",null,null,null,null,null,null,null,null,null,null,null,null,null,null,null,null,null,null,null,null,null,null,null,null,null,null,null,null,null,null,null,0]
["","",null,"",null,null,null,null,null,null,null,null,null,null,null,null,null,null,null,null,null,null,null,null,null,null,null,null,null,null,null,null,null,null,null,0]
["","",null,"",null,null,null,null,null,null,null,null,null,null,null,null,null,null,null,null,null,null,null,null,null,null,null,null,null,null,null,null,null,null,null,0]
["","",null,"",null,null,null,null,null,null,null,null,null,null,null,null,null,null,null,null,null,null,null,null,null,null,null,null,null,null,null,null,null,null,null,0]
["","",null,"",null,null,null,null,null,null,null,null,null,null,null,null,null,null,null,null,null,null,null,null,null,null,null,null,null,null,null,null,null,null,null,0]
["","",null,"",null,null,null,null,null,null,null,null,null,null,null,null,null,null,null,null,null,null,null,null,null,null,null,null,null,null,null,null,null,null,null,0]
["","",null,"",null,null,null,null,null,null,null,null,null,null,null,null,null,null,null,null,null,null,null,null,null,null,null,null,null,null,null,null,null,null,null,0]
["","",null,"",null,null,null,null,null,null,null,null,null,null,null,null,null,null,null,null,null,null,null,null,null,null,null,null,null,null,null,null,null,null,null,0]
["","",null,"",null,null,null,null,null,null,null,null,null,null,null,null,null,null,null,null,null,null,null,null,null,null,null,null,null,null,null,null,null,null,null,0]
["","",null,"",null,null,null,null,null,null,null,null,null,null,null,null,null,null,null,null,null,null,null,null,null,null,null,null,null,null,null,null,null,null,null,0]
["","",null,"",null,null,null,null,null,null,null,null,null,null,null,null,null,null,null,null,null,null,null,null,null,null,null,null,null,null,null,null,null,null,null,0]
["","",null,"",null,null,null,null,null,null,null,null,null,null,null,null,null,null,null,null,null,null,null,null,null,null,null,null,null,null,null,null,null,null,null,0]
["","",null,"",null,null,null,null,null,null,null,null,null,null,null,null,null,null,null,null,null,null,null,null,null,null,null,null,null,null,null,null,null,null,null,0]
["","",null,"",null,null,null,null,null,null,null,null,null,null,null,null,null,null,null,null,null,null,null,null,null,null,null,null,null,null,null,null,null,null,null,0]
["","",null,"",null,null,null,null,null,null,null,null,null,null,null,null,null,null,null,null,null,null,null,null,null,null,null,null,null,null,null,null,null,null,null,0]
["","",null,"",null,null,null,null,null,null,null,null,null,null,null,null,null,null,null,null,null,null,null,null,null,null,null,null,null,null,null,null,null,null,null,0]
["","",null,"",null,null,null,null,null,null,null,null,null,null,null,null,null,null,null,null,null,null,null,null,null,null,null,null,null,null,null,null,null,null,null,0]
["","",null,"",null,null,null,null,null,null,null,null,null,null,null,null,null,null,null,null,null,null,null,null,null,null,null,null,null,null,null,null,null,null,null,0]
["","",null,"",null,null,null,null,null,null,null,null,null,null,null,null,null,null,null,null,null,null,null,null,null,null,null,null,null,null,null,null,null,null,null,0]
["","",null,"",null,null,null,null,null,null,null,null,null,null,null,null,null,null,null,null,null,null,null,null,null,null,null,null,null,null,null,null,null,null,null,0]
["","",null,"",null,null,null,null,null,null,null,null,null,null,null,null,null,null,null,null,null,null,null,null,null,null,null,null,null,null,null,null,null,null,null,0]
["","",null,"",null,null,null,null,null,null,null,null,null,null,null,null,null,null,null,null,null,null,null,null,null,null,null,null,null,null,null,null,null,null,null,0]
["","",null,"",null,null,null,null,null,null,null,null,null,null,null,null,null,null,null,null,null,null,null,null,null,null,null,null,null,null,null,null,null,null,null,0]
["","",null,"",null,null,null,null,null,null,null,null,null,null,null,null,null,null,null,null,null,null,null,null,null,null,null,null,null,null,null,null,null,null,null,0]
["","",null,"",null,null,null,null,null,null,null,null,null,null,null,null,null,null,null,null,null,null,null,null,null,null,null,null,null,null,null,null,null,null,null,0]
["","",null,"",null,null,null,null,null,null,null,null,null,null,null,null,null,null,null,null,null,null,null,null,null,null,null,null,null,null,null,null,null,null,null,0]
["","",null,"",null,null,null,null,null,null,null,null,null,null,null,null,null,null,null,null,null,null,null,null,null,null,null,null,null,null,null,null,null,null,null,0]
["","",null,"",null,null,null,null,null,null,null,null,null,null,null,null,null,null,null,null,null,null,null,null,null,null,null,null,null,null,null,null,null,null,null,0]
["","",null,"",null,null,null,null,null,null,null,null,null,null,null,null,null,null,null,null,null,null,null,null,null,null,null,null,null,null,null,null,null,null,null,0]
["","",null,"",null,null,null,null,null,null,null,null,null,null,null,null,null,null,null,null,null,null,null,null,null,null,null,null,null,null,null,null,null,null,null,0]
["","",null,"",null,null,null,null,null,null,null,null,null,null,null,null,null,null,null,null,null,null,null,null,null,null,null,null,null,null,null,null,null,null,null,0]
["","",null,"",null,null,null,null,null,null,null,null,null,null,null,null,null,null,null,null,null,null,null,null,null,null,null,null,null,null,null,null,null,null,null,0]
["","",null,"",null,null,null,null,null,null,null,null,null,null,null,null,null,null,null,null,null,null,null,null,null,null,null,null,null,null,null,null,null,null,null,0]
["","",null,"",null,null,null,null,null,null,null,null,null,null,null,null,null,null,null,null,null,null,null,null,null,null,null,null,null,null,null,null,null,null,null,0]
["","",null,"",null,null,null,null,null,null,null,null,null,null,null,null,null,null,null,null,null,null,null,null,null,null,null,null,null,null,null,null,null,null,null,0]
["","",null,"",null,null,null,null,null,null,null,null,null,null,null,null,null,null,null,null,null,null,null,null,null,null,null,null,null,null,null,null,null,null,null,0]
["","",null,"",null,null,null,null,null,null,null,null,null,null,null,null,null,null,null,null,null,null,null,null,null,null,null,null,null,null,null,null,null,null,null,0]
["","",null,"",null,null,null,null,null,null,null,null,null,null,null,null,null,null,null,null,null,null,null,null,null,null,null,null,null,null,null,null,null,null,null,0]
["","",null,"",null,null,null,null,null,null,null,null,null,null,null,null,null,null,null,null,null,null,null,null,null,null,null,null,null,null,null,null,null,null,null,0]
["","",null,"",null,null,null,null,null,null,null,null,null,null,null,null,null,null,null,null,null,null,null,null,null,null,null,null,null,null,null,null,null,null,null,0]
["","",null,"",null,null,null,null,null,null,null,null,null,null,null,null,null,null,null,null,null,null,null,null,null,null,null,null,null,null,null,null,null,null,null,0]
["","",null,"",null,null,null,null,null,null,null,null,null,null,null,null,null,null,null,null,null,null,null,null,null,null,null,null,null,null,null,null,null,null,null,0]
["","",null,"",null,null,null,null,null,null,null,null,null,null,null,null,null,null,null,null,null,null,null,null,null,null,null,null,null,null,null,null,null,null,null,0]
["","",null,"",null,null,null,null,null,null,null,null,null,null,null,null,null,null,null,null,null,null,null,null,null,null,null,null,null,null,null,null,null,null,null,0]
["","",null,"",null,null,null,null,null,null,null,null,null,null,null,null,null,null,null,null,null,null,null,null,null,null,null,null,null,null,null,null,null,null,null,0]
["","",null,"",null,null,null,null,null,null,null,null,null,null,null,null,null,null,null,null,null,null,null,null,null,null,null,null,null,null,null,null,null,null,null,0]
["","",null,"",null,null,null,null,null,null,null,null,null,null,null,null,null,null,null,null,null,null,null,null,null,null,null,null,null,null,null,null,null,null,null,0]
["","",null,"",null,null,null,null,null,null,null,null,null,null,null,null,null,null,null,null,null,null,null,null,null,null,null,null,null,null,null,null,null,null,null,0]
["","",null,"",null,null,null,null,null,null,null,null,null,null,null,null,null,null,null,null,null,null,null,null,null,null,null,null,null,null,null,null,null,null,null,0]
["","",null,"",null,null,null,null,null,null,null,null,null,null,null,null,null,null,null,null,null,null,null,null,null,null,null,null,null,null,null,null,null,null,null,0]
["","",null,"",null,null,null,null,null,null,null,null,null,null,null,null,null,null,null,null,null,null,null,null,null,null,null,null,null,null,null,null,null,null,null,0]
["","",null,"",null,null,null,null,null,null,null,null,null,null,null,null,null,null,null,null,null,null,null,null,null,null,null,null,null,null,null,null,null,null,null,0]
["","",null,"",null,null,null,null,null,null,null,null,null,null,null,null,null,null,null,null,null,null,null,null,null,null,null,null,null,null,null,null,null,null,null,0]
["","",null,"",null,null,null,null,null,null,null,null,null,null,null,null,null,null,null,null,null,null,null,null,null,null,null,null,null,null,null,null,null,null,null,0]
["","",null,"",null,null,null,null,null,null,null,null,null,null,null,null,null,null,null,null,null,null,null,null,null,null,null,null,null,null,null,null,null,null,null,0]
["","",null,"",null,null,null,null,null,null,null,null,null,null,null,null,null,null,null,null,null,null,null,null,null,null,null,null,null,null,null,null,null,null,null,0]
["","",null,"",null,null,null,null,null,null,null,null,null,null,null,null,null,null,null,null,null,null,null,null,null,null,null,null,null,null,null,null,null,null,null,0]
["","",null,"",null,null,null,null,null,null,null,null,null,null,null,null,null,null,null,null,null,null,null,null,null,null,null,null,null,null,null,null,null,null,null,0]
["","",null,"",null,null,null,null,null,null,null,null,null,null,null,null,null,null,null,null,null,null,null,null,null,null,null,null,null,null,null,null,null,null,null,0]
[{"$f":"IFERROR(VLOOKUP(C725,노무자료,6,0),\"\")","v":""},{"$f":"IFERROR(VLOOKUP(C725,노무자료,4,0),\"\")","v":""},null,{"$f":"IF(C725=\"\",\"\",IF(ISERROR(VLOOKUP(C725,노무자료,2,0)),\"노무DATA없음\",VLOOKUP(C725,노무자료,2,0)))","v":""},null,null,null,null,null,null,null,null,null,null,null,null,null,null,null,null,null,null,null,null,null,null,null,null,null,null,null,null,null,null,null,{"$f":"SUM(E725:AI725)","v":0}]
["","",null,"",null,null,null,null,null,null,null,null,null,null,null,null,null,null,null,null,null,null,null,null,null,null,null,null,null,null,null,null,null,null,null,0]
["","",null,"",null,null,null,null,null,null,null,null,null,null,null,null,null,null,null,null,null,null,null,null,null,null,null,null,null,null,null,null,null,null,null,0]
["","",null,"",null,null,null,null,null,null,null,null,null,null,null,null,null,null,null,null,null,null,null,null,null,null,null,null,null,null,null,null,null,null,null,0]
["","",null,"",null,null,null,null,null,null,null,null,null,null,null,null,null,null,null,null,null,null,null,null,null,null,null,null,null,null,null,null,null,null,null,0]
["","",null,"",null,null,null,null,null,null,null,null,null,null,null,null,null,null,null,null,null,null,null,null,null,null,null,null,null,null,null,null,null,null,null,0]
["","",null,"",null,null,null,null,null,null,null,null,null,null,null,null,null,null,null,null,null,null,null,null,null,null,null,null,null,null,null,null,null,null,null,0]
["","",null,"",null,null,null,null,null,null,null,null,null,null,null,null,null,null,null,null,null,null,null,null,null,null,null,null,null,null,null,null,null,null,null,0]
["","",null,"",null,null,null,null,null,null,null,null,null,null,null,null,null,null,null,null,null,null,null,null,null,null,null,null,null,null,null,null,null,null,null,0]
["","",null,"",null,null,null,null,null,null,null,null,null,null,null,null,null,null,null,null,null,null,null,null,null,null,null,null,null,null,null,null,null,null,null,0]
["","",null,"",null,null,null,null,null,null,null,null,null,null,null,null,null,null,null,null,null,null,null,null,null,null,null,null,null,null,null,null,null,null,null,0]
["","",null,"",null,null,null,null,null,null,null,null,null,null,null,null,null,null,null,null,null,null,null,null,null,null,null,null,null,null,null,null,null,null,null,0]
["","",null,"",null,null,null,null,null,null,null,null,null,null,null,null,null,null,null,null,null,null,null,null,null,null,null,null,null,null,null,null,null,null,null,0]
["","",null,"",null,null,null,null,null,null,null,null,null,null,null,null,null,null,null,null,null,null,null,null,null,null,null,null,null,null,null,null,null,null,null,0]
["","",null,"",null,null,null,null,null,null,null,null,null,null,null,null,null,null,null,null,null,null,null,null,null,null,null,null,null,null,null,null,null,null,null,0]
["","",null,"",null,null,null,null,null,null,null,null,null,null,null,null,null,null,null,null,null,null,null,null,null,null,null,null,null,null,null,null,null,null,null,0]
["","",null,"",null,null,null,null,null,null,null,null,null,null,null,null,null,null,null,null,null,null,null,null,null,null,null,null,null,null,null,null,null,null,null,0]
["","",null,"",null,null,null,null,null,null,null,null,null,null,null,null,null,null,null,null,null,null,null,null,null,null,null,null,null,null,null,null,null,null,null,0]
["","",null,"",null,null,null,null,null,null,null,null,null,null,null,null,null,null,null,null,null,null,null,null,null,null,null,null,null,null,null,null,null,null,null,0]
["","",null,"",null,null,null,null,null,null,null,null,null,null,null,null,null,null,null,null,null,null,null,null,null,null,null,null,null,null,null,null,null,null,null,0]
["","",null,"",null,null,null,null,null,null,null,null,null,null,null,null,null,null,null,null,null,null,null,null,null,null,null,null,null,null,null,null,null,null,null,0]
["","",null,"",null,null,null,null,null,null,null,null,null,null,null,null,null,null,null,null,null,null,null,null,null,null,null,null,null,null,null,null,null,null,null,0]
["","",null,"",null,null,null,null,null,null,null,null,null,null,null,null,null,null,null,null,null,null,null,null,null,null,null,null,null,null,null,null,null,null,null,0]
["","",null,"",null,null,null,null,null,null,null,null,null,null,null,null,null,null,null,null,null,null,null,null,null,null,null,null,null,null,null,null,null,null,null,0]
["","",null,"",null,null,null,null,null,null,null,null,null,null,null,null,null,null,null,null,null,null,null,null,null,null,null,null,null,null,null,null,null,null,null,0]
["","",null,"",null,null,null,null,null,null,null,null,null,null,null,null,null,null,null,null,null,null,null,null,null,null,null,null,null,null,null,null,null,null,null,0]
["","",null,"",null,null,null,null,null,null,null,null,null,null,null,null,null,null,null,null,null,null,null,null,null,null,null,null,null,null,null,null,null,null,null,0]
["","",null,"",null,null,null,null,null,null,null,null,null,null,null,null,null,null,null,null,null,null,null,null,null,null,null,null,null,null,null,null,null,null,null,0]
["","",null,"",null,null,null,null,null,null,null,null,null,null,null,null,null,null,null,null,null,null,null,null,null,null,null,null,null,null,null,null,null,null,null,0]
["","",null,"",null,null,null,null,null,null,null,null,null,null,null,null,null,null,null,null,null,null,null,null,null,null,null,null,null,null,null,null,null,null,null,0]
["","",null,"",null,null,null,null,null,null,null,null,null,null,null,null,null,null,null,null,null,null,null,null,null,null,null,null,null,null,null,null,null,null,null,0]
["","",null,"",null,null,null,null,null,null,null,null,null,null,null,null,null,null,null,null,null,null,null,null,null,null,null,null,null,null,null,null,null,null,null,0]
["","",null,"",null,null,null,null,null,null,null,null,null,null,null,null,null,null,null,null,null,null,null,null,null,null,null,null,null,null,null,null,null,null,null,0]
["","",null,"",null,null,null,null,null,null,null,null,null,null,null,null,null,null,null,null,null,null,null,null,null,null,null,null,null,null,null,null,null,null,null,0]
["","",null,"",null,null,null,null,null,null,null,null,null,null,null,null,null,null,null,null,null,null,null,null,null,null,null,null,null,null,null,null,null,null,null,0]
["","",null,"",null,null,null,null,null,null,null,null,null,null,null,null,null,null,null,null,null,null,null,null,null,null,null,null,null,null,null,null,null,null,null,0]
["","",null,"",null,null,null,null,null,null,null,null,null,null,null,null,null,null,null,null,null,null,null,null,null,null,null,null,null,null,null,null,null,null,null,0]
["","",null,"",null,null,null,null,null,null,null,null,null,null,null,null,null,null,null,null,null,null,null,null,null,null,null,null,null,null,null,null,null,null,null,0]
["","",null,"",null,null,null,null,null,null,null,null,null,null,null,null,null,null,null,null,null,null,null,null,null,null,null,null,null,null,null,null,null,null,null,0]
["","",null,"",null,null,null,null,null,null,null,null,null,null,null,null,null,null,null,null,null,null,null,null,null,null,null,null,null,null,null,null,null,null,null,0]
["","",null,"",null,null,null,null,null,null,null,null,null,null,null,null,null,null,null,null,null,null,null,null,null,null,null,null,null,null,null,null,null,null,null,0]
["","",null,"",null,null,null,null,null,null,null,null,null,null,null,null,null,null,null,null,null,null,null,null,null,null,null,null,null,null,null,null,null,null,null,0]
["","",null,"",null,null,null,null,null,null,null,null,null,null,null,null,null,null,null,null,null,null,null,null,null,null,null,null,null,null,null,null,null,null,null,0]
["","",null,"",null,null,null,null,null,null,null,null,null,null,null,null,null,null,null,null,null,null,null,null,null,null,null,null,null,null,null,null,null,null,null,0]
["","",null,"",null,null,null,null,null,null,null,null,null,null,null,null,null,null,null,null,null,null,null,null,null,null,null,null,null,null,null,null,null,null,null,0]
["","",null,"",null,null,null,null,null,null,null,null,null,null,null,null,null,null,null,null,null,null,null,null,null,null,null,null,null,null,null,null,null,null,null,0]
["","",null,"",null,null,null,null,null,null,null,null,null,null,null,null,null,null,null,null,null,null,null,null,null,null,null,null,null,null,null,null,null,null,null,0]
["","",null,"",null,null,null,null,null,null,null,null,null,null,null,null,null,null,null,null,null,null,null,null,null,null,null,null,null,null,null,null,null,null,null,0]
["","",null,"",null,null,null,null,null,null,null,null,null,null,null,null,null,null,null,null,null,null,null,null,null,null,null,null,null,null,null,null,null,null,null,0]
["","",null,"",null,null,null,null,null,null,null,null,null,null,null,null,null,null,null,null,null,null,null,null,null,null,null,null,null,null,null,null,null,null,null,0]
["","",null,"",null,null,null,null,null,null,null,null,null,null,null,null,null,null,null,null,null,null,null,null,null,null,null,null,null,null,null,null,null,null,null,0]
["","",null,"",null,null,null,null,null,null,null,null,null,null,null,null,null,null,null,null,null,null,null,null,null,null,null,null,null,null,null,null,null,null,null,0]
["","",null,"",null,null,null,null,null,null,null,null,null,null,null,null,null,null,null,null,null,null,null,null,null,null,null,null,null,null,null,null,null,null,null,0]
["","",null,"",null,null,null,null,null,null,null,null,null,null,null,null,null,null,null,null,null,null,null,null,null,null,null,null,null,null,null,null,null,null,null,0]
["","",null,"",null,null,null,null,null,null,null,null,null,null,null,null,null,null,null,null,null,null,null,null,null,null,null,null,null,null,null,null,null,null,null,0]
["","",null,"",null,null,null,null,null,null,null,null,null,null,null,null,null,null,null,null,null,null,null,null,null,null,null,null,null,null,null,null,null,null,null,0]
["","",null,"",null,null,null,null,null,null,null,null,null,null,null,null,null,null,null,null,null,null,null,null,null,null,null,null,null,null,null,null,null,null,null,0]
["","",null,"",null,null,null,null,null,null,null,null,null,null,null,null,null,null,null,null,null,null,null,null,null,null,null,null,null,null,null,null,null,null,null,0]
["","",null,"",null,null,null,null,null,null,null,null,null,null,null,null,null,null,null,null,null,null,null,null,null,null,null,null,null,null,null,null,null,null,null,0]
["","",null,"",null,null,null,null,null,null,null,null,null,null,null,null,null,null,null,null,null,null,null,null,null,null,null,null,null,null,null,null,null,null,null,0]
["","",null,"",null,null,null,null,null,null,null,null,null,null,null,null,null,null,null,null,null,null,null,null,null,null,null,null,null,null,null,null,null,null,null,0]
["","",null,"",null,null,null,null,null,null,null,null,null,null,null,null,null,null,null,null,null,null,null,null,null,null,null,null,null,null,null,null,null,null,null,0]
["","",null,"",null,null,null,null,null,null,null,null,null,null,null,null,null,null,null,null,null,null,null,null,null,null,null,null,null,null,null,null,null,null,null,0]
["","",null,"",null,null,null,null,null,null,null,null,null,null,null,null,null,null,null,null,null,null,null,null,null,null,null,null,null,null,null,null,null,null,null,0]
[{"$f":"IFERROR(VLOOKUP(C789,노무자료,6,0),\"\")","v":""},{"$f":"IFERROR(VLOOKUP(C789,노무자료,4,0),\"\")","v":""},null,{"$f":"IF(C789=\"\",\"\",IF(ISERROR(VLOOKUP(C789,노무자료,2,0)),\"노무DATA없음\",VLOOKUP(C789,노무자료,2,0)))","v":""},null,null,null,null,null,null,null,null,null,null,null,null,null,null,null,null,null,null,null,null,null,null,null,null,null,null,null,null,null,null,null,{"$f":"SUM(E789:AI789)","v":0}]
["","",null,"",null,null,null,null,null,null,null,null,null,null,null,null,null,null,null,null,null,null,null,null,null,null,null,null,null,null,null,null,null,null,null,0]
["","",null,"",null,null,null,null,null,null,null,null,null,null,null,null,null,null,null,null,null,null,null,null,null,null,null,null,null,null,null,null,null,null,null,0]
["","",null,"",null,null,null,null,null,null,null,null,null,null,null,null,null,null,null,null,null,null,null,null,null,null,null,null,null,null,null,null,null,null,null,0]
["","",null,"",null,null,null,null,null,null,null,null,null,null,null,null,null,null,null,null,null,null,null,null,null,null,null,null,null,null,null,null,null,null,null,0]
["","",null,"",null,null,null,null,null,null,null,null,null,null,null,null,null,null,null,null,null,null,null,null,null,null,null,null,null,null,null,null,null,null,null,0]
["","",null,"",null,null,null,null,null,null,null,null,null,null,null,null,null,null,null,null,null,null,null,null,null,null,null,null,null,null,null,null,null,null,null,0]
["","",null,"",null,null,null,null,null,null,null,null,null,null,null,null,null,null,null,null,null,null,null,null,null,null,null,null,null,null,null,null,null,null,null,0]
["","",null,"",null,null,null,null,null,null,null,null,null,null,null,null,null,null,null,null,null,null,null,null,null,null,null,null,null,null,null,null,null,null,null,0]
["","",null,"",null,null,null,null,null,null,null,null,null,null,null,null,null,null,null,null,null,null,null,null,null,null,null,null,null,null,null,null,null,null,null,0]
["","",null,"",null,null,null,null,null,null,null,null,null,null,null,null,null,null,null,null,null,null,null,null,null,null,null,null,null,null,null,null,null,null,null,0]
["","",null,"",null,null,null,null,null,null,null,null,null,null,null,null,null,null,null,null,null,null,null,null,null,null,null,null,null,null,null,null,null,null,null,0]
["","",null,"",null,null,null,null,null,null,null,null,null,null,null,null,null,null,null,null,null,null,null,null,null,null,null,null,null,null,null,null,null,null,null,0]
["","",null,"",null,null,null,null,null,null,null,null,null,null,null,null,null,null,null,null,null,null,null,null,null,null,null,null,null,null,null,null,null,null,null,0]
["","",null,"",null,null,null,null,null,null,null,null,null,null,null,null,null,null,null,null,null,null,null,null,null,null,null,null,null,null,null,null,null,null,null,0]
["","",null,"",null,null,null,null,null,null,null,null,null,null,null,null,null,null,null,null,null,null,null,null,null,null,null,null,null,null,null,null,null,null,null,0]
["","",null,"",null,null,null,null,null,null,null,null,null,null,null,null,null,null,null,null,null,null,null,null,null,null,null,null,null,null,null,null,null,null,null,0]
["","",null,"",null,null,null,null,null,null,null,null,null,null,null,null,null,null,null,null,null,null,null,null,null,null,null,null,null,null,null,null,null,null,null,0]
["","",null,"",null,null,null,null,null,null,null,null,null,null,null,null,null,null,null,null,null,null,null,null,null,null,null,null,null,null,null,null,null,null,null,0]
["","",null,"",null,null,null,null,null,null,null,null,null,null,null,null,null,null,null,null,null,null,null,null,null,null,null,null,null,null,null,null,null,null,null,0]
["","",null,"",null,null,null,null,null,null,null,null,null,null,null,null,null,null,null,null,null,null,null,null,null,null,null,null,null,null,null,null,null,null,null,0]
["","",null,"",null,null,null,null,null,null,null,null,null,null,null,null,null,null,null,null,null,null,null,null,null,null,null,null,null,null,null,null,null,null,null,0]
["","",null,"",null,null,null,null,null,null,null,null,null,null,null,null,null,null,null,null,null,null,null,null,null,null,null,null,null,null,null,null,null,null,null,0]
["","",null,"",null,null,null,null,null,null,null,null,null,null,null,null,null,null,null,null,null,null,null,null,null,null,null,null,null,null,null,null,null,null,null,0]
["","",null,"",null,null,null,null,null,null,null,null,null,null,null,null,null,null,null,null,null,null,null,null,null,null,null,null,null,null,null,null,null,null,null,0]
["","",null,"",null,null,null,null,null,null,null,null,null,null,null,null,null,null,null,null,null,null,null,null,null,null,null,null,null,null,null,null,null,null,null,0]
["","",null,"",null,null,null,null,null,null,null,null,null,null,null,null,null,null,null,null,null,null,null,null,null,null,null,null,null,null,null,null,null,null,null,0]
["","",null,"",null,null,null,null,null,null,null,null,null,null,null,null,null,null,null,null,null,null,null,null,null,null,null,null,null,null,null,null,null,null,null,0]
["","",null,"",null,null,null,null,null,null,null,null,null,null,null,null,null,null,null,null,null,null,null,null,null,null,null,null,null,null,null,null,null,null,null,0]
["","",null,"",null,null,null,null,null,null,null,null,null,null,null,null,null,null,null,null,null,null,null,null,null,null,null,null,null,null,null,null,null,null,null,0]
["","",null,"",null,null,null,null,null,null,null,null,null,null,null,null,null,null,null,null,null,null,null,null,null,null,null,null,null,null,null,null,null,null,null,0]
["","",null,"",null,null,null,null,null,null,null,null,null,null,null,null,null,null,null,null,null,null,null,null,null,null,null,null,null,null,null,null,null,null,null,0]
["","",null,"",null,null,null,null,null,null,null,null,null,null,null,null,null,null,null,null,null,null,null,null,null,null,null,null,null,null,null,null,null,null,null,0]
["","",null,"",null,null,null,null,null,null,null,null,null,null,null,null,null,null,null,null,null,null,null,null,null,null,null,null,null,null,null,null,null,null,null,0]
["","",null,"",null,null,null,null,null,null,null,null,null,null,null,null,null,null,null,null,null,null,null,null,null,null,null,null,null,null,null,null,null,null,null,0]
["","",null,"",null,null,null,null,null,null,null,null,null,null,null,null,null,null,null,null,null,null,null,null,null,null,null,null,null,null,null,null,null,null,null,0]
["","",null,"",null,null,null,null,null,null,null,null,null,null,null,null,null,null,null,null,null,null,null,null,null,null,null,null,null,null,null,null,null,null,null,0]
["","",null,"",null,null,null,null,null,null,null,null,null,null,null,null,null,null,null,null,null,null,null,null,null,null,null,null,null,null,null,null,null,null,null,0]
["","",null,"",null,null,null,null,null,null,null,null,null,null,null,null,null,null,null,null,null,null,null,null,null,null,null,null,null,null,null,null,null,null,null,0]
["","",null,"",null,null,null,null,null,null,null,null,null,null,null,null,null,null,null,null,null,null,null,null,null,null,null,null,null,null,null,null,null,null,null,0]
["","",null,"",null,null,null,null,null,null,null,null,null,null,null,null,null,null,null,null,null,null,null,null,null,null,null,null,null,null,null,null,null,null,null,0]
["","",null,"",null,null,null,null,null,null,null,null,null,null,null,null,null,null,null,null,null,null,null,null,null,null,null,null,null,null,null,null,null,null,null,0]
["","",null,"",null,null,null,null,null,null,null,null,null,null,null,null,null,null,null,null,null,null,null,null,null,null,null,null,null,null,null,null,null,null,null,0]
["","",null,"",null,null,null,null,null,null,null,null,null,null,null,null,null,null,null,null,null,null,null,null,null,null,null,null,null,null,null,null,null,null,null,0]
["","",null,"",null,null,null,null,null,null,null,null,null,null,null,null,null,null,null,null,null,null,null,null,null,null,null,null,null,null,null,null,null,null,null,0]
["","",null,"",null,null,null,null,null,null,null,null,null,null,null,null,null,null,null,null,null,null,null,null,null,null,null,null,null,null,null,null,null,null,null,0]
["","",null,"",null,null,null,null,null,null,null,null,null,null,null,null,null,null,null,null,null,null,null,null,null,null,null,null,null,null,null,null,null,null,null,0]
["","",null,"",null,null,null,null,null,null,null,null,null,null,null,null,null,null,null,null,null,null,null,null,null,null,null,null,null,null,null,null,null,null,null,0]
["","",null,"",null,null,null,null,null,null,null,null,null,null,null,null,null,null,null,null,null,null,null,null,null,null,null,null,null,null,null,null,null,null,null,0]
["","",null,"",null,null,null,null,null,null,null,null,null,null,null,null,null,null,null,null,null,null,null,null,null,null,null,null,null,null,null,null,null,null,null,0]
["","",null,"",null,null,null,null,null,null,null,null,null,null,null,null,null,null,null,null,null,null,null,null,null,null,null,null,null,null,null,null,null,null,null,0]
["","",null,"",null,null,null,null,null,null,null,null,null,null,null,null,null,null,null,null,null,null,null,null,null,null,null,null,null,null,null,null,null,null,null,0]
["","",null,"",null,null,null,null,null,null,null,null,null,null,null,null,null,null,null,null,null,null,null,null,null,null,null,null,null,null,null,null,null,null,null,0]
["","",null,"",null,null,null,null,null,null,null,null,null,null,null,null,null,null,null,null,null,null,null,null,null,null,null,null,null,null,null,null,null,null,null,0]
["","",null,"",null,null,null,null,null,null,null,null,null,null,null,null,null,null,null,null,null,null,null,null,null,null,null,null,null,null,null,null,null,null,null,0]
["","",null,"",null,null,null,null,null,null,null,null,null,null,null,null,null,null,null,null,null,null,null,null,null,null,null,null,null,null,null,null,null,null,null,0]
["","",null,"",null,null,null,null,null,null,null,null,null,null,null,null,null,null,null,null,null,null,null,null,null,null,null,null,null,null,null,null,null,null,null,0]
["","",null,"",null,null,null,null,null,null,null,null,null,null,null,null,null,null,null,null,null,null,null,null,null,null,null,null,null,null,null,null,null,null,null,0]
["","",null,"",null,null,null,null,null,null,null,null,null,null,null,null,null,null,null,null,null,null,null,null,null,null,null,null,null,null,null,null,null,null,null,0]
["","",null,"",null,null,null,null,null,null,null,null,null,null,null,null,null,null,null,null,null,null,null,null,null,null,null,null,null,null,null,null,null,null,null,0]
["","",null,"",null,null,null,null,null,null,null,null,null,null,null,null,null,null,null,null,null,null,null,null,null,null,null,null,null,null,null,null,null,null,null,0]
["","",null,"",null,null,null,null,null,null,null,null,null,null,null,null,null,null,null,null,null,null,null,null,null,null,null,null,null,null,null,null,null,null,null,0]
["","",null,"",null,null,null,null,null,null,null,null,null,null,null,null,null,null,null,null,null,null,null,null,null,null,null,null,null,null,null,null,null,null,null,0]
["","",null,"",null,null,null,null,null,null,null,null,null,null,null,null,null,null,null,null,null,null,null,null,null,null,null,null,null,null,null,null,null,null,null,0]
[{"$f":"IFERROR(VLOOKUP(C853,노무자료,6,0),\"\")","v":""},{"$f":"IFERROR(VLOOKUP(C853,노무자료,4,0),\"\")","v":""},null,{"$f":"IF(C853=\"\",\"\",IF(ISERROR(VLOOKUP(C853,노무자료,2,0)),\"노무DATA없음\",VLOOKUP(C853,노무자료,2,0)))","v":""},null,null,null,null,null,null,null,null,null,null,null,null,null,null,null,null,null,null,null,null,null,null,null,null,null,null,null,null,null,null,null,{"$f":"SUM(E853:AI853)","v":0}]
["","",null,"",null,null,null,null,null,null,null,null,null,null,null,null,null,null,null,null,null,null,null,null,null,null,null,null,null,null,null,null,null,null,null,0]
["","",null,"",null,null,null,null,null,null,null,null,null,null,null,null,null,null,null,null,null,null,null,null,null,null,null,null,null,null,null,null,null,null,null,0]
["","",null,"",null,null,null,null,null,null,null,null,null,null,null,null,null,null,null,null,null,null,null,null,null,null,null,null,null,null,null,null,null,null,null,0]
["","",null,"",null,null,null,null,null,null,null,null,null,null,null,null,null,null,null,null,null,null,null,null,null,null,null,null,null,null,null,null,null,null,null,0]
["","",null,"",null,null,null,null,null,null,null,null,null,null,null,null,null,null,null,null,null,null,null,null,null,null,null,null,null,null,null,null,null,null,null,0]
["","",null,"",null,null,null,null,null,null,null,null,null,null,null,null,null,null,null,null,null,null,null,null,null,null,null,null,null,null,null,null,null,null,null,0]
["","",null,"",null,null,null,null,null,null,null,null,null,null,null,null,null,null,null,null,null,null,null,null,null,null,null,null,null,null,null,null,null,null,null,0]
["","",null,"",null,null,null,null,null,null,null,null,null,null,null,null,null,null,null,null,null,null,null,null,null,null,null,null,null,null,null,null,null,null,null,0]
["","",null,"",null,null,null,null,null,null,null,null,null,null,null,null,null,null,null,null,null,null,null,null,null,null,null,null,null,null,null,null,null,null,null,0]
["","",null,"",null,null,null,null,null,null,null,null,null,null,null,null,null,null,null,null,null,null,null,null,null,null,null,null,null,null,null,null,null,null,null,0]
["","",null,"",null,null,null,null,null,null,null,null,null,null,null,null,null,null,null,null,null,null,null,null,null,null,null,null,null,null,null,null,null,null,null,0]
["","",null,"",null,null,null,null,null,null,null,null,null,null,null,null,null,null,null,null,null,null,null,null,null,null,null,null,null,null,null,null,null,null,null,0]
["","",null,"",null,null,null,null,null,null,null,null,null,null,null,null,null,null,null,null,null,null,null,null,null,null,null,null,null,null,null,null,null,null,null,0]
["","",null,"",null,null,null,null,null,null,null,null,null,null,null,null,null,null,null,null,null,null,null,null,null,null,null,null,null,null,null,null,null,null,null,0]
["","",null,"",null,null,null,null,null,null,null,null,null,null,null,null,null,null,null,null,null,null,null,null,null,null,null,null,null,null,null,null,null,null,null,0]
["","",null,"",null,null,null,null,null,null,null,null,null,null,null,null,null,null,null,null,null,null,null,null,null,null,null,null,null,null,null,null,null,null,null,0]
["","",null,"",null,null,null,null,null,null,null,null,null,null,null,null,null,null,null,null,null,null,null,null,null,null,null,null,null,null,null,null,null,null,null,0]
["","",null,"",null,null,null,null,null,null,null,null,null,null,null,null,null,null,null,null,null,null,null,null,null,null,null,null,null,null,null,null,null,null,null,0]
["","",null,"",null,null,null,null,null,null,null,null,null,null,null,null,null,null,null,null,null,null,null,null,null,null,null,null,null,null,null,null,null,null,null,0]
["","",null,"",null,null,null,null,null,null,null,null,null,null,null,null,null,null,null,null,null,null,null,null,null,null,null,null,null,null,null,null,null,null,null,0]
["","",null,"",null,null,null,null,null,null,null,null,null,null,null,null,null,null,null,null,null,null,null,null,null,null,null,null,null,null,null,null,null,null,null,0]
["","",null,"",null,null,null,null,null,null,null,null,null,null,null,null,null,null,null,null,null,null,null,null,null,null,null,null,null,null,null,null,null,null,null,0]
["","",null,"",null,null,null,null,null,null,null,null,null,null,null,null,null,null,null,null,null,null,null,null,null,null,null,null,null,null,null,null,null,null,null,0]
["","",null,"",null,null,null,null,null,null,null,null,null,null,null,null,null,null,null,null,null,null,null,null,null,null,null,null,null,null,null,null,null,null,null,0]

{"sheet":"개인DATA","index":1,"n_rows":120,"n_cols":22,"rows_kept":120,"cut":false,"hidden":false,"merged":[]}
["팀명","성명","주민등록번호","주  소","직종코드","단가","직종","나이","검증","은행","계좌번호","예금주","연락처","영문명","근로계약일","체류자격","국적",null,null,"직종코드","직종","코드"]
["관리","홍길동","000101-1000000",null,{"$f":"IF(B2=\"\",\"\",IFERROR(VLOOKUP(A2,직종코드1,2,0),\"직종코드없음\"))","v":1000},null,"현장소장",{"$f":"IFERROR(TEXT((TODAY()-DATE(1900+LEFT(C2,2),MID(C2,3,2),MID(C2,5,2))),\"yy\")*1,\"\")","v":23},{"$f":"IF(C2=\"\",\"\",CHKNO(C2))","v":"ERROR"},null,null,null,null,null,"2023-01-01",null,null,null,null,1000,"관리",{"$f":"T2","v":1000}]
[null,null,null,null,"",null,null,"",{"$f":"IF(C3=\"\",\"\",CHKNO(C3))","v":""},null,null,null,null,null,null,null,null,null,null,1001,null,{"$f":"T3","v":1001}]
[null,null,null,null,"",null,null,"",{"$f":"IF(C4=\"\",\"\",CHKNO(C4))","v":""},null,null,null,null,null,null,null,null,null,null,1002,null,1002]
[null,null,null,null,"",null,null,"",{"$f":"IF(C5=\"\",\"\",CHKNO(C5))","v":""},null,null,null,null,null,null,null,null,null,null,1003,null,1003]
[null,null,null,null,"",null,null,"",{"$f":"IF(C6=\"\",\"\",CHKNO(C6))","v":""}]
[null,null,null,null,"",null,null,"",{"$f":"IF(C7=\"\",\"\",CHKNO(C7))","v":""}]
[null,null,null,null,"",null,null,"",{"$f":"IF(C8=\"\",\"\",CHKNO(C8))","v":""}]
[null,null,null,null,"",null,null,"",{"$f":"IF(C9=\"\",\"\",CHKNO(C9))","v":""},null,null,null,null,null,null,null,null,null,null,null,null,0]
[null,null,null,null,"",null,null,"",{"$f":"IF(C10=\"\",\"\",CHKNO(C10))","v":""},null,null,null,null,null,null,null,null,null,null,2000,null,2000]
[null,null,null,null,"",null,null,"",{"$f":"IF(C11=\"\",\"\",CHKNO(C11))","v":""},null,null,null,null,null,null,null,null,null,null,2001,null,2001]
[null,null,null,null,{"$f":"IF(B12=\"\",\"\",IFERROR(VLOOKUP(A12,직종코드1,2,0),\"직종코드없음\"))","v":""},null,null,{"$f":"IFERROR(TEXT((TODAY()-DATE(1900+LEFT(C12,2),MID(C12,3,2),MID(C12,5,2))),\"yy\")*1,\"\")","v":""},{"$f":"IF(C12=\"\",\"\",CHKNO(C12))","v":""},null,null,null,null,null,null,null,null,null,null,2002,null,2002]
[null,null,null,null,"",null,null,"",{"$f":"IF(C13=\"\",\"\",CHKNO(C13))","v":""},null,null,null,null,null,null,null,null,null,null,2003,null,2003]
[null,null,null,null,"",null,null,"",{"$f":"IF(C14=\"\",\"\",CHKNO(C14))","v":""},null,null,null,null,null,null,null,null,null,null,2004,null,{"$f":"T14","v":2004}]
[null,null,null,null,"",null,null,"",{"$f":"IF(C15=\"\",\"\",CHKNO(C15))","v":""},null,null,null,null,null,null,null,null,null,null,2005,null,2005]
[null,null,null,null,"",null,null,"",{"$f":"IF(C16=\"\",\"\",CHKNO(C16))","v":""},null,null,null,null,null,null,null,null,null,null,2006,null,2006]
[null,null,null,null,"",null,null,"",{"$f":"IF(C17=\"\",\"\",CHKNO(C17))","v":""},null,null,null,null,null,null,null,null,null,null,3000,null,3000]
[null,null,null,null,"",null,null,"",{"$f":"IF(C18=\"\",\"\",CHKNO(C18))","v":""},null,null,null,null,null,null,null,null,null,null,3001,null,3001]
[null,null,null,null,"",null,null,"",{"$f":"IF(C19=\"\",\"\",CHKNO(C19))","v":""},null,null,null,null,null,null,null,null,null,null,3002,null,3002]
[null,null,null,null,"",null,null,"",{"$f":"IF(C20=\"\",\"\",CHKNO(C20))","v":""},null,null,null,null,null,null,null,null,null,null,3003,null,3003]
[null,null,null,null,"",null,null,"",{"$f":"IF(C21=\"\",\"\",CHKNO(C21))","v":""},null,null,null,null,null,null,null,null,null,null,2007,null,{"$f":"T21","v":2007}]
[null,null,null,null,"",null,null,"",{"$f":"IF(C22=\"\",\"\",CHKNO(C22))","v":""},null,null,null,null,null,null,null,null,null,null,4000,null,4000]
[null,null,null,null,"",null,null,"",{"$f":"IF(C23=\"\",\"\",CHKNO(C23))","v":""},null,null,null,null,null,null,null,null,null,null,4001,null,4001]
[null,null,null,null,"",null,null,"",{"$f":"IF(C24=\"\",\"\",CHKNO(C24))","v":""},null,null,null,null,null,null,null,null,null,null,null,null,0]
[null,null,null,null,"",null,null,"",{"$f":"IF(C25=\"\",\"\",CHKNO(C25))","v":""},null,null,null,null,null,null,null,null,null,null,5000,null,5000]
[null,null,null,null,"",null,null,"",{"$f":"IF(C26=\"\",\"\",CHKNO(C26))","v":""},null,null,null,null,null,null,null,null,null,null,5001,null,5001]
[null,null,null,null,"",null,null,"",{"$f":"IF(C27=\"\",\"\",CHKNO(C27))","v":""},null,null,null,null,null,null,null,null,null,null,null,null,0]
[null,null,null,null,"",null,null,"",{"$f":"IF(C28=\"\",\"\",CHKNO(C28))","v":""},null,null,null,null,null,null,null,null,null,null,6000,null,6000]
[null,null,null,null,"",null,null,"",{"$f":"IF(C29=\"\",\"\",CHKNO(C29))","v":""},null,null,null,null,null,null,null,null,null,null,6001,null,6001]
[null,null,null,null,"",null,null,"",{"$f":"IF(C30=\"\",\"\",CHKNO(C30))","v":""},null,null,null,null,null,null,null,null,null,null,null,null,0]
[null,null,null,null,"",null,null,"",{"$f":"IF(C31=\"\",\"\",CHKNO(C31))","v":""},null,null,null,null,null,null,null,null,null,null,7000,null,7000]
[null,null,null,null,"",null,null,"",{"$f":"IF(C32=\"\",\"\",CHKNO(C32))","v":""},null,null,null,null,null,null,null,null,null,null,7001,null,7001]
[null,null,null,null,"",null,null,"",{"$f":"IF(C33=\"\",\"\",CHKNO(C33))","v":""},null,null,null,null,null,null,null,null,null,null,null,null,0]
[null,null,null,null,"",null,null,"",{"$f":"IF(C34=\"\",\"\",CHKNO(C34))","v":""},null,null,null,null,null,null,null,null,null,null,8000,null,8000]
[null,null,null,null,"",null,null,"",{"$f":"IF(C35=\"\",\"\",CHKNO(C35))","v":""},null,null,null,null,null,null,null,null,null,null,8001,null,8001]
[null,null,null,null,"",null,null,"",{"$f":"IF(C36=\"\",\"\",CHKNO(C36))","v":""},null,null,null,null,null,null,null,null,null,null,null,null,0]
[null,null,null,null,"",null,null,"",{"$f":"IF(C37=\"\",\"\",CHKNO(C37))","v":""},null,null,null,null,null,null,null,null,null,null,9000,null,9000]
[null,null,null,null,"",null,null,"",{"$f":"IF(C38=\"\",\"\",CHKNO(C38))","v":""}]
[null,null,null,null,"",null,null,"",{"$f":"IF(C39=\"\",\"\",CHKNO(C39))","v":""}]
[null,null,null,null,"",null,null,"",{"$f":"IF(C40=\"\",\"\",CHKNO(C40))","v":""}]
[null,null,null,null,"",null,null,"",{"$f":"IF(C41=\"\",\"\",CHKNO(C41))","v":""}]
[null,null,null,null,"",null,null,"",{"$f":"IF(C42=\"\",\"\",CHKNO(C42))","v":""}]
[null,null,null,null,"",null,null,"",{"$f":"IF(C43=\"\",\"\",CHKNO(C43))","v":""}]
[null,null,null,null,"",null,null,"",{"$f":"IF(C44=\"\",\"\",CHKNO(C44))","v":""}]
[null,null,null,null,"",null,null,"",{"$f":"IF(C45=\"\",\"\",CHKNO(C45))","v":""}]
[null,null,null,null,"",null,null,"",{"$f":"IF(C46=\"\",\"\",CHKNO(C46))","v":""}]
[null,null,null,null,"",null,null,"",{"$f":"IF(C47=\"\",\"\",CHKNO(C47))","v":""}]
[null,null,null,null,"",null,null,"",{"$f":"IF(C48=\"\",\"\",CHKNO(C48))","v":""}]
[null,null,null,null,"",null,null,"",{"$f":"IF(C49=\"\",\"\",CHKNO(C49))","v":""}]
[null,null,null,null,"",null,null,"",{"$f":"IF(C50=\"\",\"\",CHKNO(C50))","v":""}]
[null,null,null,null,"",null,null,"",{"$f":"IF(C51=\"\",\"\",CHKNO(C51))","v":""}]
[null,null,null,null,"",null,null,"",{"$f":"IF(C52=\"\",\"\",CHKNO(C52))","v":""}]
[null,null,null,null,"",null,null,"",{"$f":"IF(C53=\"\",\"\",CHKNO(C53))","v":""}]
[null,null,null,null,"",null,null,"",{"$f":"IF(C54=\"\",\"\",CHKNO(C54))","v":""}]
[null,null,null,null,"",null,null,"",{"$f":"IF(C55=\"\",\"\",CHKNO(C55))","v":""}]
[null,null,null,null,"",null,null,"",{"$f":"IF(C56=\"\",\"\",CHKNO(C56))","v":""}]
[null,null,null,null,"",null,null,"",{"$f":"IF(C57=\"\",\"\",CHKNO(C57))","v":""}]
[null,null,null,null,"",null,null,"",{"$f":"IF(C58=\"\",\"\",CHKNO(C58))","v":""}]
[null,null,null,null,"",null,null,"",{"$f":"IF(C59=\"\",\"\",CHKNO(C59))","v":""}]
[null,null,null,null,"",null,null,"",{"$f":"IF(C60=\"\",\"\",CHKNO(C60))","v":""}]
[null,null,null,null,"",null,null,"",{"$f":"IF(C61=\"\",\"\",CHKNO(C61))","v":""}]
[null,null,null,null,"",null,null,"",{"$f":"IF(C62=\"\",\"\",CHKNO(C62))","v":""}]
[null,null,null,null,"",null,null,"",{"$f":"IF(C63=\"\",\"\",CHKNO(C63))","v":""}]
[null,null,null,null,"",null,null,"",{"$f":"IF(C64=\"\",\"\",CHKNO(C64))","v":""}]
[null,null,null,null,"",null,null,"",{"$f":"IF(C65=\"\",\"\",CHKNO(C65))","v":""}]
[null,null,null,null,"",null,null,"",{"$f":"IF(C66=\"\",\"\",CHKNO(C66))","v":""}]
[null,null,null,null,"",null,null,"",{"$f":"IF(C67=\"\",\"\",CHKNO(C67))","v":""}]
[null,null,null,null,"",null,null,"",{"$f":"IF(C68=\"\",\"\",CHKNO(C68))","v":""}]
[null,null,null,null,"",null,null,"",{"$f":"IF(C69=\"\",\"\",CHKNO(C69))","v":""}]
[null,null,null,null,"",null,null,"",{"$f":"IF(C70=\"\",\"\",CHKNO(C70))","v":""}]
[null,null,null,null,"",null,null,"",{"$f":"IF(C71=\"\",\"\",CHKNO(C71))","v":""}]
[null,null,null,null,"",null,null,"",{"$f":"IF(C72=\"\",\"\",CHKNO(C72))","v":""}]
[null,null,null,null,"",null,null,"",{"$f":"IF(C73=\"\",\"\",CHKNO(C73))","v":""}]
[null,null,null,null,"",null,null,"",{"$f":"IF(C74=\"\",\"\",CHKNO(C74))","v":""}]
[null,null,null,null,"",null,null,"",{"$f":"IF(C75=\"\",\"\",CHKNO(C75))","v":""}]
[null,null,null,null,{"$f":"IF(B76=\"\",\"\",IFERROR(VLOOKUP(A76,직종코드1,2,0),\"직종코드없음\"))","v":""},null,null,{"$f":"IFERROR(TEXT((TODAY()-DATE(1900+LEFT(C76,2),MID(C76,3,2),MID(C76,5,2))),\"yy\")*1,\"\")","v":""},{"$f":"IF(C76=\"\",\"\",CHKNO(C76))","v":""}]
[null,null,null,null,"",null,null,"",{"$f":"IF(C77=\"\",\"\",CHKNO(C77))","v":""}]
[null,null,null,null,"",null,null,"",{"$f":"IF(C78=\"\",\"\",CHKNO(C78))","v":""}]
[null,null,null,null,"",null,null,"",{"$f":"IF(C79=\"\",\"\",CHKNO(C79))","v":""}]
[null,null,null,null,"",null,null,"",{"$f":"IF(C80=\"\",\"\",CHKNO(C80))","v":""}]
[null,null,null,null,"",null,null,"",{"$f":"IF(C81=\"\",\"\",CHKNO(C81))","v":""}]
[null,null,null,null,"",null,null,"",{"$f":"IF(C82=\"\",\"\",CHKNO(C82))","v":""}]
[null,null,null,null,"",null,null,"",{"$f":"IF(C83=\"\",\"\",CHKNO(C83))","v":""}]
[null,null,null,null,"",null,null,"",{"$f":"IF(C84=\"\",\"\",CHKNO(C84))","v":""}]
[null,null,null,null,"",null,null,"",{"$f":"IF(C85=\"\",\"\",CHKNO(C85))","v":""}]
[null,null,null,null,"",null,null,"",{"$f":"IF(C86=\"\",\"\",CHKNO(C86))","v":""}]
[null,null,null,null,"",null,null,"",{"$f":"IF(C87=\"\",\"\",CHKNO(C87))","v":""}]
[null,null,null,null,"",null,null,"",{"$f":"IF(C88=\"\",\"\",CHKNO(C88))","v":""}]
[null,null,null,null,"",null,null,"",{"$f":"IF(C89=\"\",\"\",CHKNO(C89))","v":""}]
[null,null,null,null,"",null,null,"",{"$f":"IF(C90=\"\",\"\",CHKNO(C90))","v":""}]
[null,null,null,null,"",null,null,"",{"$f":"IF(C91=\"\",\"\",CHKNO(C91))","v":""}]
[null,null,null,null,"",null,null,"",{"$f":"IF(C92=\"\",\"\",CHKNO(C92))","v":""}]
[null,null,null,null,"",null,null,"",{"$f":"IF(C93=\"\",\"\",CHKNO(C93))","v":""}]
[null,null,null,null,"",null,null,"",{"$f":"IF(C94=\"\",\"\",CHKNO(C94))","v":""}]
[null,null,null,null,"",null,null,"",{"$f":"IF(C95=\"\",\"\",CHKNO(C95))","v":""}]
[null,null,null,null,"",null,null,"",{"$f":"IF(C96=\"\",\"\",CHKNO(C96))","v":""}]
[null,null,null,null,"",null,null,"",{"$f":"IF(C97=\"\",\"\",CHKNO(C97))","v":""}]
[null,null,null,null,"",null,null,"",{"$f":"IF(C98=\"\",\"\",CHKNO(C98))","v":""}]
[null,null,null,null,"",null,null,"",{"$f":"IF(C99=\"\",\"\",CHKNO(C99))","v":""}]
[null,null,null,null,"",null,null,"",{"$f":"IF(C100=\"\",\"\",CHKNO(C100))","v":""}]
[null,null,null,null,"",null,null,"",{"$f":"IF(C101=\"\",\"\",CHKNO(C101))","v":""}]
[null,null,null,null,"",null,null,"",{"$f":"IF(C102=\"\",\"\",CHKNO(C102))","v":""}]
[null,null,null,null,"",null,null,"",{"$f":"IF(C103=\"\",\"\",CHKNO(C103))","v":""}]
[null,null,null,null,"",null,null,"",{"$f":"IF(C104=\"\",\"\",CHKNO(C104))","v":""}]
[null,null,null,null,"",null,null,"",{"$f":"IF(C105=\"\",\"\",CHKNO(C105))","v":""}]
[null,null,null,null,"",null,null,"",{"$f":"IF(C106=\"\",\"\",CHKNO(C106))","v":""}]
[null,null,null,null,"",null,null,"",{"$f":"IF(C107=\"\",\"\",CHKNO(C107))","v":""}]
[null,null,null,null,"",null,null,"",{"$f":"IF(C108=\"\",\"\",CHKNO(C108))","v":""}]
[null,null,null,null,"",null,null,"",{"$f":"IF(C109=\"\",\"\",CHKNO(C109))","v":""}]
[null,null,null,null,"",null,null,"",{"$f":"IF(C110=\"\",\"\",CHKNO(C110))","v":""}]
[null,null,null,null,"",null,null,"",{"$f":"IF(C111=\"\",\"\",CHKNO(C111))","v":""}]
[null,null,null,null,"",null,null,"",{"$f":"IF(C112=\"\",\"\",CHKNO(C112))","v":""}]
[null,null,null,null,"",null,null,"",{"$f":"IF(C113=\"\",\"\",CHKNO(C113))","v":""}]
[null,null,null,null,"",null,null,"",{"$f":"IF(C114=\"\",\"\",CHKNO(C114))","v":""}]
[null,null,null,null,"",null,null,"",{"$f":"IF(C115=\"\",\"\",CHKNO(C115))","v":""}]
[null,null,null,null,"",null,null,"",{"$f":"IF(C116=\"\",\"\",CHKNO(C116))","v":""}]
[null,null,null,null,"",null,null,"",{"$f":"IF(C117=\"\",\"\",CHKNO(C117))","v":""}]
[null,null,null,null,"",null,null,"",{"$f":"IF(C118=\"\",\"\",CHKNO(C118))","v":""}]
[null,null,null,null,"",null,null,"",{"$f":"IF(C119=\"\",\"\",CHKNO(C119))","v":""}]
[null,null,null,null,"",null,null,"",{"$f":"IF(C120=\"\",\"\",CHKNO(C120))","v":""}]

{"sheet":"근로계약서","index":2,"n_rows":47,"n_cols":13,"rows_kept":47,"cut":false,"hidden":false,"merged":[[2,11,2,12],[3,1,3,3],[3,4,3,8],[3,9,3,10],[3,11,3,12],[0,3,0,9],[2,0,3,0],[2,1,2,3],[2,4,2,8],[2,9,2,10],[9,9,9,12],[4,0,6,0],[4,1,4,3],[4,4,4,8],[4,9,4,10],[4,11,4,12],[5,1,5,3],[5,4,5,8],[5,9,5,10],[5,11,5,12],[6,1,6,3],[10,0,14,0],[10,2,10,12],[11,2,11,12],[12,2,12,12],[13,2,13,12],[14,2,14,12],[15,0,23,0],[15,2,15,12],[16,2,16,4],[17,8,17,9],[18,10,18,11],[19,8,19,9],[19,10,19,12],[21,3,21,4],[22,2,22,12],[23,2,23,12],[26,2,26,12],[27,1,27,12],[31,0,32,0],[31,1,31,12],[32,1,32,12],[28,0,29,0],[28,2,28,12],[29,2,29,12],[24,0,26,0],[24,2,24,12],[25,2,25,12],[33,0,38,0],[33,2,33,12],[34,2,34,12],[35,2,35,12],[36,2,36,12],[37,2,37,12],[39,0,40,0],[39,2,39,12],[40,2,40,12],[41,0,41,12],[42,9,42,12],[46,9,46,12],[6,8,6,9],[43,2,43,4],[43,9,43,11],[44,2,44,6],[44,9,44,12],[45,2,45,5],[45,9,45,12],[38,2,38,12],[30,1,30,12],[6,4,6,6],[6,11,6,12],[7,0,7,12],[8,0,8,12],[9,1,9,6],[9,7,9,8]]}
[null,null,null,"일   용   근   로   계   약   서   "]
[]
["( 甲 ) 사 용 자","상        호",null,null,null,null,null,null,null,"성        명 "]
[null,"주        소",null,null,null,null,null,null,null,"전         화"]
["( 乙 ) 근 로 자","성        명",null,null,"홍길동",null,null,null,null,"주민등록번호",null,{"$f":"IFERROR(VLOOKUP(E5,출역인원,2,0),\"\")","v":"000101-1000000"}]
[null,"주        소",null,null,null,null,null,null,null,"핸드폰 번호",null,{"$f":"IFERROR(VLOOKUP(E5,출역인원,12,0),\"\")","v":0}]
[null,"계 좌 번 호",null,null,{"$f":"IFERROR(VLOOKUP(E5,출역인원,10,0),\"\")","v":0},null,null,"은행 :",{"$f":"IFERROR(VLOOKUP(E5,출역인원,9,0),\"\")","v":0},null,"예금주 :",{"$f":"IFERROR(VLOOKUP(E5,출역인원,11,0),\"\")","v":0}]
["아래의 근로 조건을 성실히 이행할 것을 약정하고 근로계약을 체결한다."]
["―       아                         래          ―"]
["근  로  장  소",{"$f":"노임DB!Y1","v":0},null,null,null,null,null,"공종 또는 직종",null,{"$f":"IFERROR(VLOOKUP(E5,출역인원,6,0),\"\")","v":"현장소장"}]
["계약기간"," 1.","甲과 乙의 근로 계약 관계는 1일 단위로 근로관계가 생성되는 일용직 근로계약 관계이나, 실무적 편의를"]
[null,null,"위해  근로장소 이외에 근로조건의 변함이 없고 甲과 乙 간에 이의가 없다면 별도의 계약 절차 없이 동일한 계약이 "]
[null,null,"자동 갱신된 것으로 본다."]
[null," 2.","甲과 乙은 당해 공사 기간 중 이라도 1일 전에 일방이 재 계약을 거부할 수 있다."]
[null," 3.","상기의 공사기간 중에라도 乙이 속한 공정이 종료되면 별도의 의사 표시 없이 재 계약은 종료된다."]
["임            금"," 1.","甲은 乙의 근로형태 등 업무의 특성을 고려하여 乙에게 불이익이 없는 범위에서 아래 \"2\"와 같이 포괄"]
[null,null,"산정임금으로 산정된 일당",null,null,{"$f":"IFERROR(VLOOKUP(E5,출역인원,5,0),\"\")","v":0},"을 출력 일수에 따라 1개월 단위로 1개월 후 매월     말일 에 지급한다."]
[null," 2."," ①","기    본     급",null," 8시간",{"$f":"J19*8","v":0},null,"1일 총 환산근로시간 :",null,12.11,"시간",{"$f":"F17","v":0}]
[null,null," ②","유급주휴수당",null," 1.6시간",{"$f":"J19*1.6","v":0},null,"시 급 액 : ",null,"일 급 액 :",null,{"$f":"J19*8","v":0}]
[null,null," ③","연장근로수당",null," 1.42시간",{"$f":"J19*1.42","v":0},null,"일 당 총 액 :",null,{"$f":"G18+G19+G20+G21+G22","v":0}]
[null,null," ④","휴일근로수당",null," 0.72시간",{"$f":"J19*0.72","v":0}]
[null,null," ⑤","연차수당",null," 0.37시간",{"$f":"J19*0.37","v":0}]
[null," 3.","매월 급여 지급시 근로소득세 및 고용보험료, 의료보험료, 국민연금 등의 원천징수 대상이 된 경우 공제 후"]
[null,null,"지급한다.   급여는 乙의 온라인 계좌 입금을 원칙으로 한다."]
["근  로  시  간"," 1.","시업 및 종업시간: 07:00 ~ 17:00 ( 10시간 ) / 휴게시간 ( 1.5시간 )"]
[null," 2.","근로시간은 휴게시간을 제외하고 1일 8시간 1주 40시간으로, 1주일에 12시간의 범위 내에서 甲의 지시에"]
[null,null,"의한 연장근로를 수행함에 동의한다.           "]
["휴  게  시  간"," 휴게시간 30분(조식 또는 참시간-현장 상황에 따라 시간 결정) 1시간( 12:00-13:00-점심시간)"]
["휴            가"," 1.","생리휴가 : 여성근로자가 생리휴가를 청구하면 무급으로 부여 한다."]
[null," 2.","연차휴가 : 근로기준법 기준에 따라 연차 휴가 발생시 유급으로 부여 한다."]
["휴            일","주휴일(전 주간 만근하였을 경우 1일의 유급 주휴일을 부여한다.)"]
["채  용  결  격        사            유"," 불법 체류자, 지명수배 중에 있는 자, 채용시 고혈압 및 척추질환 등 업무 수행에 곤란을 초래할 수 있는 자는 "]
[null," 채용될 수 없으며, 위 사실이 추후 발견된 경우 본 근로계약은 해지 된다."]
["근로계약                      해지사유                  "," 1.","甲은 1일전에 통지로서 재 계약을 거부할 수 있다."]
[null," 2.","안전수칙 불이행/근무태만/근무지 무단이탈/무단조퇴 등을 한 경우"]
[null," 3.","정당한 업무지시 불이행 및 고의 . 중대한 과실로 사고나 손실을 야기 시킨 경우"]
[null," 4.","신체(고혈압, 디스크 포함) . 정신상 장애로 해당 업무를 수행할 수 없거나 질병 악화의 가능성이 있는 경우"]
[null,"5.","현장에 출력하여 업무수행능력이 부족하다고 판정된 경우"]
[null,"6.","공정이 종료되었을 때 및 乙이 재 계약을 원하지 않을 때"]
["기  타  근  로                 조            건"," 1.","본 계약서 상에 명시 되지 않은 사항은 근로기준법에 따른다"]
[null," 2.","현장에 출력하여 업무수행능력이 부족하다고 판정된 경우 급여 책정을 다시 할 수 있다."]
[{"$f":"IFERROR(VLOOKUP(E5,출역인원,14,0),\"\")","v":"2023-01-01"}]
[" ( 사  용  자  )",null,null,null,null,null,null,"( 근  로  자 )",null,{"$f":"IFERROR(VLOOKUP(E5,출역인원,13,0),\"\")","v":0}]
["   ◇ 성            명  :",null,{"$f":"E3","v":0},null,null,null,null,"   ◇ 성       명 :",null,{"$f":"E5","v":"홍길동"},null,null,"(인)"]
["   ◇ 주             소 :",null,{"$f":"E4","v":0},null,null,null,null,"   ◇ 주       소 :",null,{"$f":"E6","v":0}]
["   ◇  전  화  번  호 :",null,{"$f":"L4","v":0},null,null,null,null,"   ◇ 주민 번호 :",null,{"$f":"L5","v":"000101-1000000"}]
[null,null,null,null,null,null,null,"   ◇ 연  락  처 :",null,{"$f":"L6","v":0}]

{"sheet":"출력현황표","index":3,"n_rows":34,"n_cols":35,"rows_kept":34,"cut":false,"hidden":false,"merged":[[0,0,0,32]]}
[{"$f":"노임DB!A1&\"년 \"& 노임DB!C1&\"월 출력현황\"","v":"2023년 1월 출력현황"}]
[{"$f":"\"현장명 : \"&노임DB!Y1","v":"현장명 : "}]
["구분",{"$f":"DAY(노임DB!E5)","v":1},{"$f":"DAY(노임DB!F5)","v":2},{"$f":"DAY(노임DB!G5)","v":3},{"$f":"DAY(노임DB!H5)","v":4},{"$f":"DAY(노임DB!I5)","v":5},{"$f":"DAY(노임DB!J5)","v":6},{"$f":"DAY(노임DB!K5)","v":7},{"$f":"DAY(노임DB!L5)","v":8},{"$f":"DAY(노임DB!M5)","v":9},{"$f":"DAY(노임DB!N5)","v":10},{"$f":"DAY(노임DB!O5)","v":11},{"$f":"DAY(노임DB!P5)","v":12},{"$f":"DAY(노임DB!Q5)","v":13},{"$f":"DAY(노임DB!R5)","v":14},{"$f":"DAY(노임DB!S5)","v":15},{"$f":"DAY(노임DB!T5)","v":16},{"$f":"DAY(노임DB!U5)","v":17},{"$f":"DAY(노임DB!V5)","v":18},{"$f":"DAY(노임DB!W5)","v":19},{"$f":"DAY(노임DB!X5)","v":20},{"$f":"DAY(노임DB!Y5)","v":21},{"$f":"DAY(노임DB!Z5)","v":22},{"$f":"DAY(노임DB!AA5)","v":23},{"$f":"DAY(노임DB!AB5)","v":24},{"$f":"DAY(노임DB!AC5)","v":25},{"$f":"DAY(노임DB!AD5)","v":26},{"$f":"DAY(노임DB!AE5)","v":27},{"$f":"DAY(노임DB!AF5)","v":28},{"$f":"DAY(노임DB!AG5)","v":29},{"$f":"DAY(노임DB!AH5)","v":30},{"$f":"DAY(노임DB!AI5)","v":31},"합계","단가","금액"]
["관리",{"$f":"IFERROR(VLOOKUP($A4,INDIRECT(\"'출역일보(\"&TEXT(COLUMN()-1,\"00\")&\")'!$l:$p\"),5,0),\"\")","v":1},{"$f":"IFERROR(VLOOKUP($A4,INDIRECT(\"'출역일보(\"&TEXT(COLUMN()-1,\"00\")&\")'!$l:$p\"),5,0),\"\")","v":""},"","","","","","","","","","","","","","","","","","","","","","","","","","","","","",{"$f":"SUM(B4:AF4)","v":1}]
[null,{"$f":"IFERROR(VLOOKUP($A5,INDIRECT(\"'출역일보(\"&TEXT(COLUMN()-1,\"00\")&\")'!$l:$p\"),5,0),\"\")","v":""},"","","","","","","","","","","","","","","","","","","","","","","","","","","","","","",0]
[null,"","","","","","","","","","","","","","","","","","","","","","","","","","","","","","","",0]
[null,"","","","","","","","","","","","","","","","","","","","","","","","","","","","","","","",0]
[null,"","","","","","","","","","","","","","","","","","","","","","","","","","","","","","","",0]
[null,"","","","","","","","","","","","","","","","","","","","","","","","","","","","","","","",0]
[null,"","","","","","","","","","","","","","","","","","","","","","","","","","","","","","","",0]
[null,"","","","","","","","","","","","","","","","","","","","","","","","","","","","","","","",0]
[null,"","","","","","","","","","","","","","","","",{"$f":"IFERROR(VLOOKUP($A12,INDIRECT(\"'출역일보(\"&TEXT(COLUMN()-1,\"00\")&\")'!$l:$p\"),5,0),\"\")","v":""},"","","","","","","","","","","","","","",0]
[null,"","","","","","","","","","","","","","","","","","","","","","","","","","","","","","","",0]
[null,"","","","","","","","","","","","","","","","","","","","","","","","","","","","","","","",0]
[null,"","","","","","","","","","","","","","","","","","","","","","","","","","","","","","","",0]
[null,"","","","","","","","","","","","","","","","","","","","","","","","","","","","","","","",0]
[null,"","","","","","","","","","","","","","","","","","","","","","","","","","","","","","","",0]
[null,"","","","","","","","","","","","","","","","","","","","","","","","","","","","","","","",0]
[null,"","","","","","","","","","","","","","","","","","","","","","","","","","","","","","","",0]
[null,"","","","","","","","","","","","","","","","","","","","","","","","","","","","","","","",0,null,{"$f":"AG20*AH20","v":0}]
[null,"","","","","","","","","","","","","","","","","","","","","","","","","","","","","","","",0,null,0]
[null,"","","","","","","","","","","","","","","","","","","","","","","","","","","","","","","",0,null,0]
[null,"","","","","","","","","","","","","","","","","","","","","","","","","","","","","","","",0,null,0]
[null,"","","","","","","","","","","","","","","","","","","","","","","","","","","","","","","",0,null,0]
[null,"","","","","","","","","","","","","","","","","","","","","","","","","","","","","","","",{"$f":"SUM(B25:AF25)","v":0},null,0]
[null,"","","","","","","","","","","","","","","","","","","","","","","","","","","","","","","",0,null,0]
[null,"","","","","","","","","","","","","","","","","","","","","","","","","","","","","","","",0,null,0]
[null,"","","","","","","",{"$f":"IFERROR(VLOOKUP($A28,INDIRECT(\"'출역일보(\"&TEXT(COLUMN()-1,\"00\")&\")'!$l:$p\"),5,0),\"\")","v":""},"","","","","","","","","","","","","","","","","","","","","","","",0,null,0]
[null,{"$f":"IFERROR(VLOOKUP($A29,INDIRECT(\"'출역일보(\"&TEXT(COLUMN()-1,\"00\")&\")'!$l:$p\"),5,0),\"\")","v":""},"","","","","","","","","","","","","","","","","","","","","","","","","","","","","",{"$f":"IFERROR(VLOOKUP($A29,INDIRECT(\"'출역일보(\"&TEXT(COLUMN()-1,\"00\")&\")'!$l:$p\"),5,0),\"\")","v":""},0,null,0]
[null,"","","","","","","","","","","","","","","","","","","","","","","","","","","","","","","",0,null,0]
[null,"","","","","","","","","","","","","","","","","","","","","","","","","","","","","","","",{"$f":"SUM(B31:AF31)","v":0},null,0]
[null,"","","","","","","","","","","","","","","","","","","","","","","","","","","","","","","",{"$f":"SUM(B32:AF32)","v":0},null,0]
[null,"","","","","","","","","","","","","","","","","","","","","","","","","","","","","","","",{"$f":"SUM(B33:AF33)","v":0},null,0]
["합계",{"$f":"SUM(B4:B33)","v":1},0,0,0,0,0,0,0,0,0,0,0,0,0,0,0,0,0,0,0,0,0,0,0,0,0,0,{"$f":"SUM(AC4:AC33)","v":0},0,0,0,{"$f":"SUM(B34:AF34)","v":1},null,{"$f":"SUM(AI4:AI33)","v":0}]

{"sheet":"일용노무비명세서(김반장)","index":4,"n_rows":23,"n_cols":41,"rows_kept":23,"cut":false,"hidden":false,"merged":[[5,31,6,31],[5,32,6,33],[5,34,6,34],[7,31,8,31],[7,32,8,33],[7,34,8,34],[9,31,10,31],[9,32,10,33],[9,34,10,34],[11,31,12,31],[11,32,12,33],[11,34,12,34],[13,31,14,31],[13,32,14,33],[13,34,14,34],[15,31,16,31],[15,32,16,33],[15,34,16,34],[17,31,18,31],[17,32,18,33],[17,34,18,34],[19,31,20,31],[19,32,20,33],[19,34,20,34],[0,0,1,1],[21,23,22,23],[21,24,22,24],[21,25,22,25],[21,26,22,26],[21,27,22,27],[21,0,22,0],[21,1,22,1],[21,2,22,2],[21,21,22,21],[21,22,22,22],[19,0,20,0],[19,1,20,1],[19,2,20,2],[19,21,20,21],[19,22,20,22],[19,23,20,23],[19,24,20,24],[19,25,20,25],[19,26,20,26],[17,0,18,0],[17,1,18,1],[17,2,18,2],[17,21,18,21],[17,22,18,22],[17,23,18,23],[17,24,18,24],[17,25,18,25],[17,26,18,26],[15,0,16,0],[15,1,16,1],[15,2,16,2],[15,21,16,21],[15,22,16,22],[15,23,16,23],[15,24,16,24],[15,25,16,25],[15,26,16,26],[13,0,14,0],[13,1,14,1],[13,2,14,2],[13,21,14,21],[13,22,14,22],[13,23,14,23],[13,24,14,24],[13,25,14,25],[13,26,14,26],[11,0,12,0],[11,1,12,1],[11,2,12,2],[11,21,12,21],[11,22,12,22],[11,23,12,23],[11,24,12,24],[11,25,12,25],[11,26,12,26],[9,0,10,0],[9,1,10,1],[9,2,10,2],[9,21,10,21],[9,22,10,22],[9,23,10,23],[9,24,10,24],[9,25,10,25],[9,26,10,26],[5,25,6,25],[5,26,6,26],[7,0,8,0],[7,1,8,1],[7,2,8,2],[7,21,8,21],[7,22,8,22],[7,23,8,23],[7,24,8,24],[7,25,8,25],[7,26,8,26],[2,27,4,27],[2,28,3,28],[2,29,3,29],[2,30,3,30],[2,31,2,32],[5,0,6,0],[5,1,6,1],[5,2,6,2],[5,21,6,21],[5,22,6,22],[2,21,4,21],[2,22,4,22],[2,23,4,23],[2,24,4,24],[2,25,4,25],[2,26,4,26],[2,0,4,0],[2,1,4,1],[2,2,4,2],[2,3,4,3],[2,4,4,4],[2,5,2,20],[5,23,6,23],[5,24,6,24],[0,2,1,3],[0,4,1,13],[0,14,1,14],[0,15,0,21],[0,36,0,38],[0,39,0,40],[1,15,1,21],[1,26,1,27],[1,28,1,30],[1,31,1,32],[0,22,1,22],[0,23,1,24],[0,25,1,25],[0,26,0,27],[0,28,0,30],[0,31,0,32]]}
["상 호",null,null,null,{"$f":"P1","v":"2023-01-01"},null,null,null,null,null,null,null,null,null,"기간",{"$f":"노임DB!E5","v":"2023-01-01"},null,null,null,null,null,null,"현장명",{"$f":"노임DB!Y1","v":0},null,"고용관리책임자","성명",null,null,null,null,"팀장",null,"세율",null,150000,"4대보험 미신고자 일괄공제",null,null,"국민연금(2022상)"]
[null,null,null,null,null,null,null,null,null,null,null,null,null,null,null,{"$f":"DATE(YEAR(P1),MONTH(P1)+1,DAY(P1))-1","v":"2023-01-31"},null,null,null,null,null,null,null,null,null,null,"주민등록번호",null,null,null,null,"홍길동",null,"갑근세","국민연금","고용보험","갑근세","국민연금","고용보험","최저",330000]
["신고여부","공종명","성  명","주민등록번호\n전화번호","주        소\n직        종","공 수",null,null,null,null,null,null,null,null,null,null,null,null,null,null,null,"총공수","노무비         단  가","노무비            총   액","공  제 총  액","차   감         지급액","영수인","고용보험","소득세","건강보험","적용제외",{"$f":"MATCH(AF2,노임DB!C:C,0)","v":7},null,"주민세","건강보험","장기요양","주민세","건강보험","장기요양","최고",5240000]
[null,null,null,null,null,{"$f":"P1","v":"2023-01-01"},{"$f":"F4+1","v":"2023-01-02"},{"$f":"G4+1","v":"2023-01-03"},"2023-01-04","2023-01-05","2023-01-06","2023-01-07","2023-01-08","2023-01-09","2023-01-10","2023-01-11","2023-01-12","2023-01-13","2023-01-14","2023-01-15",null,null,null,null,null,null,null,null,null,null,null,null,null,2.7E-2,4.4999999999999998E-2,8.0000000000000002E-3,3.3000000000000002E-2,0,0]
[null,null,null,null,null,{"$f":"T4+1","v":"2023-01-16"},{"$f":"F5+1","v":"2023-01-17"},"2023-01-18","2023-01-19","2023-01-20","2023-01-21","2023-01-22","2023-01-23",{"$f":"M5+1","v":"2023-01-24"},"2023-01-25","2023-01-26","2023-01-27","2023-01-28","2023-01-29","2023-01-30","2023-01-31",null,null,null,null,null,null,null,"지방소득세","국민연금","적용제외",null,null,2.7000000000000001E-3,3.4950000000000002E-2,0.1227,0,0,0]
["신고",{"$f":"IF(C6=\"\",\"\",IFERROR(VLOOKUP(C6,출역인원,6,0),\"노무DATA없음\"))","v":"현장소장"},{"$f":"IF(OFFSET(INDIRECT(\"노임DB!$C$\"&$AF$3),INT((ROW()-5)/2),0)=\"\",\"\",(OFFSET(INDIRECT(\"노임DB!$C$\"&$AF$3),INT((ROW()-5)/2),0)))","v":"홍길동"},{"$f":"IF(C6=\"\",\"\",IFERROR(VLOOKUP(C6,출역인원,2,0),\"노무DATA없음\"))","v":"000101-1000000"},{"$f":"IF(C6=\"\",\"\",IFERROR(VLOOKUP(C6,출역인원,3,0),\"노무DATA없음\"))","v":0},{"$f":"IF(OR(OFFSET(INDIRECT(\"노임DB!$E$\"&$AF$3),INT((ROW()-6)/2),COLUMN()-6)=\"\",OFFSET(INDIRECT(\"노임DB!$E$\"&$AF$3),INT((ROW()-6)/2),COLUMN()-6)*1=0),0,OFFSET(INDIRECT(\"노임DB!$E$\"&$AF$3),INT((ROW()-6)/2),COLUMN()-6)*1)","v":1},0,0,0,0,0,0,0,0,0,0,0,0,0,0,null,{"$f":"SUM(F6:U7)","v":1},250000,{"$f":"V6*W6","v":250000},{"$f":"SUM(AB6:AD7)","v":2970},{"$f":"X6-Y6","v":247030},null,{"$f":"IF(LEN(D6)<>14,0,IF(INT(TEXT($P$1,\"yyyy.mmdd\")-TEXT(TEXT(LEFT(D6,6),\"1900-00-00\"),\"yyyy.mmdd\"))>=65,\"65세이상\",TRUNC(X6*$AJ$4+0.5,-1)))","v":"65세이상"},{"$f":"IF(AG6=\"Y\",TRUNC(X6*$AH$4,-1),SUM(IF(F6:U7*W6>$AJ$1,TRUNC((F6:U7*W6-$AJ$1)*$AH$4,-1))))","v":2700},{"$f":"IF(AE6<>\"NO\",0,IF(LEN(D6)<>14,0,IF(OR(V6<20,X6=0),0,IF(X6<$AO$2,SUM(TRUNC($AO$2*$AI$5,-1),TRUNC(TRUNC($AO$2*$AI$5,-1)*$AJ$5,-1)),SUM(TRUNC(X6*$AI$5,-1),TRUNC((TRUNC(X6*$AI$5,-1)*$AJ$5),-1))))))","v":0},"NO",{"$f":"IF(C6=\"\",\"\",VLOOKUP(C6,출역인원,9,0))","v":0},{"$f":"IF(C6=\"\",\"\",VLOOKUP(C6,출역인원,10,0))","v":0},null,{"$f":"IF(C6=\"\",\"\",VLOOKUP(C6,출역인원,11,0))","v":0}]
[null,null,null,{"$f":"IF(C6=\"\",\"\",IFERROR(VLOOKUP(C6,출역인원,12,0),\"노무DATA없음\"))","v":0},null,{"$f":"IF(OR(OFFSET(INDIRECT(\"노임DB!$E$\"&$AF$3),INT((ROW()-7)/2),COLUMN()+9)=0,OFFSET(INDIRECT(\"노임DB!$E$\"&$AF$3),INT((ROW()-7)/2),COLUMN()+9)=\"\"),0,OFFSET(INDIRECT(\"노임DB!$E$\"&$AF$3),INT((ROW()-7)/2),COLUMN()+9))","v":0},0,0,0,0,0,0,0,0,0,0,0,0,0,0,0,null,null,null,null,null,null,0,{"$f":"IF(AG6=\"Y\",TRUNC(X6*$AH$5,-1),SUM(IF(F6:U7*W6>$AJ$1,TRUNC((F6:U7*W6-$AJ$1)*$AH$5,-1))))","v":270},{"$f":"IF(AE7=\"NO\",IF(LEN(D6)<>14,0,IF(MID(D6,8,1)<\"3\",IF(INT(TEXT($P$1,\"yyyy.mmdd\")-TEXT(TEXT(LEFT(D6,6),\"1900-00-00\"),\"yyyy.mmdd\"))>=60,\"60세이상\",IF(OR(V6<20,X6=0),0,IF(X6<$AO$2,TRUNC($AO$2*$AI$4,-1),IF(X6>$AO$3,TRUNC($AO$3*$AI$4,-1),+TRUNC(X6*$AI$4,-1))))),IF(INT(TEXT($P$1,\"yyyy.mmdd\")-TEXT(TEXT(LEFT(D6,6),\"00-00-00\"),\"yyyy.mmdd\"))>=60,\"60세이상\",IF(OR(V6<20,X6=0),0,IF(X6<$AO$2,TRUNC($AO$2*$AI$4,-1),IF(X6>$AO$3,TRUNC($AO$3*$AI$4,-1),+TRUNC(X6*$AI$4,-1))))))),0)","v":"60세이상"},"NO"]
["신고",{"$f":"IF(C8=\"\",\"\",IFERROR(VLOOKUP(C8,출역인원,6,0),\"노무DATA없음\"))","v":""},{"$f":"IF(OFFSET(INDIRECT(\"노임DB!$C$\"&$AF$3),INT((ROW()-5)/2),0)=\"\",\"\",(OFFSET(INDIRECT(\"노임DB!$C$\"&$AF$3),INT((ROW()-5)/2),0)))","v":""},{"$f":"IF(C8=\"\",\"\",IFERROR(VLOOKUP(C8,출역인원,2,0),\"노무DATA없음\"))","v":""},{"$f":"IF(C8=\"\",\"\",IFERROR(VLOOKUP(C8,출역인원,3,0),\"노무DATA없음\"))","v":""},0,0,0,0,0,0,0,0,0,0,0,0,0,0,0,null,{"$f":"SUM(F8:U9)","v":0},250000,{"$f":"V8*W8","v":0},{"$f":"SUM(AB8:AD9)","v":0},{"$f":"X8-Y8","v":0},null,{"$f":"IF(LEN(D8)<>14,0,IF(INT(TEXT($P$1,\"yyyy.mmdd\")-TEXT(TEXT(LEFT(D8,6),\"1900-00-00\"),\"yyyy.mmdd\"))>=65,\"65세이상\",TRUNC(X8*$AJ$4+0.5,-1)))","v":0},{"$f":"IF(AG8=\"Y\",TRUNC(X8*$AH$4,-1),SUM(IF(F8:U9*W8>$AJ$1,TRUNC((F8:U9*W8-$AJ$1)*$AH$4,-1))))","v":0},{"$f":"IF(AE8<>\"NO\",0,IF(LEN(D8)<>14,0,IF(OR(V8<20,X8=0),0,IF(X8<$AO$2,SUM(TRUNC($AO$2*$AI$5,-1),TRUNC(TRUNC($AO$2*$AI$5,-1)*$AJ$5,-1)),SUM(TRUNC(X8*$AI$5,-1),TRUNC((TRUNC(X8*$AI$5,-1)*$AJ$5),-1))))))","v":0},"NO",{"$f":"IF(C8=\"\",\"\",VLOOKUP(C8,출역인원,9,0))","v":""},{"$f":"IF(C8=\"\",\"\",VLOOKUP(C8,출역인원,10,0))","v":""},null,{"$f":"IF(C8=\"\",\"\",VLOOKUP(C8,출역인원,11,0))","v":""}]
[null,null,null,{"$f":"IF(C8=\"\",\"\",IFERROR(VLOOKUP(C8,출역인원,12,0),\"노무DATA없음\"))","v":""},null,0,0,0,0,0,0,0,0,0,0,0,0,0,0,0,0,null,null,null,null,null,null,0,{"$f":"IF(AG8=\"Y\",TRUNC(X8*$AH$5,-1),SUM(IF(F8:U9*W8>$AJ$1,TRUNC((F8:U9*W8-$AJ$1)*$AH$5,-1))))","v":0},{"$f":"IF(AE9=\"NO\",IF(LEN(D8)<>14,0,IF(MID(D8,8,1)<\"3\",IF(INT(TEXT($P$1,\"yyyy.mmdd\")-TEXT(TEXT(LEFT(D8,6),\"1900-00-00\"),\"yyyy.mmdd\"))>=60,\"60세이상\",IF(OR(V8<20,X8=0),0,IF(X8<$AO$2,TRUNC($AO$2*$AI$4,-1),IF(X8>$AO$3,TRUNC($AO$3*$AI$4,-1),+TRUNC(X8*$AI$4,-1))))),IF(INT(TEXT($P$1,\"yyyy.mmdd\")-TEXT(TEXT(LEFT(D8,6),\"00-00-00\"),\"yyyy.mmdd\"))>=60,\"60세이상\",IF(OR(V8<20,X8=0),0,IF(X8<$AO$2,TRUNC($AO$2*$AI$4,-1),IF(X8>$AO$3,TRUNC($AO$3*$AI$4,-1),+TRUNC(X8*$AI$4,-1))))))),0)","v":0},"NO"]
["신고",{"$f":"IF(C10=\"\",\"\",IFERROR(VLOOKUP(C10,출역인원,6,0),\"노무DATA없음\"))","v":""},{"$f":"IF(OFFSET(INDIRECT(\"노임DB!$C$\"&$AF$3),INT((ROW()-5)/2),0)=\"\",\"\",(OFFSET(INDIRECT(\"노임DB!$C$\"&$AF$3),INT((ROW()-5)/2),0)))","v":""},{"$f":"IF(C10=\"\",\"\",IFERROR(VLOOKUP(C10,출역인원,2,0),\"노무DATA없음\"))","v":""},{"$f":"IF(C10=\"\",\"\",IFERROR(VLOOKUP(C10,출역인원,3,0),\"노무DATA없음\"))","v":""},0,0,0,0,0,0,0,0,0,0,0,0,0,0,0,null,{"$f":"SUM(F10:U11)","v":0},250000,{"$f":"V10*W10","v":0},{"$f":"SUM(AB10:AD11)","v":0},{"$f":"X10-Y10","v":0},null,{"$f":"IF(LEN(D10)<>14,0,IF(INT(TEXT($P$1,\"yyyy.mmdd\")-TEXT(TEXT(LEFT(D10,6),\"1900-00-00\"),\"yyyy.mmdd\"))>=65,\"65세이상\",TRUNC(X10*$AJ$4+0.5,-1)))","v":0},{"$f":"IF(AG10=\"Y\",TRUNC(X10*$AH$4,-1),SUM(IF(F10:U11*W10>$AJ$1,TRUNC((F10:U11*W10-$AJ$1)*$AH$4,-1))))","v":0},{"$f":"IF(AE10<>\"NO\",0,IF(LEN(D10)<>14,0,IF(OR(V10<20,X10=0),0,IF(X10<$AO$2,SUM(TRUNC($AO$2*$AI$5,-1),TRUNC(TRUNC($AO$2*$AI$5,-1)*$AJ$5,-1)),SUM(TRUNC(X10*$AI$5,-1),TRUNC((TRUNC(X10*$AI$5,-1)*$AJ$5),-1))))))","v":0},"NO",{"$f":"IF(C10=\"\",\"\",VLOOKUP(C10,출역인원,9,0))","v":""},{"$f":"IF(C10=\"\",\"\",VLOOKUP(C10,출역인원,10,0))","v":""},null,{"$f":"IF(C10=\"\",\"\",VLOOKUP(C10,출역인원,11,0))","v":""}]
[null,null,null,{"$f":"IF(C10=\"\",\"\",IFERROR(VLOOKUP(C10,출역인원,12,0),\"노무DATA없음\"))","v":""},null,0,0,0,0,0,0,0,0,0,0,0,0,0,0,0,0,null,null,null,null,null,null,0,{"$f":"IF(AG10=\"Y\",TRUNC(X10*$AH$5,-1),SUM(IF(F10:U11*W10>$AJ$1,TRUNC((F10:U11*W10-$AJ$1)*$AH$5,-1))))","v":0},{"$f":"IF(AE11=\"NO\",IF(LEN(D10)<>14,0,IF(MID(D10,8,1)<\"3\",IF(INT(TEXT($P$1,\"yyyy.mmdd\")-TEXT(TEXT(LEFT(D10,6),\"1900-00-00\"),\"yyyy.mmdd\"))>=60,\"60세이상\",IF(OR(V10<20,X10=0),0,IF(X10<$AO$2,TRUNC($AO$2*$AI$4,-1),IF(X10>$AO$3,TRUNC($AO$3*$AI$4,-1),+TRUNC(X10*$AI$4,-1))))),IF(INT(TEXT($P$1,\"yyyy.mmdd\")-TEXT(TEXT(LEFT(D10,6),\"00-00-00\"),\"yyyy.mmdd\"))>=60,\"60세이상\",IF(OR(V10<20,X10=0),0,IF(X10<$AO$2,TRUNC($AO$2*$AI$4,-1),IF(X10>$AO$3,TRUNC($AO$3*$AI$4,-1),+TRUNC(X10*$AI$4,-1))))))),0)","v":0},"NO"]
["신고",{"$f":"IF(C12=\"\",\"\",IFERROR(VLOOKUP(C12,출역인원,6,0),\"노무DATA없음\"))","v":""},{"$f":"IF(OFFSET(INDIRECT(\"노임DB!$C$\"&$AF$3),INT((ROW()-5)/2),0)=\"\",\"\",(OFFSET(INDIRECT(\"노임DB!$C$\"&$AF$3),INT((ROW()-5)/2),0)))","v":""},{"$f":"IF(C12=\"\",\"\",IFERROR(VLOOKUP(C12,출역인원,2,0),\"노무DATA없음\"))","v":""},{"$f":"IF(C12=\"\",\"\",IFERROR(VLOOKUP(C12,출역인원,3,0),\"노무DATA없음\"))","v":""},0,0,0,0,0,0,0,0,0,0,0,0,0,0,0,null,{"$f":"SUM(F12:U13)","v":0},250000,{"$f":"V12*W12","v":0},{"$f":"SUM(AB12:AD13)","v":0},{"$f":"X12-Y12","v":0},null,{"$f":"IF(LEN(D12)<>14,0,IF(INT(TEXT($P$1,\"yyyy.mmdd\")-TEXT(TEXT(LEFT(D12,6),\"1900-00-00\"),\"yyyy.mmdd\"))>=65,\"65세이상\",TRUNC(X12*$AJ$4+0.5,-1)))","v":0},{"$f":"IF(AG12=\"Y\",TRUNC(X12*$AH$4,-1),SUM(IF(F12:U13*W12>$AJ$1,TRUNC((F12:U13*W12-$AJ$1)*$AH$4,-1))))","v":0},{"$f":"IF(AE12<>\"NO\",0,IF(LEN(D12)<>14,0,IF(OR(V12<20,X12=0),0,IF(X12<$AO$2,SUM(TRUNC($AO$2*$AI$5,-1),TRUNC(TRUNC($AO$2*$AI$5,-1)*$AJ$5,-1)),SUM(TRUNC(X12*$AI$5,-1),TRUNC((TRUNC(X12*$AI$5,-1)*$AJ$5),-1))))))","v":0},"NO",{"$f":"IF(C12=\"\",\"\",VLOOKUP(C12,출역인원,9,0))","v":""},{"$f":"IF(C12=\"\",\"\",VLOOKUP(C12,출역인원,10,0))","v":""},null,{"$f":"IF(C12=\"\",\"\",VLOOKUP(C12,출역인원,11,0))","v":""}]
[null,null,null,{"$f":"IF(C12=\"\",\"\",IFERROR(VLOOKUP(C12,출역인원,12,0),\"노무DATA없음\"))","v":""},null,0,0,0,0,0,0,0,0,0,0,0,0,0,0,0,0,null,null,null,null,null,null,0,{"$f":"IF(AG12=\"Y\",TRUNC(X12*$AH$5,-1),SUM(IF(F12:U13*W12>$AJ$1,TRUNC((F12:U13*W12-$AJ$1)*$AH$5,-1))))","v":0},{"$f":"IF(AE13=\"NO\",IF(LEN(D12)<>14,0,IF(MID(D12,8,1)<\"3\",IF(INT(TEXT($P$1,\"yyyy.mmdd\")-TEXT(TEXT(LEFT(D12,6),\"1900-00-00\"),\"yyyy.mmdd\"))>=60,\"60세이상\",IF(OR(V12<20,X12=0),0,IF(X12<$AO$2,TRUNC($AO$2*$AI$4,-1),IF(X12>$AO$3,TRUNC($AO$3*$AI$4,-1),+TRUNC(X12*$AI$4,-1))))),IF(INT(TEXT($P$1,\"yyyy.mmdd\")-TEXT(TEXT(LEFT(D12,6),\"00-00-00\"),\"yyyy.mmdd\"))>=60,\"60세이상\",IF(OR(V12<20,X12=0),0,IF(X12<$AO$2,TRUNC($AO$2*$AI$4,-1),IF(X12>$AO$3,TRUNC($AO$3*$AI$4,-1),+TRUNC(X12*$AI$4,-1))))))),0)","v":0},"NO"]
["신고",{"$f":"IF(C14=\"\",\"\",IFERROR(VLOOKUP(C14,출역인원,6,0),\"노무DATA없음\"))","v":""},{"$f":"IF(OFFSET(INDIRECT(\"노임DB!$C$\"&$AF$3),INT((ROW()-5)/2),0)=\"\",\"\",(OFFSET(INDIRECT(\"노임DB!$C$\"&$AF$3),INT((ROW()-5)/2),0)))","v":""},{"$f":"IF(C14=\"\",\"\",IFERROR(VLOOKUP(C14,출역인원,2,0),\"노무DATA없음\"))","v":""},{"$f":"IF(C14=\"\",\"\",IFERROR(VLOOKUP(C14,출역인원,3,0),\"노무DATA없음\"))","v":""},{"$f":"IF(OR(OFFSET(INDIRECT(\"노임DB!$E$\"&$AF$3),INT((ROW()-6)/2),COLUMN()-6)=\"\",OFFSET(INDIRECT(\"노임DB!$E$\"&$AF$3),INT((ROW()-6)/2),COLUMN()-6)*1=0),0,OFFSET(INDIRECT(\"노임DB!$E$\"&$AF$3),INT((ROW()-6)/2),COLUMN()-6)*1)","v":0},0,0,0,0,0,0,0,0,0,0,0,0,0,0,null,{"$f":"SUM(F14:U15)","v":0},250000,{"$f":"V14*W14","v":0},{"$f":"SUM(AB14:AD15)","v":0},{"$f":"X14-Y14","v":0},null,{"$f":"IF(LEN(D14)<>14,0,IF(INT(TEXT($P$1,\"yyyy.mmdd\")-TEXT(TEXT(LEFT(D14,6),\"1900-00-00\"),\"yyyy.mmdd\"))>=65,\"65세이상\",TRUNC(X14*$AJ$4+0.5,-1)))","v":0},{"$f":"IF(AG14=\"Y\",TRUNC(X14*$AH$4,-1),SUM(IF(F14:U15*W14>$AJ$1,TRUNC((F14:U15*W14-$AJ$1)*$AH$4,-1))))","v":0},{"$f":"IF(AE14<>\"NO\",0,IF(LEN(D14)<>14,0,IF(OR(V14<20,X14=0),0,IF(X14<$AO$2,SUM(TRUNC($AO$2*$AI$5,-1),TRUNC(TRUNC($AO$2*$AI$5,-1)*$AJ$5,-1)),SUM(TRUNC(X14*$AI$5,-1),TRUNC((TRUNC(X14*$AI$5,-1)*$AJ$5),-1))))))","v":0},"NO",{"$f":"IF(C14=\"\",\"\",VLOOKUP(C14,출역인원,9,0))","v":""},{"$f":"IF(C14=\"\",\"\",VLOOKUP(C14,출역인원,10,0))","v":""},null,{"$f":"IF(C14=\"\",\"\",VLOOKUP(C14,출역인원,11,0))","v":""}]
[null,null,null,{"$f":"IF(C14=\"\",\"\",IFERROR(VLOOKUP(C14,출역인원,12,0),\"노무DATA없음\"))","v":""},null,{"$f":"IF(OR(OFFSET(INDIRECT(\"노임DB!$E$\"&$AF$3),INT((ROW()-7)/2),COLUMN()+9)=0,OFFSET(INDIRECT(\"노임DB!$E$\"&$AF$3),INT((ROW()-7)/2),COLUMN()+9)=\"\"),0,OFFSET(INDIRECT(\"노임DB!$E$\"&$AF$3),INT((ROW()-7)/2),COLUMN()+9))","v":0},0,0,0,0,0,0,0,0,0,0,0,0,0,0,0,null,null,null,null,null,null,0,{"$f":"IF(AG14=\"Y\",TRUNC(X14*$AH$5,-1),SUM(IF(F14:U15*W14>$AJ$1,TRUNC((F14:U15*W14-$AJ$1)*$AH$5,-1))))","v":0},{"$f":"IF(AE15=\"NO\",IF(LEN(D14)<>14,0,IF(MID(D14,8,1)<\"3\",IF(INT(TEXT($P$1,\"yyyy.mmdd\")-TEXT(TEXT(LEFT(D14,6),\"1900-00-00\"),\"yyyy.mmdd\"))>=60,\"60세이상\",IF(OR(V14<20,X14=0),0,IF(X14<$AO$2,TRUNC($AO$2*$AI$4,-1),IF(X14>$AO$3,TRUNC($AO$3*$AI$4,-1),+TRUNC(X14*$AI$4,-1))))),IF(INT(TEXT($P$1,\"yyyy.mmdd\")-TEXT(TEXT(LEFT(D14,6),\"00-00-00\"),\"yyyy.mmdd\"))>=60,\"60세이상\",IF(OR(V14<20,X14=0),0,IF(X14<$AO$2,TRUNC($AO$2*$AI$4,-1),IF(X14>$AO$3,TRUNC($AO$3*$AI$4,-1),+TRUNC(X14*$AI$4,-1))))))),0)","v":0},"NO"]
["신고",{"$f":"IF(C16=\"\",\"\",IFERROR(VLOOKUP(C16,출역인원,6,0),\"노무DATA없음\"))","v":""},{"$f":"IF(OFFSET(INDIRECT(\"노임DB!$C$\"&$AF$3),INT((ROW()-5)/2),0)=\"\",\"\",(OFFSET(INDIRECT(\"노임DB!$C$\"&$AF$3),INT((ROW()-5)/2),0)))","v":""},{"$f":"IF(C16=\"\",\"\",IFERROR(VLOOKUP(C16,출역인원,2,0),\"노무DATA없음\"))","v":""},{"$f":"IF(C16=\"\",\"\",IFERROR(VLOOKUP(C16,출역인원,3,0),\"노무DATA없음\"))","v":""},0,0,0,0,0,0,0,0,0,0,0,0,0,0,0,null,{"$f":"SUM(F16:U17)","v":0},250000,{"$f":"V16*W16","v":0},{"$f":"SUM(AB16:AD17)","v":0},{"$f":"X16-Y16","v":0},null,{"$f":"IF(LEN(D16)<>14,0,IF(INT(TEXT($P$1,\"yyyy.mmdd\")-TEXT(TEXT(LEFT(D16,6),\"1900-00-00\"),\"yyyy.mmdd\"))>=65,\"65세이상\",TRUNC(X16*$AJ$4+0.5,-1)))","v":0},{"$f":"IF(AG16=\"Y\",TRUNC(X16*$AH$4,-1),SUM(IF(F16:U17*W16>$AJ$1,TRUNC((F16:U17*W16-$AJ$1)*$AH$4,-1))))","v":0},{"$f":"IF(AE16<>\"NO\",0,IF(LEN(D16)<>14,0,IF(OR(V16<20,X16=0),0,IF(X16<$AO$2,SUM(TRUNC($AO$2*$AI$5,-1),TRUNC(TRUNC($AO$2*$AI$5,-1)*$AJ$5,-1)),SUM(TRUNC(X16*$AI$5,-1),TRUNC((TRUNC(X16*$AI$5,-1)*$AJ$5),-1))))))","v":0},"NO",{"$f":"IF(C16=\"\",\"\",VLOOKUP(C16,출역인원,9,0))","v":""},{"$f":"IF(C16=\"\",\"\",VLOOKUP(C16,출역인원,10,0))","v":""},null,{"$f":"IF(C16=\"\",\"\",VLOOKUP(C16,출역인원,11,0))","v":""}]
[null,null,null,{"$f":"IF(C16=\"\",\"\",IFERROR(VLOOKUP(C16,출역인원,12,0),\"노무DATA없음\"))","v":""},null,0,0,0,0,0,0,0,0,0,0,0,0,0,0,0,0,null,null,null,null,null,null,0,{"$f":"IF(AG16=\"Y\",TRUNC(X16*$AH$5,-1),SUM(IF(F16:U17*W16>$AJ$1,TRUNC((F16:U17*W16-$AJ$1)*$AH$5,-1))))","v":0},{"$f":"IF(AE17=\"NO\",IF(LEN(D16)<>14,0,IF(MID(D16,8,1)<\"3\",IF(INT(TEXT($P$1,\"yyyy.mmdd\")-TEXT(TEXT(LEFT(D16,6),\"1900-00-00\"),\"yyyy.mmdd\"))>=60,\"60세이상\",IF(OR(V16<20,X16=0),0,IF(X16<$AO$2,TRUNC($AO$2*$AI$4,-1),IF(X16>$AO$3,TRUNC($AO$3*$AI$4,-1),+TRUNC(X16*$AI$4,-1))))),IF(INT(TEXT($P$1,\"yyyy.mmdd\")-TEXT(TEXT(LEFT(D16,6),\"00-00-00\"),\"yyyy.mmdd\"))>=60,\"60세이상\",IF(OR(V16<20,X16=0),0,IF(X16<$AO$2,TRUNC($AO$2*$AI$4,-1),IF(X16>$AO$3,TRUNC($AO$3*$AI$4,-1),+TRUNC(X16*$AI$4,-1))))))),0)","v":0},"NO"]
["신고",{"$f":"IF(C18=\"\",\"\",IFERROR(VLOOKUP(C18,출역인원,6,0),\"노무DATA없음\"))","v":""},{"$f":"IF(OFFSET(INDIRECT(\"노임DB!$C$\"&$AF$3),INT((ROW()-5)/2),0)=\"\",\"\",(OFFSET(INDIRECT(\"노임DB!$C$\"&$AF$3),INT((ROW()-5)/2),0)))","v":""},{"$f":"IF(C18=\"\",\"\",IFERROR(VLOOKUP(C18,출역인원,2,0),\"노무DATA없음\"))","v":""},{"$f":"IF(C18=\"\",\"\",IFERROR(VLOOKUP(C18,출역인원,3,0),\"노무DATA없음\"))","v":""},0,0,0,0,0,0,0,0,0,0,0,0,0,0,0,null,{"$f":"SUM(F18:U19)","v":0},250000,{"$f":"V18*W18","v":0},{"$f":"SUM(AB18:AD19)","v":0},{"$f":"X18-Y18","v":0},null,{"$f":"IF(LEN(D18)<>14,0,IF(INT(TEXT($P$1,\"yyyy.mmdd\")-TEXT(TEXT(LEFT(D18,6),\"1900-00-00\"),\"yyyy.mmdd\"))>=65,\"65세이상\",TRUNC(X18*$AJ$4+0.5,-1)))","v":0},{"$f":"IF(AG18=\"Y\",TRUNC(X18*$AH$4,-1),SUM(IF(F18:U19*W18>$AJ$1,TRUNC((F18:U19*W18-$AJ$1)*$AH$4,-1))))","v":0},{"$f":"IF(AE18<>\"NO\",0,IF(LEN(D18)<>14,0,IF(OR(V18<20,X18=0),0,IF(X18<$AO$2,SUM(TRUNC($AO$2*$AI$5,-1),TRUNC(TRUNC($AO$2*$AI$5,-1)*$AJ$5,-1)),SUM(TRUNC(X18*$AI$5,-1),TRUNC((TRUNC(X18*$AI$5,-1)*$AJ$5),-1))))))","v":0},"NO",{"$f":"IF(C18=\"\",\"\",VLOOKUP(C18,출역인원,9,0))","v":""},{"$f":"IF(C18=\"\",\"\",VLOOKUP(C18,출역인원,10,0))","v":""},null,{"$f":"IF(C18=\"\",\"\",VLOOKUP(C18,출역인원,11,0))","v":""}]
[null,null,null,{"$f":"IF(C18=\"\",\"\",IFERROR(VLOOKUP(C18,출역인원,12,0),\"노무DATA없음\"))","v":""},null,0,0,0,0,0,0,0,0,0,0,0,0,0,0,0,0,null,null,null,null,null,null,0,{"$f":"IF(AG18=\"Y\",TRUNC(X18*$AH$5,-1),SUM(IF(F18:U19*W18>$AJ$1,TRUNC((F18:U19*W18-$AJ$1)*$AH$5,-1))))","v":0},{"$f":"IF(AE19=\"NO\",IF(LEN(D18)<>14,0,IF(MID(D18,8,1)<\"3\",IF(INT(TEXT($P$1,\"yyyy.mmdd\")-TEXT(TEXT(LEFT(D18,6),\"1900-00-00\"),\"yyyy.mmdd\"))>=60,\"60세이상\",IF(OR(V18<20,X18=0),0,IF(X18<$AO$2,TRUNC($AO$2*$AI$4,-1),IF(X18>$AO$3,TRUNC($AO$3*$AI$4,-1),+TRUNC(X18*$AI$4,-1))))),IF(INT(TEXT($P$1,\"yyyy.mmdd\")-TEXT(TEXT(LEFT(D18,6),\"00-00-00\"),\"yyyy.mmdd\"))>=60,\"60세이상\",IF(OR(V18<20,X18=0),0,IF(X18<$AO$2,TRUNC($AO$2*$AI$4,-1),IF(X18>$AO$3,TRUNC($AO$3*$AI$4,-1),+TRUNC(X18*$AI$4,-1))))))),0)","v":0},"NO"]
["신고",{"$f":"IF(C20=\"\",\"\",IFERROR(VLOOKUP(C20,출역인원,6,0),\"노무DATA없음\"))","v":""},{"$f":"IF(OFFSET(INDIRECT(\"노임DB!$C$\"&$AF$3),INT((ROW()-5)/2),0)=\"\",\"\",(OFFSET(INDIRECT(\"노임DB!$C$\"&$AF$3),INT((ROW()-5)/2),0)))","v":""},{"$f":"IF(C20=\"\",\"\",IFERROR(VLOOKUP(C20,출역인원,2,0),\"노무DATA없음\"))","v":""},{"$f":"IF(C20=\"\",\"\",IFERROR(VLOOKUP(C20,출역인원,3,0),\"노무DATA없음\"))","v":""},0,0,0,0,0,0,0,0,0,0,0,0,0,0,0,null,{"$f":"SUM(F20:U21)","v":0},250000,{"$f":"V20*W20","v":0},{"$f":"SUM(AB20:AD21)","v":0},{"$f":"X20-Y20","v":0},null,{"$f":"IF(LEN(D20)<>14,0,IF(INT(TEXT($P$1,\"yyyy.mmdd\")-TEXT(TEXT(LEFT(D20,6),\"1900-00-00\"),\"yyyy.mmdd\"))>=65,\"65세이상\",TRUNC(X20*$AJ$4+0.5,-1)))","v":0},{"$f":"IF(AG20=\"Y\",TRUNC(X20*$AH$4,-1),SUM(IF(F20:U21*W20>$AJ$1,TRUNC((F20:U21*W20-$AJ$1)*$AH$4,-1))))","v":0},{"$f":"IF(AE20<>\"NO\",0,IF(LEN(D20)<>14,0,IF(OR(V20<20,X20=0),0,IF(X20<$AO$2,SUM(TRUNC($AO$2*$AI$5,-1),TRUNC(TRUNC($AO$2*$AI$5,-1)*$AJ$5,-1)),SUM(TRUNC(X20*$AI$5,-1),TRUNC((TRUNC(X20*$AI$5,-1)*$AJ$5),-1))))))","v":0},"NO",{"$f":"IF(C20=\"\",\"\",VLOOKUP(C20,출역인원,9,0))","v":""},{"$f":"IF(C20=\"\",\"\",VLOOKUP(C20,출역인원,10,0))","v":""},null,{"$f":"IF(C20=\"\",\"\",VLOOKUP(C20,출역인원,11,0))","v":""}]
[null,null,null,{"$f":"IF(C20=\"\",\"\",IFERROR(VLOOKUP(C20,출역인원,12,0),\"노무DATA없음\"))","v":""},null,0,0,0,0,0,0,0,0,0,0,0,0,0,0,0,0,null,null,null,null,null,null,0,{"$f":"IF(AG20=\"Y\",TRUNC(X20*$AH$5,-1),SUM(IF(F20:U21*W20>$AJ$1,TRUNC((F20:U21*W20-$AJ$1)*$AH$5,-1))))","v":0},{"$f":"IF(AE21=\"NO\",IF(LEN(D20)<>14,0,IF(MID(D20,8,1)<\"3\",IF(INT(TEXT($P$1,\"yyyy.mmdd\")-TEXT(TEXT(LEFT(D20,6),\"1900-00-00\"),\"yyyy.mmdd\"))>=60,\"60세이상\",IF(OR(V20<20,X20=0),0,IF(X20<$AO$2,TRUNC($AO$2*$AI$4,-1),IF(X20>$AO$3,TRUNC($AO$3*$AI$4,-1),+TRUNC(X20*$AI$4,-1))))),IF(INT(TEXT($P$1,\"yyyy.mmdd\")-TEXT(TEXT(LEFT(D20,6),\"00-00-00\"),\"yyyy.mmdd\"))>=60,\"60세이상\",IF(OR(V20<20,X20=0),0,IF(X20<$AO$2,TRUNC($AO$2*$AI$4,-1),IF(X20>$AO$3,TRUNC($AO$3*$AI$4,-1),+TRUNC(X20*$AI$4,-1))))))),0)","v":0},"NO"]
["총  계","총  계",{"$f":"SUMPRODUCT(( C$6:INDIRECT(ADDRESS(ROW()-1,COLUMN())) <> \"\")*1 )&\" 명\"","v":"1 명"},null,null,{"$f":"SUMPRODUCT(N(MOD(ROW(F$6:OFFSET(F23,-2,)),2)=MOD(ROW(),2)),F$6:OFFSET(F23,-2,))","v":1},{"$f":"SUMPRODUCT(N(MOD(ROW(G$6:OFFSET(G23,-2,)),2)=MOD(ROW(),2)),G$6:OFFSET(G23,-2,))","v":0},{"$f":"SUMPRODUCT(N(MOD(ROW(H$6:OFFSET(H23,-2,)),2)=MOD(ROW(),2)),H$6:OFFSET(H23,-2,))","v":0},{"$f":"SUMPRODUCT(N(MOD(ROW(I$6:OFFSET(I23,-2,)),2)=MOD(ROW(),2)),I$6:OFFSET(I23,-2,))","v":0},{"$f":"SUMPRODUCT(N(MOD(ROW(J$6:OFFSET(J23,-2,)),2)=MOD(ROW(),2)),J$6:OFFSET(J23,-2,))","v":0},{"$f":"SUMPRODUCT(N(MOD(ROW(K$6:OFFSET(K23,-2,)),2)=MOD(ROW(),2)),K$6:OFFSET(K23,-2,))","v":0},{"$f":"SUMPRODUCT(N(MOD(ROW(L$6:OFFSET(L23,-2,)),2)=MOD(ROW(),2)),L$6:OFFSET(L23,-2,))","v":0},{"$f":"SUMPRODUCT(N(MOD(ROW(M$6:OFFSET(M23,-2,)),2)=MOD(ROW(),2)),M$6:OFFSET(M23,-2,))","v":0},{"$f":"SUMPRODUCT(N(MOD(ROW(N$6:OFFSET(N23,-2,)),2)=MOD(ROW(),2)),N$6:OFFSET(N23,-2,))","v":0},{"$f":"SUMPRODUCT(N(MOD(ROW(O$6:OFFSET(O23,-2,)),2)=MOD(ROW(),2)),O$6:OFFSET(O23,-2,))","v":0},{"$f":"SUMPRODUCT(N(MOD(ROW(P$6:OFFSET(P23,-2,)),2)=MOD(ROW(),2)),P$6:OFFSET(P23,-2,))","v":0},{"$f":"SUMPRODUCT(N(MOD(ROW(Q$6:OFFSET(Q23,-2,)),2)=MOD(ROW(),2)),Q$6:OFFSET(Q23,-2,))","v":0},{"$f":"SUMPRODUCT(N(MOD(ROW(R$6:OFFSET(R23,-2,)),2)=MOD(ROW(),2)),R$6:OFFSET(R23,-2,))","v":0},{"$f":"SUMPRODUCT(N(MOD(ROW(S$6:OFFSET(S23,-2,)),2)=MOD(ROW(),2)),S$6:OFFSET(S23,-2,))","v":0},{"$f":"SUMPRODUCT(N(MOD(ROW(T$6:OFFSET(T23,-2,)),2)=MOD(ROW(),2)),T$6:OFFSET(T23,-2,))","v":0},{"$f":"SUMPRODUCT(N(MOD(ROW(U$6:OFFSET(U23,-2,)),2)=MOD(ROW(),2)),U$6:OFFSET(U23,-2,))","v":0},{"$f":"SUM(V$6:OFFSET(V23,-2,))","v":1},null,{"$f":"SUM(X$6:OFFSET(X23,-2,))","v":250000},{"$f":"SUM(Y$6:OFFSET(Y23,-2,))","v":2970},{"$f":"SUM(Z$6:OFFSET(Z23,-2,))","v":247030},null,{"$f":"SUM(AB$6:INDIRECT(ADDRESS(ROW()-1,COLUMN())))","v":0},{"$f":"SUMPRODUCT(N(MOD(ROW(AC$6:OFFSET(AC23,-2,)),2)=MOD(ROW(),2)),AC$6:OFFSET(AC23,-2,))","v":2700},{"$f":"SUMPRODUCT(N(MOD(ROW(AD$6:OFFSET(AD23,-2,)),2)=MOD(ROW(),2)),AD$6:OFFSET(AD23,-2,))","v":0},{"$f":"SUMPRODUCT(N(MOD(ROW(AE$6:INDIRECT(ADDRESS(ROW()-1,COLUMN()))),2) = 0), AE$6:INDIRECT(ADDRESS(ROW()-1,COLUMN())))","v":0}]
[null,null,null,null,null,{"$f":"SUMPRODUCT(N(MOD(ROW(F$6:OFFSET(F23,-2,)),2)=MOD(ROW(),2)),F$6:OFFSET(F23,-2,))","v":0},{"$f":"SUMPRODUCT(N(MOD(ROW(G$6:OFFSET(G23,-2,)),2)=MOD(ROW(),2)),G$6:OFFSET(G23,-2,))","v":0},{"$f":"SUMPRODUCT(N(MOD(ROW(H$6:OFFSET(H23,-2,)),2)=MOD(ROW(),2)),H$6:OFFSET(H23,-2,))","v":0},{"$f":"SUMPRODUCT(N(MOD(ROW(I$6:OFFSET(I23,-2,)),2)=MOD(ROW(),2)),I$6:OFFSET(I23,-2,))","v":0},{"$f":"SUMPRODUCT(N(MOD(ROW(J$6:OFFSET(J23,-2,)),2)=MOD(ROW(),2)),J$6:OFFSET(J23,-2,))","v":0},{"$f":"SUMPRODUCT(N(MOD(ROW(K$6:OFFSET(K23,-2,)),2)=MOD(ROW(),2)),K$6:OFFSET(K23,-2,))","v":0},{"$f":"SUMPRODUCT(N(MOD(ROW(L$6:OFFSET(L23,-2,)),2)=MOD(ROW(),2)),L$6:OFFSET(L23,-2,))","v":0},{"$f":"SUMPRODUCT(N(MOD(ROW(M$6:OFFSET(M23,-2,)),2)=MOD(ROW(),2)),M$6:OFFSET(M23,-2,))","v":0},{"$f":"SUMPRODUCT(N(MOD(ROW(N$6:OFFSET(N23,-2,)),2)=MOD(ROW(),2)),N$6:OFFSET(N23,-2,))","v":0},{"$f":"SUMPRODUCT(N(MOD(ROW(O$6:OFFSET(O23,-2,)),2)=MOD(ROW(),2)),O$6:OFFSET(O23,-2,))","v":0},{"$f":"SUMPRODUCT(N(MOD(ROW(P$6:OFFSET(P23,-2,)),2)=MOD(ROW(),2)),P$6:OFFSET(P23,-2,))","v":0},{"$f":"SUMPRODUCT(N(MOD(ROW(Q$6:OFFSET(Q23,-2,)),2)=MOD(ROW(),2)),Q$6:OFFSET(Q23,-2,))","v":0},{"$f":"SUMPRODUCT(N(MOD(ROW(R$6:OFFSET(R23,-2,)),2)=MOD(ROW(),2)),R$6:OFFSET(R23,-2,))","v":0},{"$f":"SUMPRODUCT(N(MOD(ROW(S$6:OFFSET(S23,-2,)),2)=MOD(ROW(),2)),S$6:OFFSET(S23,-2,))","v":0},{"$f":"SUMPRODUCT(N(MOD(ROW(T$6:OFFSET(T23,-2,)),2)=MOD(ROW(),2)),T$6:OFFSET(T23,-2,))","v":0},{"$f":"SUMPRODUCT(N(MOD(ROW(U$6:OFFSET(U23,-2,)),2)=MOD(ROW(),2)),U$6:OFFSET(U23,-2,))","v":0},null,null,null,null,null,null,null,{"$f":"SUMPRODUCT(N(MOD(ROW(AC$6:OFFSET(AC23,-2,)),2)=MOD(ROW(),2)),AC$6:OFFSET(AC23,-2,))","v":270},{"$f":"SUMPRODUCT(N(MOD(ROW(AD$6:OFFSET(AD23,-2,)),2)=MOD(ROW(),2)),AD$6:OFFSET(AD23,-2,))","v":0},{"$f":"SUMPRODUCT(N(MOD(ROW(AE$6:INDIRECT(ADDRESS(ROW()-2,COLUMN()))),2) = 1), AE$6:INDIRECT(ADDRESS(ROW()-2,COLUMN())))","v":0}]

{"sheet":"일용노무비지급명세서(마이스터)","index":5,"n_rows":26,"n_cols":42,"rows_kept":26,"cut":false,"hidden":false,"merged":[[22,25,23,25],[22,30,23,30],[16,33,17,33],[16,34,17,35],[16,36,17,36],[18,33,19,33],[18,34,19,35],[18,36,19,36],[20,33,21,33],[20,34,21,35],[20,36,21,36],[22,33,23,33],[22,34,23,35],[22,36,23,36],[22,32,23,32],[16,30,17,30],[16,32,17,32],[20,25,21,25],[20,30,21,30],[20,32,21,32],[3,34,3,35],[4,33,5,33],[4,34,5,35],[4,36,5,36],[6,33,7,33],[6,34,7,35],[6,36,7,36],[8,33,9,33],[8,34,9,35],[8,36,9,36],[10,33,11,33],[10,34,11,35],[10,36,11,36],[12,33,13,33],[12,34,13,35],[12,36,13,36],[14,33,15,33],[14,34,15,35],[14,36,15,36],[20,0,21,0],[20,1,21,1],[20,2,21,2],[20,3,21,3],[20,5,20,6],[10,30,11,30],[10,32,11,32],[11,4,11,6],[14,5,14,6],[12,0,13,0],[16,0,17,0],[16,1,17,1],[16,2,17,2],[16,3,17,3],[16,5,16,6],[17,4,17,6],[18,32,19,32],[18,0,19,0],[18,1,19,1],[18,2,19,2],[18,3,19,3],[18,5,18,6],[19,4,19,6],[21,4,21,6],[0,6,0,7],[0,24,0,25],[0,29,0,31],[1,27,1,28],[2,1,3,1],[2,3,3,3],[2,5,2,6],[0,2,0,3],[4,25,5,25],[4,30,5,30],[5,4,5,6],[4,23,5,23],[4,24,5,24],[1,25,3,25],[1,30,3,30],[6,1,7,1],[6,2,7,2],[8,25,9,25],[8,30,9,30],[6,25,7,25],[6,30,7,30],[14,2,15,2],[14,3,15,3],[12,1,13,1],[12,2,13,2],[12,3,13,3],[12,5,12,6],[12,23,13,23],[12,24,13,24],[12,25,13,25],[6,24,7,24],[8,24,9,24],[14,23,15,23],[14,24,15,24],[15,4,15,6],[12,30,13,30],[14,25,15,25],[14,30,15,30],[22,0,23,0],[22,1,23,1],[22,2,23,2],[22,3,23,3],[22,5,22,6],[23,4,23,6],[0,40,0,41],[1,34,2,35],[24,32,25,32],[14,32,15,32],[24,30,25,30],[24,31,25,31],[0,0,0,1],[4,32,5,32],[6,32,7,32],[1,32,1,33],[2,32,2,33],[1,23,3,23],[1,0,1,3],[0,19,0,20],[0,21,0,22],[1,7,1,22],[0,8,0,18],[1,24,3,24],[24,1,25,6],[24,23,25,23],[24,25,25,25],[1,36,2,36],[13,4,13,6],[14,0,15,0],[10,23,11,23],[10,24,11,24],[16,23,17,23],[16,24,17,24],[18,23,19,23],[18,24,19,24],[18,25,19,25],[18,30,19,30],[24,24,25,24],[22,23,23,23],[22,24,23,24],[6,0,7,0],[12,32,13,32],[8,32,9,32],[8,0,9,0],[8,1,9,1],[8,2,9,2],[8,3,9,3],[0,34,0,35],[10,0,11,0],[10,1,11,1],[10,2,11,2],[10,3,11,3],[10,5,10,6],[14,1,15,1],[20,23,21,23],[20,24,21,24],[10,25,11,25],[16,25,17,25],[0,32,0,33],[8,5,8,6],[4,0,5,0],[4,1,5,1],[4,2,5,2],[4,3,5,3],[4,5,4,6],[6,3,7,3],[6,5,6,6],[6,23,7,23],[9,4,9,6],[7,4,7,6],[8,23,9,23]]}
["회사명",null,null,null,"귀속",{"$f":"노임DB!A1","v":2023},{"$f":"노임DB!C1","v":1},null,"일 용 노 무 비 지 급 명 세 서",null,null,null,null,null,null,null,null,null,null,{"$f":"노임DB!E5","v":"2023-01-01"},null,{"$f":"DATE(YEAR(T1),MONTH(T1)+1,DAY(T1))-1","v":"2023-01-31"},null,"관리자",null,null,"연락처",null,"현장명",{"$f":"노임DB!Y1","v":0},null,null,"팀장",null,"세율",null,150000,"소득세","국민연금","건강보험","국민연금(2023상)"]
["일용근로자인적사항",null,null,null,null,"직종/주소(입력)",null,"출          력          현          황",null,null,null,null,null,null,null,null,null,null,null,null,null,null,null,"근무\n일수","일일\n단가","보수\n총액",null,"공제금액",null,null,"차감\n지급액",null,"홍길동",null,"4대보험 미신고자 일괄공제",null,0.03,"주민세","고용보험","요양보험","최저",350000]
["일련","성명","주민(외국인)","국적","직종","핸드폰번호",null,{"$f":"T1","v":"2023-01-01"},{"$f":"H3+1","v":"2023-01-02"},{"$f":"I3+1","v":"2023-01-03"},"2023-01-04","2023-01-05","2023-01-06","2023-01-07","2023-01-08","2023-01-09","2023-01-10","2023-01-11","2023-01-12","2023-01-13","2023-01-14","2023-01-15",null,null,null,null,"소득세","국민연금","건강보험","가불입력",null,"팀명",{"$f":"MATCH(AG2,노임DB!C:C,0)","v":7},null,null,null,null,2.7E-2,4.4999999999999998E-2,3.5450000000000002E-2,"최고",5530000]
["번호",null,"등록번호",null,"시.군","구,동,번지,아파트","동,호수",{"$f":"V3+1","v":"2023-01-16"},{"$f":"H4+1","v":"2023-01-17"},{"$f":"I4+1","v":"2023-01-18"},"2023-01-19","2023-01-20","2023-01-21","2023-01-22","2023-01-23","2023-01-24","2023-01-25","2023-01-26","2023-01-27","2023-01-28","2023-01-29","2023-01-30","2023-01-31",null,null,null,"주민세","고용보험","요양보험","공제총액",null,"신고여부","적용제외","은행","계좌번호",null,"예금주",2.7000000000000001E-3,8.9999999999999993E-3,0.12809999999999999]
["1",{"$f":"IF(OFFSET(INDIRECT(\"노임DB!$C$\"&$AG$3),INT((ROW()-5)/2),0)=\"\",\"\",(OFFSET(INDIRECT(\"노임DB!$C$\"&$AG$3),INT((ROW()-5)/2),0)))","v":"홍길동"},{"$f":"IF(B5=\"\",\"\",IFERROR(VLOOKUP(B5,출역인원,2,0),\"노무DATA없음\"))","v":"000101-1000000"},{"$f":"IF(B5=\"\",\"\",IFERROR(VLOOKUP(B5,출역인원,16,0),\"노무DATA없음\"))","v":0},{"$f":"IF(B5=\"\",\"\",IFERROR(VLOOKUP(B5,출역인원,6,0),\"노무DATA없음\"))","v":"현장소장"},{"$f":"IF(B5=\"\",\"\",IFERROR(VLOOKUP(B5,출역인원,12,0),\"노무DATA없음\"))","v":0},null,{"$f":"IF(OR(OFFSET(INDIRECT(\"노임DB!$E$\"&$AG$3),INT((ROW()-5)/2),COLUMN()-8)=\"\",OFFSET(INDIRECT(\"노임DB!$E$\"&$AG$3),INT((ROW()-5)/2),COLUMN()-8)*1=0),0,OFFSET(INDIRECT(\"노임DB!$E$\"&$AG$3),INT((ROW()-5)/2),COLUMN()-8)*1)","v":1},{"$f":"IF(OR(OFFSET(INDIRECT(\"노임DB!$E$\"&$AG$3),INT((ROW()-5)/2),COLUMN()-8)=\"\",OFFSET(INDIRECT(\"노임DB!$E$\"&$AG$3),INT((ROW()-5)/2),COLUMN()-8)*1=0),0,OFFSET(INDIRECT(\"노임DB!$E$\"&$AG$3),INT((ROW()-5)/2),COLUMN()-8)*1)","v":0},0,0,0,0,0,0,0,0,0,0,0,0,0,null,{"$f":"SUM(H5:W6)","v":1},250000,{"$f":"X5*Y5","v":250000},{"$f":"IF(AG5=\"Y\",TRUNC(Z5*$AK$2,-1),IF(TRUNC(SUM(IF(H5:W6*Y5>$AK$1,(H5:W6*Y5-$AK$1))*$AL$3),-1)<1000,0,TRUNC(SUM(IF(H5:W6*Y5>$AK$1,(H5:W6*Y5-$AK$1))*$AL$3),-1)))","v":2700},{"$f":"IF(AG5=\"Y\",0,IF(LEN(C5)<>14,0,IF(MID(C5,8,1)<\"3\",IF(INT(TEXT($T$1,\"yyyy.mmdd\")-TEXT(TEXT(LEFT(C5,6),\"1900-00-00\"),\"yyyy.mmdd\"))>=60,\"60세이상\",IF(OR(X5<8,Z5=0),0,IF(Z5<$AP$2,TRUNC($AP$2*$AM$3,-1),IF(Z5>$AP$3,TRUNC($AP$3*$AM$3,-1),+TRUNC(Z5*$AM$3,-1))))),IF(INT(TEXT($T$1,\"yyyy.mmdd\")-TEXT(TEXT(LEFT(C5,6),\"00-00-00\"),\"yyyy.mmdd\"))>=60,\"60세이상\",IF(OR(X5<8,Z5=0),0,IF(Z5<$AP$2,TRUNC($AP$2*$AM$3,-1),IF(Z5>$AP$3,TRUNC($AP$3*$AM$3,-1),+TRUNC(Z5*$AM$3,-1))))))))","v":"60세이상"},{"$f":"IF(AG5=\"Y\",0,IF(LEN(C5)<>14,0,IF(OR(X5<8,X5=0),0,IF(Z5<$AP$2,TRUNC($AP$2*$AN$3,-1),SUM(TRUNC(Z5*$AN$3,-1))))))","v":0},null,{"$f":"Z5-AD6","v":247030},null,null,{"$f":"IF(B5=\"\",\"\",VLOOKUP(B5,출역인원,9,0))","v":0},{"$f":"IF(B5=\"\",\"\",VLOOKUP(B5,출역인원,10,0))","v":0},null,{"$f":"IF(B5=\"\",\"\",VLOOKUP(B5,출역인원,11,0))","v":0}]
[null,null,null,null,{"$f":"IF(B5=\"\",\"\",IFERROR(VLOOKUP(B5,출역인원,3,0),\"노무DATA없음\"))","v":0},null,null,{"$f":"IF(OR(OFFSET(INDIRECT(\"노임DB!$E$\"&$AG$3),INT((ROW()-6)/2),COLUMN()+7)=0,OFFSET(INDIRECT(\"노임DB!$E$\"&$AG$3),INT((ROW()-6)/2),COLUMN()+7)=\"\"),0,OFFSET(INDIRECT(\"노임DB!$E$\"&$AG$3),INT((ROW()-6)/2),COLUMN()+7))","v":0},{"$f":"IF(OR(OFFSET(INDIRECT(\"노임DB!$E$\"&$AG$3),INT((ROW()-6)/2),COLUMN()+7)=0,OFFSET(INDIRECT(\"노임DB!$E$\"&$AG$3),INT((ROW()-6)/2),COLUMN()+7)=\"\"),0,OFFSET(INDIRECT(\"노임DB!$E$\"&$AG$3),INT((ROW()-6)/2),COLUMN()+7))","v":0},0,0,0,0,0,0,0,0,0,0,0,0,0,0,null,null,null,{"$f":"TRUNC(AA5*10%,-1)","v":270},{"$f":"IF(AG5=\"Y\",0,IF(LEN(C5)<>14,0,IF(INT(TEXT($T$1,\"yyyy.mmdd\")-TEXT(TEXT(LEFT(C5,6),\"1900-00-00\"),\"yyyy.mmdd\"))>=65,\"65세이상\",TRUNC(Z5*$AM$4+0.5,-1))))","v":"65세이상"},{"$f":"IF(AG5=\"Y\",0,IF(LEN(C5)<>14,0,IF(OR(X5<8,X5=0),0,IF(Z5<$AP$2,TRUNC($AP$2*$AN$3*$AN$4,-1),SUM(TRUNC(Z5*$AN$3*$AN$4,-1))))))","v":0},{"$f":"SUM(AA5:AC6,AD5)","v":2970}]
["2",{"$f":"IF(OFFSET(INDIRECT(\"노임DB!$C$\"&$AG$3),INT((ROW()-5)/2),0)=\"\",\"\",(OFFSET(INDIRECT(\"노임DB!$C$\"&$AG$3),INT((ROW()-5)/2),0)))","v":""},{"$f":"IF(B7=\"\",\"\",IFERROR(VLOOKUP(B7,출역인원,2,0),\"노무DATA없음\"))","v":""},{"$f":"IF(B7=\"\",\"\",IFERROR(VLOOKUP(B7,출역인원,16,0),\"노무DATA없음\"))","v":""},{"$f":"IF(B7=\"\",\"\",IFERROR(VLOOKUP(B7,출역인원,6,0),\"노무DATA없음\"))","v":""},{"$f":"IF(B7=\"\",\"\",IFERROR(VLOOKUP(B7,출역인원,12,0),\"노무DATA없음\"))","v":""},null,{"$f":"IF(OR(OFFSET(INDIRECT(\"노임DB!$E$\"&$AG$3),INT((ROW()-5)/2),COLUMN()-8)=\"\",OFFSET(INDIRECT(\"노임DB!$E$\"&$AG$3),INT((ROW()-5)/2),COLUMN()-8)*1=0),0,OFFSET(INDIRECT(\"노임DB!$E$\"&$AG$3),INT((ROW()-5)/2),COLUMN()-8)*1)","v":0},0,0,0,0,0,0,0,0,0,0,0,0,0,0,null,{"$f":"SUM(H7:W8)","v":0},250000,{"$f":"X7*Y7","v":0},{"$f":"IF(AG7=\"Y\",TRUNC(Z7*$AK$2,-1),IF(TRUNC(SUM(IF(H7:W8*Y7>$AK$1,(H7:W8*Y7-$AK$1))*$AL$3),-1)<1000,0,TRUNC(SUM(IF(H7:W8*Y7>$AK$1,(H7:W8*Y7-$AK$1))*$AL$3),-1)))","v":0},{"$f":"IF(AG7=\"Y\",0,IF(LEN(C7)<>14,0,IF(MID(C7,8,1)<\"3\",IF(INT(TEXT($T$1,\"yyyy.mmdd\")-TEXT(TEXT(LEFT(C7,6),\"1900-00-00\"),\"yyyy.mmdd\"))>=60,\"60세이상\",IF(OR(X7<8,Z7=0),0,IF(Z7<$AP$2,TRUNC($AP$2*$AM$3,-1),IF(Z7>$AP$3,TRUNC($AP$3*$AM$3,-1),+TRUNC(Z7*$AM$3,-1))))),IF(INT(TEXT($T$1,\"yyyy.mmdd\")-TEXT(TEXT(LEFT(C7,6),\"00-00-00\"),\"yyyy.mmdd\"))>=60,\"60세이상\",IF(OR(X7<8,Z7=0),0,IF(Z7<$AP$2,TRUNC($AP$2*$AM$3,-1),IF(Z7>$AP$3,TRUNC($AP$3*$AM$3,-1),+TRUNC(Z7*$AM$3,-1))))))))","v":0},{"$f":"IF(AG7=\"Y\",0,IF(LEN(C7)<>14,0,IF(OR(X7<8,X7=0),0,IF(Z7<$AP$2,TRUNC($AP$2*$AN$3,-1),SUM(TRUNC(Z7*$AN$3,-1))))))","v":0},null,{"$f":"Z7-AD8","v":0},null,null,{"$f":"IF(B7=\"\",\"\",VLOOKUP(B7,출역인원,9,0))","v":""},{"$f":"IF(B7=\"\",\"\",VLOOKUP(B7,출역인원,10,0))","v":""},null,{"$f":"IF(B7=\"\",\"\",VLOOKUP(B7,출역인원,11,0))","v":""}]
[null,null,null,null,{"$f":"IF(B7=\"\",\"\",IFERROR(VLOOKUP(B7,출역인원,3,0),\"노무DATA없음\"))","v":""},null,null,{"$f":"IF(OR(OFFSET(INDIRECT(\"노임DB!$E$\"&$AG$3),INT((ROW()-6)/2),COLUMN()+7)=0,OFFSET(INDIRECT(\"노임DB!$E$\"&$AG$3),INT((ROW()-6)/2),COLUMN()+7)=\"\"),0,OFFSET(INDIRECT(\"노임DB!$E$\"&$AG$3),INT((ROW()-6)/2),COLUMN()+7))","v":0},0,0,0,0,0,0,0,0,0,0,0,0,0,0,0,null,null,null,{"$f":"TRUNC(AA7*10%,-1)","v":0},{"$f":"IF(AG7=\"Y\",0,IF(LEN(C7)<>14,0,IF(INT(TEXT($T$1,\"yyyy.mmdd\")-TEXT(TEXT(LEFT(C7,6),\"1900-00-00\"),\"yyyy.mmdd\"))>=65,\"65세이상\",TRUNC(Z7*$AM$4+0.5,-1))))","v":0},{"$f":"IF(AG7=\"Y\",0,IF(LEN(C7)<>14,0,IF(OR(X7<8,X7=0),0,IF(Z7<$AP$2,TRUNC($AP$2*$AN$3*$AN$4,-1),SUM(TRUNC(Z7*$AN$3*$AN$4,-1))))))","v":0},{"$f":"SUM(AA7:AC8,AD7)","v":0}]
["3",{"$f":"IF(OFFSET(INDIRECT(\"노임DB!$C$\"&$AG$3),INT((ROW()-5)/2),0)=\"\",\"\",(OFFSET(INDIRECT(\"노임DB!$C$\"&$AG$3),INT((ROW()-5)/2),0)))","v":""},{"$f":"IF(B9=\"\",\"\",IFERROR(VLOOKUP(B9,출역인원,2,0),\"노무DATA없음\"))","v":""},{"$f":"IF(B9=\"\",\"\",IFERROR(VLOOKUP(B9,출역인원,16,0),\"노무DATA없음\"))","v":""},{"$f":"IF(B9=\"\",\"\",IFERROR(VLOOKUP(B9,출역인원,6,0),\"노무DATA없음\"))","v":""},{"$f":"IF(B9=\"\",\"\",IFERROR(VLOOKUP(B9,출역인원,12,0),\"노무DATA없음\"))","v":""},null,{"$f":"IF(OR(OFFSET(INDIRECT(\"노임DB!$E$\"&$AG$3),INT((ROW()-5)/2),COLUMN()-8)=\"\",OFFSET(INDIRECT(\"노임DB!$E$\"&$AG$3),INT((ROW()-5)/2),COLUMN()-8)*1=0),0,OFFSET(INDIRECT(\"노임DB!$E$\"&$AG$3),INT((ROW()-5)/2),COLUMN()-8)*1)","v":0},0,0,0,0,0,0,0,0,0,0,0,0,0,0,null,{"$f":"SUM(H9:W10)","v":0},250000,{"$f":"X9*Y9","v":0},{"$f":"IF(AG9=\"Y\",TRUNC(Z9*$AK$2,-1),IF(TRUNC(SUM(IF(H9:W10*Y9>$AK$1,(H9:W10*Y9-$AK$1))*$AL$3),-1)<1000,0,TRUNC(SUM(IF(H9:W10*Y9>$AK$1,(H9:W10*Y9-$AK$1))*$AL$3),-1)))","v":0},{"$f":"IF(AG9=\"Y\",0,IF(LEN(C9)<>14,0,IF(MID(C9,8,1)<\"3\",IF(INT(TEXT($T$1,\"yyyy.mmdd\")-TEXT(TEXT(LEFT(C9,6),\"1900-00-00\"),\"yyyy.mmdd\"))>=60,\"60세이상\",IF(OR(X9<8,Z9=0),0,IF(Z9<$AP$2,TRUNC($AP$2*$AM$3,-1),IF(Z9>$AP$3,TRUNC($AP$3*$AM$3,-1),+TRUNC(Z9*$AM$3,-1))))),IF(INT(TEXT($T$1,\"yyyy.mmdd\")-TEXT(TEXT(LEFT(C9,6),\"00-00-00\"),\"yyyy.mmdd\"))>=60,\"60세이상\",IF(OR(X9<8,Z9=0),0,IF(Z9<$AP$2,TRUNC($AP$2*$AM$3,-1),IF(Z9>$AP$3,TRUNC($AP$3*$AM$3,-1),+TRUNC(Z9*$AM$3,-1))))))))","v":0},{"$f":"IF(AG9=\"Y\",0,IF(LEN(C9)<>14,0,IF(OR(X9<8,X9=0),0,IF(Z9<$AP$2,TRUNC($AP$2*$AN$3,-1),SUM(TRUNC(Z9*$AN$3,-1))))))","v":0},null,{"$f":"Z9-AD10","v":0},null,null,{"$f":"IF(B9=\"\",\"\",VLOOKUP(B9,출역인원,9,0))","v":""},{"$f":"IF(B9=\"\",\"\",VLOOKUP(B9,출역인원,10,0))","v":""},null,{"$f":"IF(B9=\"\",\"\",VLOOKUP(B9,출역인원,11,0))","v":""}]
[null,null,null,null,{"$f":"IF(B9=\"\",\"\",IFERROR(VLOOKUP(B9,출역인원,3,0),\"노무DATA없음\"))","v":""},null,null,{"$f":"IF(OR(OFFSET(INDIRECT(\"노임DB!$E$\"&$AG$3),INT((ROW()-6)/2),COLUMN()+7)=0,OFFSET(INDIRECT(\"노임DB!$E$\"&$AG$3),INT((ROW()-6)/2),COLUMN()+7)=\"\"),0,OFFSET(INDIRECT(\"노임DB!$E$\"&$AG$3),INT((ROW()-6)/2),COLUMN()+7))","v":0},0,0,0,0,0,0,0,0,0,0,0,0,0,0,0,null,null,null,{"$f":"TRUNC(AA9*10%,-1)","v":0},{"$f":"IF(AG9=\"Y\",0,IF(LEN(C9)<>14,0,IF(INT(TEXT($T$1,\"yyyy.mmdd\")-TEXT(TEXT(LEFT(C9,6),\"1900-00-00\"),\"yyyy.mmdd\"))>=65,\"65세이상\",TRUNC(Z9*$AM$4+0.5,-1))))","v":0},{"$f":"IF(AG9=\"Y\",0,IF(LEN(C9)<>14,0,IF(OR(X9<8,X9=0),0,IF(Z9<$AP$2,TRUNC($AP$2*$AN$3*$AN$4,-1),SUM(TRUNC(Z9*$AN$3*$AN$4,-1))))))","v":0},{"$f":"SUM(AA9:AC10,AD9)","v":0}]
["4","",{"$f":"IF(B11=\"\",\"\",IFERROR(VLOOKUP(B11,출역인원,2,0),\"노무DATA없음\"))","v":""},{"$f":"IF(B11=\"\",\"\",IFERROR(VLOOKUP(B11,출역인원,16,0),\"노무DATA없음\"))","v":""},{"$f":"IF(B11=\"\",\"\",IFERROR(VLOOKUP(B11,출역인원,6,0),\"노무DATA없음\"))","v":""},{"$f":"IF(B11=\"\",\"\",IFERROR(VLOOKUP(B11,출역인원,12,0),\"노무DATA없음\"))","v":""},null,{"$f":"IF(OR(OFFSET(INDIRECT(\"노임DB!$E$\"&$AG$3),INT((ROW()-5)/2),COLUMN()-8)=\"\",OFFSET(INDIRECT(\"노임DB!$E$\"&$AG$3),INT((ROW()-5)/2),COLUMN()-8)*1=0),0,OFFSET(INDIRECT(\"노임DB!$E$\"&$AG$3),INT((ROW()-5)/2),COLUMN()-8)*1)","v":0},0,0,0,0,0,0,0,0,0,0,0,0,0,0,null,{"$f":"SUM(H11:W12)","v":0},250000,{"$f":"X11*Y11","v":0},{"$f":"IF(AG11=\"Y\",TRUNC(Z11*$AK$2,-1),IF(TRUNC(SUM(IF(H11:W12*Y11>$AK$1,(H11:W12*Y11-$AK$1))*$AL$3),-1)<1000,0,TRUNC(SUM(IF(H11:W12*Y11>$AK$1,(H11:W12*Y11-$AK$1))*$AL$3),-1)))","v":0},{"$f":"IF(AG11=\"Y\",0,IF(LEN(C11)<>14,0,IF(MID(C11,8,1)<\"3\",IF(INT(TEXT($T$1,\"yyyy.mmdd\")-TEXT(TEXT(LEFT(C11,6),\"1900-00-00\"),\"yyyy.mmdd\"))>=60,\"60세이상\",IF(OR(X11<8,Z11=0),0,IF(Z11<$AP$2,TRUNC($AP$2*$AM$3,-1),IF(Z11>$AP$3,TRUNC($AP$3*$AM$3,-1),+TRUNC(Z11*$AM$3,-1))))),IF(INT(TEXT($T$1,\"yyyy.mmdd\")-TEXT(TEXT(LEFT(C11,6),\"00-00-00\"),\"yyyy.mmdd\"))>=60,\"60세이상\",IF(OR(X11<8,Z11=0),0,IF(Z11<$AP$2,TRUNC($AP$2*$AM$3,-1),IF(Z11>$AP$3,TRUNC($AP$3*$AM$3,-1),+TRUNC(Z11*$AM$3,-1))))))))","v":0},{"$f":"IF(AG11=\"Y\",0,IF(LEN(C11)<>14,0,IF(OR(X11<8,X11=0),0,IF(Z11<$AP$2,TRUNC($AP$2*$AN$3,-1),SUM(TRUNC(Z11*$AN$3,-1))))))","v":0},null,{"$f":"Z11-AD12","v":0},null,null,{"$f":"IF(B11=\"\",\"\",VLOOKUP(B11,출역인원,9,0))","v":""},{"$f":"IF(B11=\"\",\"\",VLOOKUP(B11,출역인원,10,0))","v":""},null,{"$f":"IF(B11=\"\",\"\",VLOOKUP(B11,출역인원,11,0))","v":""}]
[null,null,null,null,{"$f":"IF(B11=\"\",\"\",IFERROR(VLOOKUP(B11,출역인원,3,0),\"노무DATA없음\"))","v":""},null,null,{"$f":"IF(OR(OFFSET(INDIRECT(\"노임DB!$E$\"&$AG$3),INT((ROW()-6)/2),COLUMN()+7)=0,OFFSET(INDIRECT(\"노임DB!$E$\"&$AG$3),INT((ROW()-6)/2),COLUMN()+7)=\"\"),0,OFFSET(INDIRECT(\"노임DB!$E$\"&$AG$3),INT((ROW()-6)/2),COLUMN()+7))","v":0},0,0,0,0,0,0,0,0,0,0,0,0,0,0,0,null,null,null,{"$f":"TRUNC(AA11*10%,-1)","v":0},{"$f":"IF(AG11=\"Y\",0,IF(LEN(C11)<>14,0,IF(INT(TEXT($T$1,\"yyyy.mmdd\")-TEXT(TEXT(LEFT(C11,6),\"1900-00-00\"),\"yyyy.mmdd\"))>=65,\"65세이상\",TRUNC(Z11*$AM$4+0.5,-1))))","v":0},{"$f":"IF(AG11=\"Y\",0,IF(LEN(C11)<>14,0,IF(OR(X11<8,X11=0),0,IF(Z11<$AP$2,TRUNC($AP$2*$AN$3*$AN$4,-1),SUM(TRUNC(Z11*$AN$3*$AN$4,-1))))))","v":0},{"$f":"SUM(AA11:AC12,AD11)","v":0}]
["5","",{"$f":"IF(B13=\"\",\"\",IFERROR(VLOOKUP(B13,출역인원,2,0),\"노무DATA없음\"))","v":""},{"$f":"IF(B13=\"\",\"\",IFERROR(VLOOKUP(B13,출역인원,16,0),\"노무DATA없음\"))","v":""},{"$f":"IF(B13=\"\",\"\",IFERROR(VLOOKUP(B13,출역인원,6,0),\"노무DATA없음\"))","v":""},{"$f":"IF(B13=\"\",\"\",IFERROR(VLOOKUP(B13,출역인원,12,0),\"노무DATA없음\"))","v":""},null,{"$f":"IF(OR(OFFSET(INDIRECT(\"노임DB!$E$\"&$AG$3),INT((ROW()-5)/2),COLUMN()-8)=\"\",OFFSET(INDIRECT(\"노임DB!$E$\"&$AG$3),INT((ROW()-5)/2),COLUMN()-8)*1=0),0,OFFSET(INDIRECT(\"노임DB!$E$\"&$AG$3),INT((ROW()-5)/2),COLUMN()-8)*1)","v":0},0,0,0,0,0,0,0,0,0,0,0,0,0,0,null,{"$f":"SUM(H13:W14)","v":0},250000,{"$f":"X13*Y13","v":0},{"$f":"IF(AG13=\"Y\",TRUNC(Z13*$AK$2,-1),IF(TRUNC(SUM(IF(H13:W14*Y13>$AK$1,(H13:W14*Y13-$AK$1))*$AL$3),-1)<1000,0,TRUNC(SUM(IF(H13:W14*Y13>$AK$1,(H13:W14*Y13-$AK$1))*$AL$3),-1)))","v":0},{"$f":"IF(AG13=\"Y\",0,IF(LEN(C13)<>14,0,IF(MID(C13,8,1)<\"3\",IF(INT(TEXT($T$1,\"yyyy.mmdd\")-TEXT(TEXT(LEFT(C13,6),\"1900-00-00\"),\"yyyy.mmdd\"))>=60,\"60세이상\",IF(OR(X13<8,Z13=0),0,IF(Z13<$AP$2,TRUNC($AP$2*$AM$3,-1),IF(Z13>$AP$3,TRUNC($AP$3*$AM$3,-1),+TRUNC(Z13*$AM$3,-1))))),IF(INT(TEXT($T$1,\"yyyy.mmdd\")-TEXT(TEXT(LEFT(C13,6),\"00-00-00\"),\"yyyy.mmdd\"))>=60,\"60세이상\",IF(OR(X13<8,Z13=0),0,IF(Z13<$AP$2,TRUNC($AP$2*$AM$3,-1),IF(Z13>$AP$3,TRUNC($AP$3*$AM$3,-1),+TRUNC(Z13*$AM$3,-1))))))))","v":0},{"$f":"IF(AG13=\"Y\",0,IF(LEN(C13)<>14,0,IF(OR(X13<8,X13=0),0,IF(Z13<$AP$2,TRUNC($AP$2*$AN$3,-1),SUM(TRUNC(Z13*$AN$3,-1))))))","v":0},null,{"$f":"Z13-AD14","v":0},null,null,{"$f":"IF(B13=\"\",\"\",VLOOKUP(B13,출역인원,9,0))","v":""},{"$f":"IF(B13=\"\",\"\",VLOOKUP(B13,출역인원,10,0))","v":""},null,{"$f":"IF(B13=\"\",\"\",VLOOKUP(B13,출역인원,11,0))","v":""}]
[null,null,null,null,{"$f":"IF(B13=\"\",\"\",IFERROR(VLOOKUP(B13,출역인원,3,0),\"노무DATA없음\"))","v":""},null,null,{"$f":"IF(OR(OFFSET(INDIRECT(\"노임DB!$E$\"&$AG$3),INT((ROW()-6)/2),COLUMN()+7)=0,OFFSET(INDIRECT(\"노임DB!$E$\"&$AG$3),INT((ROW()-6)/2),COLUMN()+7)=\"\"),0,OFFSET(INDIRECT(\"노임DB!$E$\"&$AG$3),INT((ROW()-6)/2),COLUMN()+7))","v":0},0,0,0,0,0,0,0,0,0,0,0,0,0,0,0,null,null,null,{"$f":"TRUNC(AA13*10%,-1)","v":0},{"$f":"IF(AG13=\"Y\",0,IF(LEN(C13)<>14,0,IF(INT(TEXT($T$1,\"yyyy.mmdd\")-TEXT(TEXT(LEFT(C13,6),\"1900-00-00\"),\"yyyy.mmdd\"))>=65,\"65세이상\",TRUNC(Z13*$AM$4+0.5,-1))))","v":0},{"$f":"IF(AG13=\"Y\",0,IF(LEN(C13)<>14,0,IF(OR(X13<8,X13=0),0,IF(Z13<$AP$2,TRUNC($AP$2*$AN$3*$AN$4,-1),SUM(TRUNC(Z13*$AN$3*$AN$4,-1))))))","v":0},{"$f":"SUM(AA13:AC14,AD13)","v":0}]
["6","",{"$f":"IF(B15=\"\",\"\",IFERROR(VLOOKUP(B15,출역인원,2,0),\"노무DATA없음\"))","v":""},{"$f":"IF(B15=\"\",\"\",IFERROR(VLOOKUP(B15,출역인원,16,0),\"노무DATA없음\"))","v":""},{"$f":"IF(B15=\"\",\"\",IFERROR(VLOOKUP(B15,출역인원,6,0),\"노무DATA없음\"))","v":""},{"$f":"IF(B15=\"\",\"\",IFERROR(VLOOKUP(B15,출역인원,12,0),\"노무DATA없음\"))","v":""},null,{"$f":"IF(OR(OFFSET(INDIRECT(\"노임DB!$E$\"&$AG$3),INT((ROW()-5)/2),COLUMN()-8)=\"\",OFFSET(INDIRECT(\"노임DB!$E$\"&$AG$3),INT((ROW()-5)/2),COLUMN()-8)*1=0),0,OFFSET(INDIRECT(\"노임DB!$E$\"&$AG$3),INT((ROW()-5)/2),COLUMN()-8)*1)","v":0},0,0,0,0,0,0,0,0,0,0,0,0,0,0,null,{"$f":"SUM(H15:W16)","v":0},250000,{"$f":"X15*Y15","v":0},{"$f":"IF(AG15=\"Y\",TRUNC(Z15*$AK$2,-1),IF(TRUNC(SUM(IF(H15:W16*Y15>$AK$1,(H15:W16*Y15-$AK$1))*$AL$3),-1)<1000,0,TRUNC(SUM(IF(H15:W16*Y15>$AK$1,(H15:W16*Y15-$AK$1))*$AL$3),-1)))","v":0},{"$f":"IF(AG15=\"Y\",0,IF(LEN(C15)<>14,0,IF(MID(C15,8,1)<\"3\",IF(INT(TEXT($T$1,\"yyyy.mmdd\")-TEXT(TEXT(LEFT(C15,6),\"1900-00-00\"),\"yyyy.mmdd\"))>=60,\"60세이상\",IF(OR(X15<8,Z15=0),0,IF(Z15<$AP$2,TRUNC($AP$2*$AM$3,-1),IF(Z15>$AP$3,TRUNC($AP$3*$AM$3,-1),+TRUNC(Z15*$AM$3,-1))))),IF(INT(TEXT($T$1,\"yyyy.mmdd\")-TEXT(TEXT(LEFT(C15,6),\"00-00-00\"),\"yyyy.mmdd\"))>=60,\"60세이상\",IF(OR(X15<8,Z15=0),0,IF(Z15<$AP$2,TRUNC($AP$2*$AM$3,-1),IF(Z15>$AP$3,TRUNC($AP$3*$AM$3,-1),+TRUNC(Z15*$AM$3,-1))))))))","v":0},{"$f":"IF(AG15=\"Y\",0,IF(LEN(C15)<>14,0,IF(OR(X15<8,X15=0),0,IF(Z15<$AP$2,TRUNC($AP$2*$AN$3,-1),SUM(TRUNC(Z15*$AN$3,-1))))))","v":0},null,{"$f":"Z15-AD16","v":0},null,null,{"$f":"IF(B15=\"\",\"\",VLOOKUP(B15,출역인원,9,0))","v":""},{"$f":"IF(B15=\"\",\"\",VLOOKUP(B15,출역인원,10,0))","v":""},null,{"$f":"IF(B15=\"\",\"\",VLOOKUP(B15,출역인원,11,0))","v":""}]
[null,null,null,null,{"$f":"IF(B15=\"\",\"\",IFERROR(VLOOKUP(B15,출역인원,3,0),\"노무DATA없음\"))","v":""},null,null,{"$f":"IF(OR(OFFSET(INDIRECT(\"노임DB!$E$\"&$AG$3),INT((ROW()-6)/2),COLUMN()+7)=0,OFFSET(INDIRECT(\"노임DB!$E$\"&$AG$3),INT((ROW()-6)/2),COLUMN()+7)=\"\"),0,OFFSET(INDIRECT(\"노임DB!$E$\"&$AG$3),INT((ROW()-6)/2),COLUMN()+7))","v":0},0,0,0,0,0,0,0,0,0,0,0,0,0,0,0,null,null,null,{"$f":"TRUNC(AA15*10%,-1)","v":0},{"$f":"IF(AG15=\"Y\",0,IF(LEN(C15)<>14,0,IF(INT(TEXT($T$1,\"yyyy.mmdd\")-TEXT(TEXT(LEFT(C15,6),\"1900-00-00\"),\"yyyy.mmdd\"))>=65,\"65세이상\",TRUNC(Z15*$AM$4+0.5,-1))))","v":0},{"$f":"IF(AG15=\"Y\",0,IF(LEN(C15)<>14,0,IF(OR(X15<8,X15=0),0,IF(Z15<$AP$2,TRUNC($AP$2*$AN$3*$AN$4,-1),SUM(TRUNC(Z15*$AN$3*$AN$4,-1))))))","v":0},{"$f":"SUM(AA15:AC16,AD15)","v":0}]
["7","",{"$f":"IF(B17=\"\",\"\",IFERROR(VLOOKUP(B17,출역인원,2,0),\"노무DATA없음\"))","v":""},{"$f":"IF(B17=\"\",\"\",IFERROR(VLOOKUP(B17,출역인원,16,0),\"노무DATA없음\"))","v":""},{"$f":"IF(B17=\"\",\"\",IFERROR(VLOOKUP(B17,출역인원,6,0),\"노무DATA없음\"))","v":""},{"$f":"IF(B17=\"\",\"\",IFERROR(VLOOKUP(B17,출역인원,12,0),\"노무DATA없음\"))","v":""},null,{"$f":"IF(OR(OFFSET(INDIRECT(\"노임DB!$E$\"&$AG$3),INT((ROW()-5)/2),COLUMN()-8)=\"\",OFFSET(INDIRECT(\"노임DB!$E$\"&$AG$3),INT((ROW()-5)/2),COLUMN()-8)*1=0),0,OFFSET(INDIRECT(\"노임DB!$E$\"&$AG$3),INT((ROW()-5)/2),COLUMN()-8)*1)","v":0},0,0,0,0,0,0,0,0,0,0,0,0,0,0,null,{"$f":"SUM(H17:W18)","v":0},250000,{"$f":"X17*Y17","v":0},{"$f":"IF(AG17=\"Y\",TRUNC(Z17*$AK$2,-1),IF(TRUNC(SUM(IF(H17:W18*Y17>$AK$1,(H17:W18*Y17-$AK$1))*$AL$3),-1)<1000,0,TRUNC(SUM(IF(H17:W18*Y17>$AK$1,(H17:W18*Y17-$AK$1))*$AL$3),-1)))","v":0},{"$f":"IF(AG17=\"Y\",0,IF(LEN(C17)<>14,0,IF(MID(C17,8,1)<\"3\",IF(INT(TEXT($T$1,\"yyyy.mmdd\")-TEXT(TEXT(LEFT(C17,6),\"1900-00-00\"),\"yyyy.mmdd\"))>=60,\"60세이상\",IF(OR(X17<8,Z17=0),0,IF(Z17<$AP$2,TRUNC($AP$2*$AM$3,-1),IF(Z17>$AP$3,TRUNC($AP$3*$AM$3,-1),+TRUNC(Z17*$AM$3,-1))))),IF(INT(TEXT($T$1,\"yyyy.mmdd\")-TEXT(TEXT(LEFT(C17,6),\"00-00-00\"),\"yyyy.mmdd\"))>=60,\"60세이상\",IF(OR(X17<8,Z17=0),0,IF(Z17<$AP$2,TRUNC($AP$2*$AM$3,-1),IF(Z17>$AP$3,TRUNC($AP$3*$AM$3,-1),+TRUNC(Z17*$AM$3,-1))))))))","v":0},{"$f":"IF(AG17=\"Y\",0,IF(LEN(C17)<>14,0,IF(OR(X17<8,X17=0),0,IF(Z17<$AP$2,TRUNC($AP$2*$AN$3,-1),SUM(TRUNC(Z17*$AN$3,-1))))))","v":0},null,{"$f":"Z17-AD18","v":0},null,null,{"$f":"IF(B17=\"\",\"\",VLOOKUP(B17,출역인원,9,0))","v":""},{"$f":"IF(B17=\"\",\"\",VLOOKUP(B17,출역인원,10,0))","v":""},null,{"$f":"IF(B17=\"\",\"\",VLOOKUP(B17,출역인원,11,0))","v":""}]
[null,null,null,null,{"$f":"IF(B17=\"\",\"\",IFERROR(VLOOKUP(B17,출역인원,3,0),\"노무DATA없음\"))","v":""},null,null,{"$f":"IF(OR(OFFSET(INDIRECT(\"노임DB!$E$\"&$AG$3),INT((ROW()-6)/2),COLUMN()+7)=0,OFFSET(INDIRECT(\"노임DB!$E$\"&$AG$3),INT((ROW()-6)/2),COLUMN()+7)=\"\"),0,OFFSET(INDIRECT(\"노임DB!$E$\"&$AG$3),INT((ROW()-6)/2),COLUMN()+7))","v":0},0,0,0,0,0,0,0,0,0,0,0,0,0,0,0,null,null,null,{"$f":"TRUNC(AA17*10%,-1)","v":0},{"$f":"IF(AG17=\"Y\",0,IF(LEN(C17)<>14,0,IF(INT(TEXT($T$1,\"yyyy.mmdd\")-TEXT(TEXT(LEFT(C17,6),\"1900-00-00\"),\"yyyy.mmdd\"))>=65,\"65세이상\",TRUNC(Z17*$AM$4+0.5,-1))))","v":0},{"$f":"IF(AG17=\"Y\",0,IF(LEN(C17)<>14,0,IF(OR(X17<8,X17=0),0,IF(Z17<$AP$2,TRUNC($AP$2*$AN$3*$AN$4,-1),SUM(TRUNC(Z17*$AN$3*$AN$4,-1))))))","v":0},{"$f":"SUM(AA17:AC18,AD17)","v":0}]
["8","",{"$f":"IF(B19=\"\",\"\",IFERROR(VLOOKUP(B19,출역인원,2,0),\"노무DATA없음\"))","v":""},{"$f":"IF(B19=\"\",\"\",IFERROR(VLOOKUP(B19,출역인원,16,0),\"노무DATA없음\"))","v":""},{"$f":"IF(B19=\"\",\"\",IFERROR(VLOOKUP(B19,출역인원,6,0),\"노무DATA없음\"))","v":""},{"$f":"IF(B19=\"\",\"\",IFERROR(VLOOKUP(B19,출역인원,12,0),\"노무DATA없음\"))","v":""},null,{"$f":"IF(OR(OFFSET(INDIRECT(\"노임DB!$E$\"&$AG$3),INT((ROW()-5)/2),COLUMN()-8)=\"\",OFFSET(INDIRECT(\"노임DB!$E$\"&$AG$3),INT((ROW()-5)/2),COLUMN()-8)*1=0),0,OFFSET(INDIRECT(\"노임DB!$E$\"&$AG$3),INT((ROW()-5)/2),COLUMN()-8)*1)","v":0},0,0,0,0,0,0,0,0,0,0,0,0,0,0,null,{"$f":"SUM(H19:W20)","v":0},250000,{"$f":"X19*Y19","v":0},{"$f":"IF(AG19=\"Y\",TRUNC(Z19*$AK$2,-1),IF(TRUNC(SUM(IF(H19:W20*Y19>$AK$1,(H19:W20*Y19-$AK$1))*$AL$3),-1)<1000,0,TRUNC(SUM(IF(H19:W20*Y19>$AK$1,(H19:W20*Y19-$AK$1))*$AL$3),-1)))","v":0},{"$f":"IF(AG19=\"Y\",0,IF(LEN(C19)<>14,0,IF(MID(C19,8,1)<\"3\",IF(INT(TEXT($T$1,\"yyyy.mmdd\")-TEXT(TEXT(LEFT(C19,6),\"1900-00-00\"),\"yyyy.mmdd\"))>=60,\"60세이상\",IF(OR(X19<8,Z19=0),0,IF(Z19<$AP$2,TRUNC($AP$2*$AM$3,-1),IF(Z19>$AP$3,TRUNC($AP$3*$AM$3,-1),+TRUNC(Z19*$AM$3,-1))))),IF(INT(TEXT($T$1,\"yyyy.mmdd\")-TEXT(TEXT(LEFT(C19,6),\"00-00-00\"),\"yyyy.mmdd\"))>=60,\"60세이상\",IF(OR(X19<8,Z19=0),0,IF(Z19<$AP$2,TRUNC($AP$2*$AM$3,-1),IF(Z19>$AP$3,TRUNC($AP$3*$AM$3,-1),+TRUNC(Z19*$AM$3,-1))))))))","v":0},{"$f":"IF(AG19=\"Y\",0,IF(LEN(C19)<>14,0,IF(OR(X19<8,X19=0),0,IF(Z19<$AP$2,TRUNC($AP$2*$AN$3,-1),SUM(TRUNC(Z19*$AN$3,-1))))))","v":0},null,{"$f":"Z19-AD20","v":0},null,null,{"$f":"IF(B19=\"\",\"\",VLOOKUP(B19,출역인원,9,0))","v":""},{"$f":"IF(B19=\"\",\"\",VLOOKUP(B19,출역인원,10,0))","v":""},null,{"$f":"IF(B19=\"\",\"\",VLOOKUP(B19,출역인원,11,0))","v":""}]
[null,null,null,null,{"$f":"IF(B19=\"\",\"\",IFERROR(VLOOKUP(B19,출역인원,3,0),\"노무DATA없음\"))","v":""},null,null,{"$f":"IF(OR(OFFSET(INDIRECT(\"노임DB!$E$\"&$AG$3),INT((ROW()-6)/2),COLUMN()+7)=0,OFFSET(INDIRECT(\"노임DB!$E$\"&$AG$3),INT((ROW()-6)/2),COLUMN()+7)=\"\"),0,OFFSET(INDIRECT(\"노임DB!$E$\"&$AG$3),INT((ROW()-6)/2),COLUMN()+7))","v":0},0,0,0,0,0,0,0,0,0,0,0,0,0,0,0,null,null,null,{"$f":"TRUNC(AA19*10%,-1)","v":0},{"$f":"IF(AG19=\"Y\",0,IF(LEN(C19)<>14,0,IF(INT(TEXT($T$1,\"yyyy.mmdd\")-TEXT(TEXT(LEFT(C19,6),\"1900-00-00\"),\"yyyy.mmdd\"))>=65,\"65세이상\",TRUNC(Z19*$AM$4+0.5,-1))))","v":0},{"$f":"IF(AG19=\"Y\",0,IF(LEN(C19)<>14,0,IF(OR(X19<8,X19=0),0,IF(Z19<$AP$2,TRUNC($AP$2*$AN$3*$AN$4,-1),SUM(TRUNC(Z19*$AN$3*$AN$4,-1))))))","v":0},{"$f":"SUM(AA19:AC20,AD19)","v":0}]
["9","",{"$f":"IF(B21=\"\",\"\",IFERROR(VLOOKUP(B21,출역인원,2,0),\"노무DATA없음\"))","v":""},{"$f":"IF(B21=\"\",\"\",IFERROR(VLOOKUP(B21,출역인원,16,0),\"노무DATA없음\"))","v":""},{"$f":"IF(B21=\"\",\"\",IFERROR(VLOOKUP(B21,출역인원,6,0),\"노무DATA없음\"))","v":""},{"$f":"IF(B21=\"\",\"\",IFERROR(VLOOKUP(B21,출역인원,12,0),\"노무DATA없음\"))","v":""},null,{"$f":"IF(OR(OFFSET(INDIRECT(\"노임DB!$E$\"&$AG$3),INT((ROW()-5)/2),COLUMN()-8)=\"\",OFFSET(INDIRECT(\"노임DB!$E$\"&$AG$3),INT((ROW()-5)/2),COLUMN()-8)*1=0),0,OFFSET(INDIRECT(\"노임DB!$E$\"&$AG$3),INT((ROW()-5)/2),COLUMN()-8)*1)","v":0},0,0,0,0,0,0,0,0,0,0,0,0,0,0,null,{"$f":"SUM(H21:W22)","v":0},250000,{"$f":"X21*Y21","v":0},{"$f":"IF(AG21=\"Y\",TRUNC(Z21*$AK$2,-1),IF(TRUNC(SUM(IF(H21:W22*Y21>$AK$1,(H21:W22*Y21-$AK$1))*$AL$3),-1)<1000,0,TRUNC(SUM(IF(H21:W22*Y21>$AK$1,(H21:W22*Y21-$AK$1))*$AL$3),-1)))","v":0},{"$f":"IF(AG21=\"Y\",0,IF(LEN(C21)<>14,0,IF(MID(C21,8,1)<\"3\",IF(INT(TEXT($T$1,\"yyyy.mmdd\")-TEXT(TEXT(LEFT(C21,6),\"1900-00-00\"),\"yyyy.mmdd\"))>=60,\"60세이상\",IF(OR(X21<8,Z21=0),0,IF(Z21<$AP$2,TRUNC($AP$2*$AM$3,-1),IF(Z21>$AP$3,TRUNC($AP$3*$AM$3,-1),+TRUNC(Z21*$AM$3,-1))))),IF(INT(TEXT($T$1,\"yyyy.mmdd\")-TEXT(TEXT(LEFT(C21,6),\"00-00-00\"),\"yyyy.mmdd\"))>=60,\"60세이상\",IF(OR(X21<8,Z21=0),0,IF(Z21<$AP$2,TRUNC($AP$2*$AM$3,-1),IF(Z21>$AP$3,TRUNC($AP$3*$AM$3,-1),+TRUNC(Z21*$AM$3,-1))))))))","v":0},{"$f":"IF(AG21=\"Y\",0,IF(LEN(C21)<>14,0,IF(OR(X21<8,X21=0),0,IF(Z21<$AP$2,TRUNC($AP$2*$AN$3,-1),SUM(TRUNC(Z21*$AN$3,-1))))))","v":0},null,{"$f":"Z21-AD22","v":0},null,null,{"$f":"IF(B21=\"\",\"\",VLOOKUP(B21,출역인원,9,0))","v":""},{"$f":"IF(B21=\"\",\"\",VLOOKUP(B21,출역인원,10,0))","v":""},null,{"$f":"IF(B21=\"\",\"\",VLOOKUP(B21,출역인원,11,0))","v":""}]
[null,null,null,null,{"$f":"IF(B21=\"\",\"\",IFERROR(VLOOKUP(B21,출역인원,3,0),\"노무DATA없음\"))","v":""},null,null,{"$f":"IF(OR(OFFSET(INDIRECT(\"노임DB!$E$\"&$AG$3),INT((ROW()-6)/2),COLUMN()+7)=0,OFFSET(INDIRECT(\"노임DB!$E$\"&$AG$3),INT((ROW()-6)/2),COLUMN()+7)=\"\"),0,OFFSET(INDIRECT(\"노임DB!$E$\"&$AG$3),INT((ROW()-6)/2),COLUMN()+7))","v":0},0,0,0,0,0,0,0,0,0,0,0,0,0,0,0,null,null,null,{"$f":"TRUNC(AA21*10%,-1)","v":0},{"$f":"IF(AG21=\"Y\",0,IF(LEN(C21)<>14,0,IF(INT(TEXT($T$1,\"yyyy.mmdd\")-TEXT(TEXT(LEFT(C21,6),\"1900-00-00\"),\"yyyy.mmdd\"))>=65,\"65세이상\",TRUNC(Z21*$AM$4+0.5,-1))))","v":0},{"$f":"IF(AG21=\"Y\",0,IF(LEN(C21)<>14,0,IF(OR(X21<8,X21=0),0,IF(Z21<$AP$2,TRUNC($AP$2*$AN$3*$AN$4,-1),SUM(TRUNC(Z21*$AN$3*$AN$4,-1))))))","v":0},{"$f":"SUM(AA21:AC22,AD21)","v":0}]
["10","",{"$f":"IF(B23=\"\",\"\",IFERROR(VLOOKUP(B23,출역인원,2,0),\"노무DATA없음\"))","v":""},{"$f":"IF(B23=\"\",\"\",IFERROR(VLOOKUP(B23,출역인원,16,0),\"노무DATA없음\"))","v":""},{"$f":"IF(B23=\"\",\"\",IFERROR(VLOOKUP(B23,출역인원,6,0),\"노무DATA없음\"))","v":""},{"$f":"IF(B23=\"\",\"\",IFERROR(VLOOKUP(B23,출역인원,12,0),\"노무DATA없음\"))","v":""},null,{"$f":"IF(OR(OFFSET(INDIRECT(\"노임DB!$E$\"&$AG$3),INT((ROW()-5)/2),COLUMN()-8)=\"\",OFFSET(INDIRECT(\"노임DB!$E$\"&$AG$3),INT((ROW()-5)/2),COLUMN()-8)*1=0),0,OFFSET(INDIRECT(\"노임DB!$E$\"&$AG$3),INT((ROW()-5)/2),COLUMN()-8)*1)","v":0},0,0,0,0,0,0,0,0,0,0,0,0,0,0,null,{"$f":"SUM(H23:W24)","v":0},250000,{"$f":"X23*Y23","v":0},{"$f":"IF(AG23=\"Y\",TRUNC(Z23*$AK$2,-1),IF(TRUNC(SUM(IF(H23:W24*Y23>$AK$1,(H23:W24*Y23-$AK$1))*$AL$3),-1)<1000,0,TRUNC(SUM(IF(H23:W24*Y23>$AK$1,(H23:W24*Y23-$AK$1))*$AL$3),-1)))","v":0},{"$f":"IF(AG23=\"Y\",0,IF(LEN(C23)<>14,0,IF(MID(C23,8,1)<\"3\",IF(INT(TEXT($T$1,\"yyyy.mmdd\")-TEXT(TEXT(LEFT(C23,6),\"1900-00-00\"),\"yyyy.mmdd\"))>=60,\"60세이상\",IF(OR(X23<8,Z23=0),0,IF(Z23<$AP$2,TRUNC($AP$2*$AM$3,-1),IF(Z23>$AP$3,TRUNC($AP$3*$AM$3,-1),+TRUNC(Z23*$AM$3,-1))))),IF(INT(TEXT($T$1,\"yyyy.mmdd\")-TEXT(TEXT(LEFT(C23,6),\"00-00-00\"),\"yyyy.mmdd\"))>=60,\"60세이상\",IF(OR(X23<8,Z23=0),0,IF(Z23<$AP$2,TRUNC($AP$2*$AM$3,-1),IF(Z23>$AP$3,TRUNC($AP$3*$AM$3,-1),+TRUNC(Z23*$AM$3,-1))))))))","v":0},{"$f":"IF(AG23=\"Y\",0,IF(LEN(C23)<>14,0,IF(OR(X23<8,X23=0),0,IF(Z23<$AP$2,TRUNC($AP$2*$AN$3,-1),SUM(TRUNC(Z23*$AN$3,-1))))))","v":0},null,{"$f":"Z23-AD24","v":0},null,null,{"$f":"IF(B23=\"\",\"\",VLOOKUP(B23,출역인원,9,0))","v":""},{"$f":"IF(B23=\"\",\"\",VLOOKUP(B23,출역인원,10,0))","v":""},null,{"$f":"IF(B23=\"\",\"\",VLOOKUP(B23,출역인원,11,0))","v":""}]
[null,null,null,null,{"$f":"IF(B23=\"\",\"\",IFERROR(VLOOKUP(B23,출역인원,3,0),\"노무DATA없음\"))","v":""},null,null,{"$f":"IF(OR(OFFSET(INDIRECT(\"노임DB!$E$\"&$AG$3),INT((ROW()-6)/2),COLUMN()+7)=0,OFFSET(INDIRECT(\"노임DB!$E$\"&$AG$3),INT((ROW()-6)/2),COLUMN()+7)=\"\"),0,OFFSET(INDIRECT(\"노임DB!$E$\"&$AG$3),INT((ROW()-6)/2),COLUMN()+7))","v":0},0,0,0,0,0,0,0,0,0,0,0,0,0,0,0,null,null,null,{"$f":"TRUNC(AA23*10%,-1)","v":0},{"$f":"IF(AG23=\"Y\",0,IF(LEN(C23)<>14,0,IF(INT(TEXT($T$1,\"yyyy.mmdd\")-TEXT(TEXT(LEFT(C23,6),\"1900-00-00\"),\"yyyy.mmdd\"))>=65,\"65세이상\",TRUNC(Z23*$AM$4+0.5,-1))))","v":0},{"$f":"IF(AG23=\"Y\",0,IF(LEN(C23)<>14,0,IF(OR(X23<8,X23=0),0,IF(Z23<$AP$2,TRUNC($AP$2*$AN$3*$AN$4,-1),SUM(TRUNC(Z23*$AN$3*$AN$4,-1))))))","v":0},{"$f":"SUM(AA23:AC24,AD23)","v":0}]
[null,"총 합계",null,null,null,null,null,{"$f":"SUMPRODUCT(N(MOD(ROW(H$5:OFFSET(H26,-2,)),2)=MOD(ROW(),2)),H$5:OFFSET(H26,-2,))","v":1},{"$f":"SUMPRODUCT(N(MOD(ROW(I$5:OFFSET(I26,-2,)),2)=MOD(ROW(),2)),I$5:OFFSET(I26,-2,))","v":0},{"$f":"SUMPRODUCT(N(MOD(ROW(J$5:OFFSET(J26,-2,)),2)=MOD(ROW(),2)),J$5:OFFSET(J26,-2,))","v":0},{"$f":"SUMPRODUCT(N(MOD(ROW(K$5:OFFSET(K26,-2,)),2)=MOD(ROW(),2)),K$5:OFFSET(K26,-2,))","v":0},{"$f":"SUMPRODUCT(N(MOD(ROW(L$5:OFFSET(L26,-2,)),2)=MOD(ROW(),2)),L$5:OFFSET(L26,-2,))","v":0},{"$f":"SUMPRODUCT(N(MOD(ROW(M$5:OFFSET(M26,-2,)),2)=MOD(ROW(),2)),M$5:OFFSET(M26,-2,))","v":0},{"$f":"SUMPRODUCT(N(MOD(ROW(N$5:OFFSET(N26,-2,)),2)=MOD(ROW(),2)),N$5:OFFSET(N26,-2,))","v":0},{"$f":"SUMPRODUCT(N(MOD(ROW(O$5:OFFSET(O26,-2,)),2)=MOD(ROW(),2)),O$5:OFFSET(O26,-2,))","v":0},{"$f":"SUMPRODUCT(N(MOD(ROW(P$5:OFFSET(P26,-2,)),2)=MOD(ROW(),2)),P$5:OFFSET(P26,-2,))","v":0},{"$f":"SUMPRODUCT(N(MOD(ROW(Q$5:OFFSET(Q26,-2,)),2)=MOD(ROW(),2)),Q$5:OFFSET(Q26,-2,))","v":0},{"$f":"SUMPRODUCT(N(MOD(ROW(R$5:OFFSET(R26,-2,)),2)=MOD(ROW(),2)),R$5:OFFSET(R26,-2,))","v":0},{"$f":"SUMPRODUCT(N(MOD(ROW(S$5:OFFSET(S26,-2,)),2)=MOD(ROW(),2)),S$5:OFFSET(S26,-2,))","v":0},{"$f":"SUMPRODUCT(N(MOD(ROW(T$5:OFFSET(T26,-2,)),2)=MOD(ROW(),2)),T$5:OFFSET(T26,-2,))","v":0},{"$f":"SUMPRODUCT(N(MOD(ROW(U$5:OFFSET(U26,-2,)),2)=MOD(ROW(),2)),U$5:OFFSET(U26,-2,))","v":0},{"$f":"SUMPRODUCT(N(MOD(ROW(V$5:OFFSET(V26,-2,)),2)=MOD(ROW(),2)),V$5:OFFSET(V26,-2,))","v":0},{"$f":"SUMPRODUCT(N(MOD(ROW(W$5:OFFSET(W26,-2,)),2)=MOD(ROW(),2)),W$5:OFFSET(W26,-2,))","v":0},{"$f":"SUM(X$5:OFFSET(X26,-2,))","v":1},0,{"$f":"SUM(Z$5:OFFSET(Z26,-2,))","v":250000},{"$f":"SUMPRODUCT(N(MOD(ROW(AA$5:OFFSET(AA26,-2,)),2)=MOD(ROW(),2)),AA$5:OFFSET(AA26,-2,))","v":2700},{"$f":"SUMPRODUCT(N(MOD(ROW(AB$5:OFFSET(AB26,-2,)),2)=MOD(ROW(),2)),AB$5:OFFSET(AB26,-2,))","v":0},{"$f":"SUMPRODUCT(N(MOD(ROW(AC$5:OFFSET(AC26,-2,)),2)=MOD(ROW(),2)),AC$5:OFFSET(AC26,-2,))","v":0},{"$f":"SUMPRODUCT(N(MOD(ROW(AD$5:OFFSET(AD26,-2,)),2)=MOD(ROW(),2)),AD$5:OFFSET(AD26,-2,))","v":0},{"$f":"SUM(AE$5:OFFSET(AE26,-2,))","v":247030},null,"Y"]
[null,null,null,null,null,null,null,{"$f":"SUMPRODUCT(N(MOD(ROW(H$5:OFFSET(H26,-2,)),2)=MOD(ROW(),2)),H$5:OFFSET(H26,-2,))","v":0},{"$f":"SUMPRODUCT(N(MOD(ROW(I$5:OFFSET(I26,-2,)),2)=MOD(ROW(),2)),I$5:OFFSET(I26,-2,))","v":0},{"$f":"SUMPRODUCT(N(MOD(ROW(J$5:OFFSET(J26,-2,)),2)=MOD(ROW(),2)),J$5:OFFSET(J26,-2,))","v":0},{"$f":"SUMPRODUCT(N(MOD(ROW(K$5:OFFSET(K26,-2,)),2)=MOD(ROW(),2)),K$5:OFFSET(K26,-2,))","v":0},{"$f":"SUMPRODUCT(N(MOD(ROW(L$5:OFFSET(L26,-2,)),2)=MOD(ROW(),2)),L$5:OFFSET(L26,-2,))","v":0},{"$f":"SUMPRODUCT(N(MOD(ROW(M$5:OFFSET(M26,-2,)),2)=MOD(ROW(),2)),M$5:OFFSET(M26,-2,))","v":0},{"$f":"SUMPRODUCT(N(MOD(ROW(N$5:OFFSET(N26,-2,)),2)=MOD(ROW(),2)),N$5:OFFSET(N26,-2,))","v":0},{"$f":"SUMPRODUCT(N(MOD(ROW(O$5:OFFSET(O26,-2,)),2)=MOD(ROW(),2)),O$5:OFFSET(O26,-2,))","v":0},{"$f":"SUMPRODUCT(N(MOD(ROW(P$5:OFFSET(P26,-2,)),2)=MOD(ROW(),2)),P$5:OFFSET(P26,-2,))","v":0},{"$f":"SUMPRODUCT(N(MOD(ROW(Q$5:OFFSET(Q26,-2,)),2)=MOD(ROW(),2)),Q$5:OFFSET(Q26,-2,))","v":0},{"$f":"SUMPRODUCT(N(MOD(ROW(R$5:OFFSET(R26,-2,)),2)=MOD(ROW(),2)),R$5:OFFSET(R26,-2,))","v":0},{"$f":"SUMPRODUCT(N(MOD(ROW(S$5:OFFSET(S26,-2,)),2)=MOD(ROW(),2)),S$5:OFFSET(S26,-2,))","v":0},{"$f":"SUMPRODUCT(N(MOD(ROW(T$5:OFFSET(T26,-2,)),2)=MOD(ROW(),2)),T$5:OFFSET(T26,-2,))","v":0},{"$f":"SUMPRODUCT(N(MOD(ROW(U$5:OFFSET(U26,-2,)),2)=MOD(ROW(),2)),U$5:OFFSET(U26,-2,))","v":0},{"$f":"SUMPRODUCT(N(MOD(ROW(V$5:OFFSET(V26,-2,)),2)=MOD(ROW(),2)),V$5:OFFSET(V26,-2,))","v":0},{"$f":"SUMPRODUCT(N(MOD(ROW(W$5:OFFSET(W26,-2,)),2)=MOD(ROW(),2)),W$5:OFFSET(W26,-2,))","v":0},null,null,null,{"$f":"SUMPRODUCT(N(MOD(ROW(AA$5:OFFSET(AA26,-2,)),2)=MOD(ROW(),2)),AA$5:OFFSET(AA26,-2,))","v":270},{"$f":"SUMPRODUCT(N(MOD(ROW(AB$5:OFFSET(AB26,-2,)),2)=MOD(ROW(),2)),AB$5:OFFSET(AB26,-2,))","v":0},{"$f":"SUMPRODUCT(N(MOD(ROW(AC$5:OFFSET(AC26,-2,)),2)=MOD(ROW(),2)),AC$5:OFFSET(AC26,-2,))","v":0},{"$f":"SUMPRODUCT(N(MOD(ROW(AD$5:OFFSET(AD26,-2,)),2)=MOD(ROW(),2)),AD$5:OFFSET(AD26,-2,))","v":2970}]

{"sheet":"출역일보(00)","index":6,"n_rows":56,"n_cols":19,"rows_kept":56,"cut":false,"hidden":false,"merged":[[24,4,24,10],[24,11,24,18],[35,4,35,10],[44,4,44,10],[45,11,45,12],[34,4,34,5],[43,4,43,5],[44,11,44,12],[36,11,36,12],[37,11,37,12],[39,11,39,12],[40,11,40,12],[41,11,41,12],[42,11,42,12],[43,11,43,12],[35,11,35,12],[49,4,49,5],[49,11,49,12],[48,4,48,5],[48,11,48,12],[53,4,55,5],[50,4,50,5],[50,11,50,12],[51,4,51,5],[51,11,51,12],[52,4,52,5],[52,11,52,12],[47,4,47,5],[47,11,47,12],[46,4,46,5],[46,11,46,12],[25,11,25,12],[26,11,26,12],[27,11,27,12],[28,11,28,12],[45,4,45,5],[29,11,29,12],[30,11,30,12],[31,11,31,12],[38,11,38,12],[34,11,34,12],[32,11,32,12],[33,11,33,12],[5,0,5,2],[0,4,0,18],[3,5,3,8],[4,5,4,11],[4,12,4,18]]}
[null,null,null,null,"공     사     일     보"]
[]
[null,null,null,null,"공 사 명",{"$f":"노임DB!$Y$1","v":0}]
[{"$f":"MID(REPLACE(CELL(\"FILENAME\",A1),1,FIND(\"]\",CELL(\"FILENAME\",A1)),\"\"),6,2)*1","v":0},null,null,null,"일     자",{"$f":"DATE(노임DB!A1,노임DB!C1,A4)","v":"2022-12-31"},null,null,null,"날   씨","맑음"]
[">0",null,null,null,"공종","금 일 작 업 사 항",null,null,null,null,null,null,"명 일 작 업 사 항"]
[]
["NO","성   명","직종","출역품"]
[1,null,{"$f":"IF(NOT(B8<>0),\"\",IFERROR(VLOOKUP(B8,노무자료,4,0),\"\"))","v":""},{"$f":"IFERROR(VLOOKUP(B8,출역현황,A$4+2,0),\"\")","v":""}]
[2,null,{"$f":"IF(NOT(B9<>0),\"\",IFERROR(VLOOKUP(B9,노무자료,4,0),\"\"))","v":""},""]
[3,null,"",""]
[4,null,"",""]
[5,null,"",""]
[6,null,"",""]
[7,null,"",""]
[8,null,"",""]
[9,null,"",""]
[10,null,"",""]
[11,null,"",""]
[12,null,"",""]
[13,null,"",""]
[14,null,"",""]
[15,null,"",""]
[16,null,"",""]
[17,null,"",""]
[18,null,"","","철 근 반 입 현 황",null,null,null,null,null,null,"출 력 인 원 현 황"]
[19,null,"","","자  재  명","단위","전  월","전전일","전일","월누계","전체누계","구분",null,"전  월","전  일","금  일","월누계","전체누계","비  고"]
[20,null,"","","HD10","Ton",null,null,null,{"$f":"SUM(H27:I27)","v":0},{"$f":"G27+J27","v":0},"관리",null,null,null,null,null,{"$f":"N27+Q27","v":0}]
[21,null,"","","HD13","Ton",null,null,null,0,0,null,null,null,null,null,null,0]
[22,null,"","","HD16","Ton",null,null,null,0,0,null,null,null,null,null,null,0]
[23,null,"","","SHD19","Ton",null,null,null,0,0,null,null,null,null,null,null,0]
[24,null,"","","SHD22","Ton",null,null,null,0,0,null,null,null,null,null,null,0]
[25,null,"","","SHD25","Ton",null,null,null,0,0,null,null,null,null,null,null,0]
[26,null,"","",null,null,null,null,null,0,0,null,null,null,null,null,null,0]
[27,null,"","",null,null,null,null,null,0,0,null,null,null,null,null,null,0]
[28,null,"","","소  계",null,{"$f":"SUM(G27:G34)","v":0},{"$f":"SUM(H27:H34)","v":0},{"$f":"SUM(I27:I34)","v":0},0,0,null,null,null,null,null,null,0]
[29,null,"","","콘 크 리 트 타 설 현 황",null,null,null,null,null,null,null,null,null,null,null,null,0]
[30,null,"","","자  재  명","단위","전  월","전전일","전일","월누계","전체누계",null,null,null,null,null,null,0]
[31,null,"","","버림CON'C","M3",null,null,null,{"$f":"SUM(H38:I38)","v":0},{"$f":"G38+J38","v":0},null,null,null,null,null,null,0]
[32,null,"","","철근CON'C(지하)","M3",null,null,null,0,0,null,null,null,null,null,null,0]
[33,null,"","","철근CON'C(지상)","M3",null,null,null,0,0,null,null,null,null,null,null,0]
[34,null,"","",null,null,null,null,null,0,0,null,null,null,null,null,null,0]
[35,null,"","","누름CON'C","M3",null,null,null,0,0,null,null,null,null,null,null,0]
[36,null,"","",null,null,null,null,null,0,0,null,null,null,null,null,null,0]
[37,null,"","","소  계",null,{"$f":"SUM(G38:G43)","v":0},null,null,0,0,null,null,null,null,null,null,0]
[38,null,"","","징 비 투 입 현 황 (지게차, 크레인)",null,null,null,null,null,null,null,null,null,null,null,null,0]
[39,null,"","","장비명",null,"전  월","전전일","전일","월누계","전체누계",null,null,null,null,null,null,0]
[77,null,"","",null,null,null,null,null,{"$f":"SUM(H47:I47)","v":0},{"$f":"G47+J47","v":0},null,null,null,null,null,null,0]
[78,null,"","",null,null,null,null,null,0,0,null,null,null,null,null,null,0]
[79,null,"","",null,null,null,null,null,0,0,null,null,null,null,null,null,0]
[80,null,"","",null,null,null,null,null,0,0,null,null,null,null,null,null,0]
[81,null,"","",null,null,null,null,null,0,0,null,null,null,null,null,null,0]
[82,null,"","",null,null,null,null,null,0,0,null,null,null,null,null,null,{"$f":"N52+Q52","v":0}]
[83,null,"","","소  계",null,{"$f":"SUM(G47:G52)","v":0},{"$f":"SUM(H47:H52)","v":0},{"$f":"SUM(I47:I52)","v":0},{"$f":"SUM(J47:J52)","v":0},0,"소  계",null,{"$f":"SUM(N27:N52)","v":0},{"$f":"SUM(O27:O52)","v":0},{"$f":"SUM(P27:P52)","v":0},{"$f":"SUM(Q27:Q52)","v":0},{"$f":"SUM(R27:R52)","v":0}]
[84,null,"","","특기사항"]
[85,null,"",""]
[86,null,"",""]

{"sheet":"출역일보(01)","index":7,"n_rows":507,"n_cols":50,"rows_kept":507,"cut":false,"hidden":false,"merged":[[46,4,46,5],[47,4,47,5],[48,4,48,5],[49,4,49,5],[53,4,55,5],[50,4,50,5],[51,4,51,5],[52,4,52,5],[51,11,51,12],[52,11,52,12],[43,11,43,12],[44,11,44,12],[45,11,45,12],[46,11,46,12],[47,11,47,12],[48,11,48,12],[49,11,49,12],[50,11,50,12],[35,4,35,10],[44,4,44,10],[45,4,45,5],[34,4,34,5],[34,11,34,12],[39,11,39,12],[40,11,40,12],[41,11,41,12],[42,11,42,12],[36,11,36,12],[37,11,37,12],[43,4,43,5],[38,11,38,12],[25,11,25,12],[33,11,33,12],[32,11,32,12],[35,11,35,12],[31,11,31,12],[26,11,26,12],[27,11,27,12],[28,11,28,12],[29,11,29,12],[30,11,30,12],[4,47,4,49],[3,22,3,24],[3,25,3,26],[3,27,3,29],[3,32,3,34],[3,35,3,36],[3,37,3,39],[3,47,3,49],[5,0,5,2],[4,20,4,21],[4,5,4,11],[4,12,4,18],[4,45,4,46],[3,20,3,21],[3,30,3,31],[3,40,3,41],[3,42,3,44],[3,45,3,46],[24,11,24,18],[24,4,24,10],[0,4,0,18],[3,5,3,8],[4,42,4,44],[4,22,4,24],[4,30,4,31],[4,40,4,41],[4,37,4,39],[4,25,4,26],[4,27,4,29],[4,32,4,34],[4,35,4,36],[0,20,2,29],[0,30,2,39],[0,40,2,49]]}
[null,null,null,null,"공     사     일     보",null,null,null,null,null,null,null,null,null,null,null,null,null,null,null,"출 역 일 보",null,null,null,null,null,null,null,null,null,"출 역 일 보",null,null,null,null,null,null,null,null,null,"출 역 일 보"]
[]
[null,null,null,null,"공 사 명",{"$f":"노임DB!$Y$1","v":0}]
[{"$f":"DAY(F4)","v":1},{"$f":"MID(REPLACE(CELL(\"FILENAME\",A1),1,FIND(\"]\",CELL(\"FILENAME\",A1)),\"\"),6,2)*1","v":1},null,null,"일     자",{"$f":"DATE(노임DB!A1,노임DB!C1,MID(REPLACE(CELL(\"FILENAME\",A1),1,FIND(\"]\",CELL(\"FILENAME\",A1)),\"\"),6,2)*1+노임DB!C5-1)","v":"2023-01-01"},null,null,null,"날   씨","맑음",null,null,null,null,null,null,null,null,null,"공 사 명",null,{"$f":"$F$3","v":0},null,null,"업 체 명",null,null,null,null,"공 사 명",null,{"$f":"$F$3","v":0},null,null,"업 체 명",null,{"$f":"$AB$4","v":0},null,null,"공 사 명",null,{"$f":"$F$3","v":0},null,null,"업 체 명",null,{"$f":"$AB$4","v":0}]
[">0",null,null,null,"공종","금 일 작 업 사 항",null,null,null,null,null,null,"명 일 작 업 사 항",null,null,null,null,null,null,null,"일     자",null,{"$f":"$F$4","v":"2023-01-01"},null,null,"날     씨",null,{"$f":"$K$4","v":"맑음"},null,null,"일     자",null,{"$f":"$F$4","v":"2023-01-01"},null,null,"날     씨",null,{"$f":"$K$4","v":"맑음"},null,null,"일     자",null,{"$f":"$F$4","v":"2023-01-01"},null,null,"날     씨",null,{"$f":"$K$4","v":"맑음"}]
[null,null,null,null,null,null,null,null,null,null,null,null,null,null,null,null,null,null,null,null,"NO","직종","성명","공수","작업내용","NO","직종","성명","공수","작업내용","NO","직종","성명","공수","작업내용","NO","직종","성명","공수","작업내용","NO","직종","성명","공수","작업내용","NO","직종","성명","공수","작업내용"]
["NO","성   명","직종","출역품",null,null,null,null,null,null,null,null,null,null,null,null,null,null,null,null,1,{"$f":"IFERROR(VLOOKUP(W7,노무자료,6,0),\"\")","v":"현장소장"},{"$f":"OFFSET($B$7,U7,0)","v":"홍길동"},{"$f":"OFFSET($D$7,U7,0)","v":1},null,51,{"$f":"IFERROR(VLOOKUP(AB7,노무자료,6,0),\"\")","v":""},{"$f":"OFFSET($B$7,Z7,0)","v":0},{"$f":"OFFSET($D$7,Z7,0)","v":""},null,101,{"$f":"IFERROR(VLOOKUP(AG7,노무자료,6,0),\"\")","v":""},{"$f":"OFFSET($B$7,AE7,0)","v":0},{"$f":"OFFSET($D$7,AE7,0)","v":""},null,151,{"$f":"IFERROR(VLOOKUP(AL7,노무자료,6,0),\"\")","v":""},{"$f":"OFFSET($B$7,AJ7,0)","v":0},{"$f":"OFFSET($D$7,AJ7,0)","v":""},null,201,{"$f":"IFERROR(VLOOKUP(AQ7,노무자료,6,0),\"\")","v":""},{"$f":"OFFSET($B$7,AO7,0)","v":0},{"$f":"OFFSET($D$7,AO7,0)","v":""},null,251,{"$f":"IFERROR(VLOOKUP(AV7,노무자료,6,0),\"\")","v":""},{"$f":"OFFSET($B$7,AT7,0)","v":0},{"$f":"OFFSET($D$7,AT7,0)","v":""}]
[{"$f":"ROW()-7","v":1},"홍길동",{"$f":"IF(NOT(B8<>0),\"\",IFERROR(VLOOKUP(B8,노무자료,4,0),\"\"))","v":1000},{"$f":"IFERROR(VLOOKUP(B8,출역현황,MID(REPLACE(CELL(\"FILENAME\",A1),1,FIND(\"]\",CELL(\"FILENAME\",A1)),\"\"),6,2)*1+2,0),\"\")","v":1},null,null,null,null,null,null,null,null,null,null,null,null,null,null,null,null,2,"",{"$f":"OFFSET($B$7,U8,0)","v":0},{"$f":"OFFSET($D$7,U8,0)","v":""},null,52,"",0,"",null,102,"",0,"",null,152,"",0,"",null,202,"",0,"",null,252,"",0,""]
[{"$f":"ROW()-7","v":2},null,{"$f":"IF(NOT(B9<>0),\"\",IFERROR(VLOOKUP(B9,노무자료,4,0),\"\"))","v":""},{"$f":"IFERROR(VLOOKUP(B9,출역현황,MID(REPLACE(CELL(\"FILENAME\",A2),1,FIND(\"]\",CELL(\"FILENAME\",A2)),\"\"),6,2)*1+3,0),\"\")","v":""},null,null,null,null,null,null,null,null,null,null,null,null,null,null,null,null,3,"",0,"",null,53,"",0,"",null,103,"",0,"",null,153,"",0,"",null,203,"",0,"",null,253,"",0,""]
[3,null,"","",null,null,null,null,null,null,null,null,null,null,null,null,null,null,null,null,4,"",0,"",null,54,"",0,"",null,104,"",0,"",null,154,"",0,"",null,204,"",0,"",null,254,"",0,""]
[4,null,{"$f":"IF(NOT(B11<>0),\"\",IFERROR(VLOOKUP(B11,노무자료,4,0),\"\"))","v":""},"",null,null,null,null,null,null,null,null,null,null,null,null,null,null,null,null,5,"",0,"",null,55,"",0,"",null,105,"",0,"",null,155,"",0,"",null,205,"",0,"",null,255,"",0,""]
[5,null,"","",null,null,null,null,null,null,null,null,null,null,null,null,null,null,null,null,6,"",0,"",null,56,"",0,"",null,106,"",0,"",null,156,"",0,"",null,206,"",0,"",null,256,"",0,""]
[6,null,"","",null,null,null,null,null,null,null,null,null,null,null,null,null,null,null,null,7,"",0,"",null,57,"",0,"",null,107,"",0,"",null,157,"",0,"",null,207,"",0,"",null,257,"",0,""]
[7,null,"","",null,null,null,null,null,null,null,null,null,null,null,null,null,null,null,null,8,"",0,"",null,58,"",0,"",null,108,"",0,"",null,158,"",0,"",null,208,"",0,"",null,258,"",0,""]
[8,null,"","",null,null,null,null,null,null,null,null,null,null,null,null,null,null,null,null,9,"",0,"",null,59,"",0,"",null,109,"",0,"",null,159,"",0,"",null,209,"",0,"",null,259,"",0,""]
[9,null,"","",null,null,null,null,null,null,null,null,null,null,null,null,null,null,null,null,10,"",0,"",null,60,"",0,"",null,110,"",0,"",null,160,"",0,"",null,210,"",0,"",null,260,"",0,""]
[10,null,"","",null,null,null,null,null,null,null,null,null,null,null,null,null,null,null,null,11,"",0,"",null,61,"",0,"",null,111,"",0,"",null,161,"",0,"",null,211,"",0,"",null,261,"",0,""]
[11,null,"","",null,null,null,null,null,null,null,null,null,null,null,null,null,null,null,null,12,"",0,"",null,62,"",0,"",null,112,"",0,"",null,162,"",0,"",null,212,"",0,"",null,262,"",0,""]
[12,null,"","",null,null,null,null,null,null,null,null,null,null,null,null,null,null,null,null,13,"",0,"",null,63,"",0,"",null,113,"",0,"",null,163,"",0,"",null,213,"",0,"",null,263,"",0,""]
[13,null,"","",null,null,null,null,null,null,null,null,null,null,null,null,null,null,null,null,14,"",0,"",null,64,"",0,"",null,114,"",0,"",null,164,"",0,"",null,214,"",0,"",null,264,"",0,""]
[14,null,"","",null,null,null,null,null,null,null,null,null,null,null,null,null,null,null,null,15,"",0,"",null,65,"",0,"",null,115,"",0,"",null,165,"",0,"",null,215,"",0,"",null,265,"",0,""]
[15,null,"","",null,null,null,null,null,null,null,null,null,null,null,null,null,null,null,null,16,"",0,"",null,66,"",0,"",null,116,"",0,"",null,166,"",0,"",null,216,"",0,"",null,266,"",0,""]
[16,null,"","",null,null,null,null,null,null,null,null,null,null,null,null,null,null,null,null,17,"",0,"",null,67,"",0,"",null,117,"",0,"",null,167,"",0,"",null,217,"",0,"",null,267,"",0,""]
[17,null,"","",null,null,null,null,null,null,null,null,null,null,null,null,null,null,null,null,18,"",0,"",null,68,"",0,"",null,118,"",0,"",null,168,"",0,"",null,218,"",0,"",null,268,"",0,""]
[18,null,"","","철 근 반 입 현 황",null,null,null,null,null,null,"출 력 인 원 현 황",null,null,null,null,null,null,null,null,19,"",0,"",null,69,"",0,"",null,119,"",0,"",null,169,"",0,"",null,219,"",0,"",null,269,"",0,""]
[19,null,"","","자  재  명","단위","전  월","전전일","전일","월누계","전체누계","구분",null,"전  월","전  일","금  일","월누계","전체누계","비  고",null,20,"",0,"",null,70,"",0,"",null,120,"",0,"",null,170,"",0,"",null,220,"",0,"",null,270,"",0,""]
[20,null,"","","HD10","Ton",{"$f":"IFERROR(VLOOKUP(E27,INDIRECT(\"'출역일보(\"&\"00\"&\")'!E:K\"),3,0),0)","v":0},{"$f":"IFERROR(VLOOKUP(E27,INDIRECT(\"'출역일보(\"&TEXT($B$4-1,\"00\")&\")'!e:k\"),6,0),0)","v":0},null,{"$f":"SUM(H27:I27)","v":0},{"$f":"G27+J27","v":0},"관리",null,{"$f":"IFERROR(VLOOKUP(L27,INDIRECT(\"'출역일보(\"&\"00\"&\")'!l:r\"),3,0),0)","v":0},{"$f":"IFERROR(VLOOKUP(L27,INDIRECT(\"'출역일보(\"&TEXT($B$4-1,\"00\")&\")'!l:r\"),6,0),0)","v":0},{"$f":"IFERROR(COUNTIF(코드,VLOOKUP(L27,직종코드1,2,0)),\"직종없음\")","v":1},{"$f":"SUM(O27:P27)","v":1},{"$f":"N27+Q27","v":1},null,null,21,"",0,"",null,71,"",0,"",null,121,"",0,"",null,171,"",0,"",null,221,"",0,"",null,271,"",0,""]
[21,null,"","","HD13","Ton",0,0,null,0,0,null,null,0,0,0,0,0,null,null,22,"",0,"",null,72,"",0,"",null,122,"",0,"",null,172,"",0,"",null,222,"",0,"",null,272,"",0,""]
[22,null,"","","HD16","Ton",0,0,null,0,0,null,null,0,0,0,0,0,null,null,23,"",0,"",null,73,"",0,"",null,123,"",0,"",null,173,"",0,"",null,223,"",0,"",null,273,"",0,""]
[23,null,"","","SHD19","Ton",0,0,null,0,0,null,null,0,0,0,0,0,null,null,24,"",0,"",null,74,"",0,"",null,124,"",0,"",null,174,"",0,"",null,224,"",0,"",null,274,"",0,""]
[24,null,"","","SHD22","Ton",0,0,null,0,0,null,null,0,0,0,0,0,null,null,25,"",0,"",null,75,"",0,"",null,125,"",0,"",null,175,"",0,"",null,225,"",0,"",null,275,"",0,""]
[25,null,"","","SHD25","Ton",0,0,null,0,0,null,null,0,0,0,0,0,null,null,26,"",0,"",null,76,"",0,"",null,126,"",0,"",null,176,"",0,"",null,226,"",0,"",null,276,"",0,""]
[26,null,"","",null,null,0,0,null,0,0,null,null,0,0,0,0,0,null,null,27,"",0,"",null,77,"",0,"",null,127,"",0,"",null,177,"",0,"",null,227,"",0,"",null,277,"",0,""]
[27,null,"","",null,null,0,0,null,0,0,null,null,0,0,0,0,0,null,null,28,"",0,"",null,78,"",0,"",null,128,"",0,"",null,178,"",0,"",null,228,"",0,"",null,278,"",0,""]
[28,null,"","","소  계",null,{"$f":"SUM(G27:G34)","v":0},{"$f":"SUM(H27:H34)","v":0},{"$f":"SUM(I27:I34)","v":0},0,0,null,null,0,0,0,0,0,null,null,29,"",0,"",null,79,"",0,"",null,129,"",0,"",null,179,"",0,"",null,229,"",0,"",null,279,"",0,""]
[29,null,"","","콘 크 리 트 타 설 현 황",null,null,null,null,null,null,null,null,0,0,0,0,0,null,null,30,"",0,"",null,80,"",0,"",null,130,"",0,"",null,180,"",0,"",null,230,"",0,"",null,280,"",0,""]
[30,null,"","","자  재  명","단위","전  월","전전일","전일","월누계","전체누계",null,null,0,0,0,0,0,null,null,31,"",0,"",null,81,"",0,"",null,131,"",0,"",null,181,"",0,"",null,231,"",0,"",null,281,"",0,""]
[31,null,"","","버림CON'C","M3",{"$f":"IFERROR(VLOOKUP(E38,INDIRECT(\"'출역일보(\"&\"00\"&\")'!E:K\"),3,0),0)","v":0},{"$f":"IFERROR(VLOOKUP(E38,INDIRECT(\"'출역일보(\"&TEXT($B$4-1,\"00\")&\")'!e:k\"),6,0),0)","v":0},null,{"$f":"SUM(H38:I38)","v":0},{"$f":"G38+J38","v":0},null,null,0,0,0,0,0,null,null,32,"",0,"",null,82,"",0,"",null,132,"",0,"",null,182,"",0,"",null,232,"",0,"",null,282,"",0,""]
[32,null,"","","철근CON'C(지하)","M3",0,0,null,0,0,null,null,0,0,0,0,0,null,null,33,"",0,"",null,83,"",0,"",null,133,"",0,"",null,183,"",0,"",null,233,"",0,"",null,283,"",0,""]
[33,null,"","","철근CON'C(지상)","M3",0,0,null,0,0,null,null,0,0,0,{"$f":"SUM(O40:P40)","v":0},{"$f":"N40+Q40","v":0},null,null,34,"",0,"",null,84,"",0,"",null,134,"",0,"",null,184,"",0,"",null,234,"",0,"",null,284,"",0,""]
[34,null,"","",null,null,0,0,null,0,0,null,null,0,0,0,0,0,null,null,35,"",0,"",null,85,"",0,"",null,135,"",0,"",null,185,"",0,"",null,235,"",0,"",null,285,"",0,""]
[35,null,"","","누름CON'C","M3",0,0,null,0,0,null,null,0,0,0,0,0,null,null,36,"",0,"",null,86,"",0,"",null,136,"",0,"",null,186,"",0,"",null,236,"",0,"",null,286,"",0,""]
[36,null,"","",null,null,0,0,null,0,0,null,null,0,0,0,0,0,null,null,37,"",0,"",null,87,"",0,"",null,137,"",0,"",null,187,"",0,"",null,237,"",0,"",null,287,"",0,""]
[37,null,"","","소  계",null,{"$f":"SUM(G38:G43)","v":0},{"$f":"SUM(H38:H43)","v":0},{"$f":"SUM(I38:I43)","v":0},0,0,null,null,0,0,0,0,0,null,null,38,"",0,"",null,88,"",0,"",null,138,"",0,"",null,188,"",0,"",null,238,"",0,"",null,288,"",0,""]
[38,null,"","","징 비 투 입 현 황 (지게차, 크레인)",null,null,null,null,null,null,null,null,0,0,0,0,0,null,null,39,"",0,"",null,89,"",0,"",null,139,"",0,"",null,189,"",0,"",null,239,"",0,"",null,289,"",0,""]
[39,null,"","","장비명",null,"전  월","전전일","전일","월누계","전체누계",null,null,0,0,0,0,0,null,null,40,"",0,"",null,90,"",0,"",null,140,"",0,"",null,190,"",0,"",null,240,"",0,"",null,290,"",0,""]
[40,null,"","",null,null,{"$f":"IFERROR(VLOOKUP(E47,INDIRECT(\"'출역일보(\"&\"00\"&\")'!E:K\"),3,0),0)","v":0},{"$f":"IFERROR(VLOOKUP(E47,INDIRECT(\"'출역일보(\"&TEXT($B$4-1,\"00\")&\")'!e:k\"),6,0),0)","v":0},null,{"$f":"SUM(H47:I47)","v":0},{"$f":"G47+J47","v":0},null,null,0,0,0,{"$f":"SUM(O47:P47)","v":0},{"$f":"N47+Q47","v":0},null,null,41,"",0,"",null,91,"",0,"",null,141,"",0,"",null,191,"",0,"",null,241,"",0,"",null,291,"",0,""]
[41,null,"","",null,null,0,0,null,0,0,null,null,0,0,0,0,0,null,null,42,"",0,"",null,92,"",0,"",null,142,"",0,"",null,192,"",0,"",null,242,"",0,"",null,292,"",0,""]
[42,null,"","",null,null,0,0,null,0,0,null,null,0,0,0,0,0,null,null,43,"",0,"",null,93,"",0,"",null,143,"",0,"",null,193,"",0,"",null,243,"",0,"",null,293,"",0,""]
[43,null,"","",null,null,0,0,null,0,0,null,null,0,0,0,0,0,null,null,44,"",0,"",null,94,"",0,"",null,144,"",0,"",null,194,"",0,"",null,244,"",0,"",null,294,"",0,""]
[44,null,"","",null,null,0,0,null,0,0,null,null,0,0,0,0,0,null,null,45,"",0,"",null,95,"",0,"",null,145,"",0,"",null,195,"",0,"",null,245,"",0,"",null,295,"",0,""]
[45,null,"","",null,null,0,0,null,0,0,null,null,0,0,0,{"$f":"SUM(O52:P52)","v":0},{"$f":"N52+Q52","v":0},null,null,46,"",0,"",null,96,"",0,"",null,146,"",0,"",null,196,"",0,"",null,246,"",0,"",null,296,"",0,""]
[46,null,"","","소  계",null,{"$f":"SUM(G47:G52)","v":0},{"$f":"SUM(H47:H52)","v":0},{"$f":"SUM(I47:I52)","v":0},{"$f":"SUM(J47:J52)","v":0},0,"소  계",null,{"$f":"SUM(N27:N52)","v":0},{"$f":"SUM(O27:O52)","v":0},{"$f":"SUM(P27:P52)","v":1},{"$f":"SUM(Q27:Q52)","v":1},{"$f":"SUM(R27:R52)","v":1},null,null,47,"",0,"",null,97,"",0,"",null,147,"",0,"",null,197,"",0,"",null,247,"",0,"",null,297,"",0,""]
[47,null,"","","특기사항",null,null,null,null,null,null,null,null,null,null,null,null,null,null,null,48,"",0,"",null,98,"",0,"",null,148,"",0,"",null,198,"",0,"",null,248,"",0,"",null,298,"",0,""]
[48,null,"","",null,null,null,null,null,null,null,null,null,null,null,null,null,null,null,null,49,"",0,"",null,99,"",0,"",null,149,"",0,"",null,199,"",0,"",null,249,"",0,"",null,299,"",0,""]
[49,null,"","",null,null,null,null,null,null,null,null,null,null,null,null,null,null,null,null,50,"",0,"",null,100,"",0,"",null,150,"",0,"",null,200,"",0,"",null,250,"",0,"",null,300,"",0,""]
[50,null,"",""]
[51,null,"",""]
[52,null,"",""]
[53,null,"",""]
[54,null,"",""]
[55,null,"",""]
[56,null,"",""]
[57,null,"",""]
[58,null,"",""]
[59,null,"",""]
[60,null,"",""]
[61,null,"",""]
[62,null,"",""]
[63,null,"",""]
[64,null,"",""]
[65,null,"",""]
[{"$f":"ROW()-7","v":66},null,"",{"$f":"IFERROR(VLOOKUP(B73,출역현황,MID(REPLACE(CELL(\"FILENAME\",A66),1,FIND(\"]\",CELL(\"FILENAME\",A66)),\"\"),6,2)*1+3,0),\"\")","v":""}]
[67,null,"",""]
[68,null,{"$f":"IF(NOT(B75<>0),\"\",IFERROR(VLOOKUP(B75,노무자료,4,0),\"\"))","v":""},""]
[69,null,"",""]
[70,null,"",""]
[71,null,"",""]
[72,null,"",""]
[73,null,"",""]
[74,null,"",""]
[75,null,"",""]
[76,null,"",""]
[77,null,"",""]
[78,null,"",""]
[79,null,"",""]
[80,null,"",""]
[81,null,"",""]
[82,null,"",""]
[83,null,"",""]
[84,null,"",""]
[85,null,"",""]
[86,null,"",""]
[87,null,"",""]
[88,null,"",""]
[89,null,"",""]
[90,null,"",""]
[91,null,"",""]
[92,null,"",""]
[93,null,"",""]
[94,null,"",""]
[95,null,"",""]
[96,null,"",""]
[97,null,"",""]
[98,null,"",""]
[99,null,"",""]
[100,null,"",""]
[101,null,"",""]
[102,null,"",""]
[103,null,"",""]
[104,null,"",""]
[105,null,"",""]
[106,null,"",""]
[107,null,"",""]
[108,null,"",""]
[109,null,"",""]
[110,null,"",""]
[111,null,"",""]
[112,null,"",""]
[113,null,"",""]
[114,null,"",""]
[115,null,"",""]
[116,null,"",""]
[117,null,"",""]
[118,null,"",""]
[119,null,"",""]
[120,null,"",""]
[121,null,"",""]
[122,null,"",""]
[123,null,"",""]
[124,null,"",""]
[125,null,"",""]
[126,null,"",""]
[127,null,"",""]
[128,null,"",""]
[129,null,"",""]
[{"$f":"ROW()-7","v":130},null,"",{"$f":"IFERROR(VLOOKUP(B137,출역현황,MID(REPLACE(CELL(\"FILENAME\",A130),1,FIND(\"]\",CELL(\"FILENAME\",A130)),\"\"),6,2)*1+3,0),\"\")","v":""}]
[131,null,"",""]
[132,null,{"$f":"IF(NOT(B139<>0),\"\",IFERROR(VLOOKUP(B139,노무자료,4,0),\"\"))","v":""},""]
[133,null,"",""]
[134,null,"",""]
[135,null,"",""]
[136,null,"",""]
[137,null,"",""]
[138,null,"",""]
[139,null,"",""]
[140,null,"",""]
[141,null,"",""]
[142,null,"",""]
[143,null,"",""]
[144,null,"",""]
[145,null,"",""]
[146,null,"",""]
[147,null,"",""]
[148,null,"",""]
[149,null,"",""]
[150,null,"",""]
[151,null,"",""]
[152,null,"",""]
[153,null,"",""]
[154,null,"",""]
[155,null,"",""]
[156,null,"",""]
[157,null,"",""]
[158,null,"",""]
[159,null,"",""]
[160,null,"",""]
[161,null,"",""]
[162,null,"",""]
[163,null,"",""]
[164,null,"",""]
[165,null,"",""]
[166,null,"",""]
[167,null,"",""]
[168,null,"",""]
[169,null,"",""]
[170,null,"",""]
[171,null,"",""]
[172,null,"",""]
[173,null,"",""]
[174,null,"",""]
[175,null,"",""]
[176,null,"",""]
[177,null,"",""]
[178,null,"",""]
[179,null,"",""]
[180,null,"",""]
[181,null,"",""]
[182,null,"",""]
[183,null,"",""]
[184,null,"",""]
[185,null,"",""]
[186,null,"",""]
[187,null,"",""]
[188,null,"",""]
[189,null,"",""]
[190,null,"",""]
[191,null,"",""]
[192,null,"",""]
[193,null,"",""]
[{"$f":"ROW()-7","v":194},null,"",{"$f":"IFERROR(VLOOKUP(B201,출역현황,MID(REPLACE(CELL(\"FILENAME\",A194),1,FIND(\"]\",CELL(\"FILENAME\",A194)),\"\"),6,2)*1+3,0),\"\")","v":""}]
[195,null,"",""]
[196,null,{"$f":"IF(NOT(B203<>0),\"\",IFERROR(VLOOKUP(B203,노무자료,4,0),\"\"))","v":""},""]
[197,null,"",""]
[198,null,"",""]
[199,null,"",""]
[200,null,"",""]
[201,null,"",""]
[202,null,"",""]
[203,null,"",""]
[204,null,"",""]
[205,null,"",""]
[206,null,"",""]
[207,null,"",""]
[208,null,"",""]
[209,null,"",""]
[210,null,"",""]
[211,null,"",""]
[212,null,"",""]
[213,null,"",""]
[214,null,"",""]
[215,null,"",""]
[216,null,"",""]
[217,null,"",""]
[218,null,"",""]
[219,null,"",""]
[220,null,"",""]
[221,null,"",""]
[222,null,"",""]
[223,null,"",""]
[224,null,"",""]
[225,null,"",""]
[226,null,"",""]
[227,null,"",""]
[228,null,"",""]
[229,null,"",""]
[230,null,"",""]
[231,null,"",""]
[232,null,"",""]
[233,null,"",""]
[234,null,"",""]
[235,null,"",""]
[236,null,"",""]
[237,null,"",""]
[238,null,"",""]
[239,null,"",""]
[240,null,"",""]
[241,null,"",""]
[242,null,"",""]
[243,null,"",""]
[244,null,"",""]
[245,null,"",""]
[246,null,"",""]
[247,null,"",""]
[248,null,"",""]
[249,null,"",""]
[250,null,"",""]
[251,null,"",""]
[252,null,"",""]
[253,null,"",""]
[254,null,"",""]
[255,null,"",""]
[256,null,"",""]
[257,null,"",""]
[{"$f":"ROW()-7","v":258},null,"",{"$f":"IFERROR(VLOOKUP(B265,출역현황,MID(REPLACE(CELL(\"FILENAME\",A258),1,FIND(\"]\",CELL(\"FILENAME\",A258)),\"\"),6,2)*1+3,0),\"\")","v":""}]
[259,null,"",""]
[260,null,{"$f":"IF(NOT(B267<>0),\"\",IFERROR(VLOOKUP(B267,노무자료,4,0),\"\"))","v":""},""]
[261,null,"",""]
[262,null,"",""]
[263,null,"",""]
[264,null,"",""]
[265,null,"",""]
[266,null,"",""]
[267,null,"",""]
[268,null,"",""]
[269,null,"",""]
[270,null,"",""]
[271,null,"",""]
[272,null,"",""]
[273,null,"",""]
[274,null,"",""]
[275,null,"",""]
[276,null,"",""]
[277,null,"",""]
[278,null,"",""]
[279,null,"",""]
[280,null,"",""]
[281,null,"",""]
[282,null,"",""]
[283,null,"",""]
[284,null,"",""]
[285,null,"",""]
[286,null,"",""]
[287,null,"",""]
[288,null,"",""]
[289,null,"",""]
[290,null,"",""]
[291,null,"",""]
[292,null,"",""]
[293,null,"",""]
[294,null,"",""]
[295,null,"",""]
[296,null,"",""]
[297,null,"",""]
[298,null,"",""]
[299,null,"",""]
[300,null,"",""]
[301,null,"",""]
[302,null,"",""]
[303,null,"",""]
[304,null,"",""]
[305,null,"",""]
[306,null,"",""]
[307,null,"",""]
[308,null,"",""]
[309,null,"",""]
[310,null,"",""]
[311,null,"",""]
[312,null,"",""]
[313,null,"",""]
[314,null,"",""]
[315,null,"",""]
[316,null,"",""]
[317,null,"",""]
[318,null,"",""]
[319,null,"",""]
[320,null,"",""]
[321,null,"",""]
[{"$f":"ROW()-7","v":322},null,"",{"$f":"IFERROR(VLOOKUP(B329,출역현황,MID(REPLACE(CELL(\"FILENAME\",A322),1,FIND(\"]\",CELL(\"FILENAME\",A322)),\"\"),6,2)*1+3,0),\"\")","v":""}]
[323,null,"",""]
[324,null,{"$f":"IF(NOT(B331<>0),\"\",IFERROR(VLOOKUP(B331,노무자료,4,0),\"\"))","v":""},""]
[325,null,"",""]
[326,null,"",""]
[327,null,"",""]
[328,null,"",""]
[329,null,"",""]
[330,null,"",""]
[331,null,"",""]
[332,null,"",""]
[333,null,"",""]
[334,null,"",""]
[335,null,"",""]
[336,null,"",""]
[337,null,"",""]
[338,null,"",""]
[339,null,"",""]
[340,null,"",""]
[341,null,"",""]
[342,null,"",""]
[343,null,"",""]
[344,null,"",""]
[345,null,"",""]
[346,null,"",""]
[347,null,"",""]
[348,null,"",""]
[349,null,"",""]
[350,null,"",""]
[351,null,"",""]
[352,null,"",""]
[353,null,"",""]
[354,null,"",""]
[355,null,"",""]
[356,null,"",""]
[357,null,"",""]
[358,null,"",""]
[359,null,"",""]
[360,null,"",""]
[361,null,"",""]
[362,null,"",""]
[363,null,"",""]
[364,null,"",""]
[365,null,"",""]
[366,null,"",""]
[367,null,"",""]
[368,null,"",""]
[369,null,"",""]
[370,null,"",""]
[371,null,"",""]
[372,null,"",""]
[373,null,"",""]
[374,null,"",""]
[375,null,"",""]
[376,null,"",""]
[377,null,"",""]
[378,null,"",""]
[379,null,"",""]
[380,null,"",""]
[381,null,"",""]
[382,null,"",""]
[383,null,"",""]
[384,null,"",""]
[385,null,"",""]
[{"$f":"ROW()-7","v":386},null,"",{"$f":"IFERROR(VLOOKUP(B393,출역현황,MID(REPLACE(CELL(\"FILENAME\",A386),1,FIND(\"]\",CELL(\"FILENAME\",A386)),\"\"),6,2)*1+3,0),\"\")","v":""}]
[387,null,"",""]
[388,null,{"$f":"IF(NOT(B395<>0),\"\",IFERROR(VLOOKUP(B395,노무자료,4,0),\"\"))","v":""},""]
[389,null,"",""]
[390,null,"",""]
[391,null,"",""]
[392,null,"",""]
[393,null,"",""]
[394,null,"",""]
[395,null,"",""]
[396,null,"",""]
[397,null,"",""]
[398,null,"",""]
[399,null,"",""]
[400,null,"",""]
[401,null,"",""]
[402,null,"",""]
[403,null,"",""]
[404,null,"",""]
[405,null,"",""]
[406,null,"",""]
[407,null,"",""]
[408,null,"",""]
[409,null,"",""]
[410,null,"",""]
[411,null,"",""]
[412,null,"",""]
[413,null,"",""]
[414,null,"",""]
[415,null,"",""]
[416,null,"",""]
[417,null,"",""]
[418,null,"",""]
[419,null,"",""]
[420,null,"",""]
[421,null,"",""]
[422,null,"",""]
[423,null,"",""]
[424,null,"",""]
[425,null,"",""]
[426,null,"",""]
[427,null,"",""]
[428,null,"",""]
[429,null,"",""]
[430,null,"",""]
[431,null,"",""]
[432,null,"",""]
[433,null,"",""]
[434,null,"",""]
[435,null,"",""]
[436,null,"",""]
[437,null,"",""]
[438,null,"",""]
[439,null,"",""]
[440,null,"",""]
[441,null,"",""]
[442,null,"",""]
[443,null,"",""]
[444,null,"",""]
[445,null,"",""]
[446,null,"",""]
[447,null,"",""]
[448,null,"",""]
[449,null,"",""]
[{"$f":"ROW()-7","v":450},null,"",{"$f":"IFERROR(VLOOKUP(B457,출역현황,MID(REPLACE(CELL(\"FILENAME\",A450),1,FIND(\"]\",CELL(\"FILENAME\",A450)),\"\"),6,2)*1+3,0),\"\")","v":""}]
[451,null,"",""]
[452,null,{"$f":"IF(NOT(B459<>0),\"\",IFERROR(VLOOKUP(B459,노무자료,4,0),\"\"))","v":""},""]
[453,null,"",""]
[454,null,"",""]
[455,null,"",""]
[456,null,"",""]
[457,null,"",""]
[458,null,"",""]
[459,null,"",""]
[460,null,"",""]
[461,null,"",""]
[462,null,"",""]
[463,null,"",""]
[464,null,"",""]
[465,null,"",""]
[466,null,"",""]
[467,null,"",""]
[468,null,"",""]
[469,null,"",""]
[470,null,"",""]
[471,null,"",""]
[472,null,"",""]
[473,null,"",""]
[474,null,"",""]
[475,null,"",""]
[476,null,"",""]
[477,null,"",""]
[478,null,"",""]
[479,null,"",""]
[480,null,"",""]
[481,null,"",""]
[482,null,"",""]
[483,null,"",""]
[484,null,"",""]
[485,null,"",""]
[486,null,"",""]
[487,null,"",""]
[488,null,"",""]
[489,null,"",""]
[490,null,"",""]
[491,null,"",""]
[492,null,"",""]
[493,null,"",""]
[494,null,"",""]
[495,null,"",""]
[496,null,"",""]
[497,null,"",""]
[498,null,"",""]
[499,null,"",""]
[500,null,"",""]